Workbook

Sheet Set-up
B2: Windows Version: | C2: Win 7/10 64-bit | E2: Filename: | F2: C:\AP10\InSitu-AP10.bkp | N2: Full Results Import
B3: Aspen Version: | C3: Aspen Plus V10.0 | E3: File Directory: | F3: C:\AP10\
E4: File Base: | F4: InSitu-AP10
E5: File Extension: | F5: .bkp
E6: Toolkit DLL: | F6: ="C:\Program Files" & IF(ISNUMBER(FIND("64",C2))," (x86)","") & "\AspenTech\" & SUBSTITUTE(C3,"Aspen Plus","AprSystem") & "\Engine\Xeq\" -> C:\Program Files (x86)\AspenTech\AprSystem V10.0\Engine\Xeq\
E7: Toolkit Directory: | F7: ="C:\Program Files" & IF(ISNUMBER(FIND("64",C2))," (x86)","") & "\AspenTech\" & C3& "\Engine\Toolkit\" -> C:\Program Files (x86)\AspenTech\Aspen Plus V10.0\Engine\Toolkit\
B9: Unit | C9: Desired Units | E9: Identifier String: | F9: =G10&" "&G11&" Case: "&G12&" model "&IF(G14="",G13,G14) -> Unspecified Template Worksheet Case: 2019 model National Renewable Energy Laboratory | N9: © 2016-2019 Alliance for Sustainable Energy, LLC
B10: Type | C10: (Defaults to SI) | E10: Input: | F10: Feedstock: | G10: Unspecified
B11: MASS-FLOW | C11: lb/hr | F11: Report Type: | G11: Template Worksheet | N11: This program is free software: you can redistribute it and/or modify
B12: ENTHALPY-FLO | C12: Btu/hr | F12: Year modeled: | G12: 2019 | N12: it under the terms of the GNU General Public License as published by
B13: MOLE-FLOW | C13: lbmol/hr | F13: Case ID: Auto: | G13: =IF(G14<>"",G14,FILEBASE) -> National Renewable Energy Laboratory | N13: the Free Software Foundation, either version 3 of the License, or
B14: VOLUME-FLOW | C14: cuft/hr | F14: or override: | G14: National Renewable Energy Laboratory | N14: (at your option) any later version.
B15: TEMPERATURE | C15: C
B16: PRESSURE | C16: psi | N16: This program is distributed in the hope that it will be useful,
B17: MOLE-ENTHALP | C17: J/kmol | E17: LOOKUP strings | N17: but WITHOUT ANY WARRANTY; without even the implied warranty of
B18: MASS-ENTHALP | C18: kcal/kg | E18: Data Set | F18: Sheet | G18: Start Col | H18: Start Row | I18: End Col | J18: End row | K18: Lookup String | L18: Name | N18: MERCHANTABILITY or FITNESS FOR A PARTICULAR PURPOSE. See the
B19: MOLE-ENTROPY | C19: cal/mol-K | E19: Sensitivity | F19: aspen | G19: C | H19: 7 | I19: E | J19: 2000 | K19: =F19&"!"&G19&H19&":"&I19&J19 -> aspen!C7:E2000 | L19: LU_SENS | N19: GNU General Public License for more details.
B20: MASS-ENTROPY | C20: cal/gm-K | E20: Heat streams | F20: aspenqw | G20: C | H20: 7 | I20: E | J20: 400 | K20: =F20&"!"&G20&H20&":"&I20&J20 -> aspenqw!C7:E400 | L20: LU_HEAT
B21: MOLE-DENSITY | C21: kmol/cum | E21: Work Streams | F21: aspenqw | G21: G | H21: 7 | I21: I | J21: 400 | K21: =F21&"!"&G21&H21&":"&I21&J21 -> aspenqw!G7:I400 | L21: LU_WORK | N21: You should have received a copy of the GNU General Public License
B22: MASS-DENSITY | C22: gm/cc | N22: along with this program. If not, see <https://www.gnu.org/licenses/>.
B23: POWER | C23: hp
B24: VISCOSITY | C24: cp | E24: Index-Capital | F24: INDICES | G24: C | H24: 60 | I24: F | J24: 87 | K24: =F24&"!"&G24&H24&":"&I24&J24 -> INDICES!C60:F87 | L24: IX_CAP | N24: You will need a separate license to use the Aspen Plus and
B25: MASS-HEAT-CA | C25: J/kg-K | E25: Index-Chemical | F25: INDICES | G25: M | H25: 60 | I25: P | J25: 96 | K25: =F25&"!"&G25&H25&":"&I25&J25 -> INDICES!M60:P96 | L25: IX_CHEM | N25: Microsoft Excel software packages in order to run the models.
B26: THERMAL-COND | C26: Watt/m-K | E26: Index-Labor | F26: INDICES | G26: W | H26: 60 | I26: Z | J26: 96 | K26: =F26&"!"&G26&H26&":"&I26&J26 -> INDICES!W60:Z96 | L26: IX_LABOR
B27: SURFACE-TENS | C27: dyne/cm | E27: Index-Electricity | F27: INDICES | G27: AG | H27: 60 | I27: AH | J27: 74 | K27: =F27&"!"&G27&H27&":"&I27&J27 -> INDICES!AG60:AH74 | L27: IX_ELEC | N27: Base version of Aspen Plus model (supporting the design report NREL/TP-5100-62455)
N28: by Abhijit Dutta
E29: Color Codes: | G29: Detail/Description | N29: Model simplified by Avantika Singh to allow running
E30: Requires Manual Entry | G30: Applies to sections below/lookup tables for sheet | N30: without a Fortran compiler in Aspen Plus V10
E31: Okay, needs improvement | G31: mostly commented, indicates less than perfect solution
E32: Non standard Calculation | G32: one off sizing etc. | N32: Base version of economic spreadsheet by David Humbird
E33: Error…check everything | G33: sometimes these are automated | N33: Economic spreadsheet simplified and adapted for use with Aspen Plus V10
N34: by Matt Wiatrowski using modified VBA code by Nick Grundl

Sheet INDICES
C6: Plant Cost Indices | M6: Inorganic Chemical Index | W6: Labor Index | AG6: Electricity
B7: Graph: Index vs. Time | L7: Graph: Index vs. Time | V7: Graph: Index vs. Time | AF7: Graph: Index vs. Time
C36: Linear Regression Results | M36: Linear Regression Results | W36: Linear Regression Results | AG36: Linear Regression Results
C37: =LINEST(D66:D73,C66:C73,TRUE,TRUE) -> 2.242857143 | D37: -4093.175 | M37: =LINEST(N82:N91,M82:M91,TRUE,TRUE) -> 10.30545455 | N37: -20476.09455 | W37: =LINEST(X84:X91,W84:W91,TRUE,TRUE) -> 0.2985714286 | X37: -579.3421429
C38: 0.2079554396 | D38: 415.5992192 | M38: 0.5165775272 | N38: 1036.51387 | W38: 0.06361822782 | X38: 127.7136755
C39: 0.9509492196 | D39: 1.347705281 | M39: 0.9802946865 | N39: 4.692048399 | W39: 0.7859121986 | X39: 0.4122932382
C40: 116.3222128 | D40: 6 | M40: 397.981868 | N40: 8 | W40: 22.02588453 | X40: 6
C41: 211.2771429 | D41: 10.89785714 | M41: 8761.697455 | N41: 176.1225455 | W41: 3.744085714 | X41: 1.019914286
B43: Source Details | L43: Source Details | V43: Source Details | AF43: Source Details
C45: Source: | D45: (0) Chemical Engineering Magazine, Jan 1991 | M45: Source: | N45: SRI International Chemical Economics Handbook, Economic Environment of the Chemical Industry 2004 | W45: Source: | X45: Bureau of Labor Statistics | AG45: Source: | AH45: EIA Average Wholesale price, cents/kWh
D46: (1) Chemical Engineering Magazine, March, 1997
D47: (2) Chemical Engineering Magazine, March, 2000 | W47: Series ID: | X47: CEU3232500008
D48: (3) Chemical Engineering Magazine, January, 2001 | M48: Current indices @ | O48: https://www.sriconsulting.com/CEH/Private/EECI/EECI.pdf | W48: Chemicals
D49: (4) Chemical Engineering Magazine, April, 2002 | W49: Average Hourly Earnings of Production Workers
D50: (5) Chemical Engineering Magazine, December, 2003 | W50: Current indices @ | Y50: http://data.bls.gov/cgi-bin/srgate
D51: (6) Chemical Engineering Magazine, May 2005
D52: (7) Chemical Engineering Magazine, April 2009
C53: Current indices @ | E53: http://www.che.com/ei
A57: © 2016-2019 Alliance for Sustainable Energy, LLC | B57: Data | L57: Data | V57: Data | AF57: Data
C58: Method: | D58: Reported | E58: Regression | F58: Manual | M58: Method: | N58: Reported | O58: Regression | P58: Manual | W58: Method: | X58: Reported | Y58: Regression | Z58: Manual | AG58: Method: | AH58: Reported | AI58: Regression | AJ58: Manual
A59: This program is free software: you can redistribute it and/or modify | B59: Source | C59: Year | D59: CE Annual | E59: LINEST | F59: In Use | H59: Comments | M59: Year | N59: US Producer Price | O59: LINEST | P59: In Use | R59: Comments | W59: Year | X59: BLS | Y59: LINEST | Z59: In Use | AB59: Comments | AG59: Year | AH59: EIA | AI59: LINEST | AJ59: IN Use | AL59: Comments
A60: it under the terms of the GNU General Public License as published by | B60: (0) | C60: 1981 | D60: 297 | F60: 297 | M60: 1980 | N60: 89 | P60: 89 | W60: 1980 | Z60: 0 | AG60: 2001 | AH60: 5.242793975 | AJ60: 5.242793975
A61: the Free Software Foundation, either version 3 of the License, or | B61: (1) | C61: 1990 | D61: 357.6 | F61: 357.6 | M61: 1981 | N61: 98.4 | P61: 98.4 | W61: 1981 | Z61: 0 | AG61: 2002 | AH61: 3.559262187 | AJ61: 3.559262187
A62: (at your option) any later version. | B62: (1) | C62: 1991 | D62: 361.3 | F62: 361.3 | M62: 1982 | N62: 100 | P62: 100 | W62: 1982 | Z62: 0 | AG62: 2003 | AH62: 3.988516943 | AJ62: 3.988516943
B63: (1) | C63: 1992 | D63: 358.2 | F63: 358.2 | M63: 1983 | N63: 100.3 | P63: 100.3 | W63: 1983 | Z63: 0 | AG63: 2004 | AH63: 3.893850176 | AJ63: 3.893850176
A64: This program is distributed in the hope that it will be useful, | B64: (1) | C64: 1993 | D64: 359.2 | F64: 359.2 | M64: 1984 | N64: 102.9 | P64: 102.9 | W64: 1984 | Z64: 0 | AG64: 2005 | AH64: 5.010122573 | AJ64: 5.010122573
A65: but WITHOUT ANY WARRANTY; without even the implied warranty of | B65: (1) | C65: 1994 | D65: 368.1 | F65: 368.1 | M65: 1985 | N65: 103.7 | P65: 103.7 | W65: 1985 | Z65: 0 | AG65: 2006 | AH65: 5.298636211 | AJ65: 5.298636211
A66: MERCHANTABILITY or FITNESS FOR A PARTICULAR PURPOSE. See the | B66: (1) | C66: 1995 | D66: 381.1 | E66: =(C66*$C$37)+$D$37 -> 381.325 | F66: 381.1 | M66: 1986 | N66: 102.6 | P66: 102.6 | W66: 1986 | Z66: 0 | AG66: 2007 | AH66: 5.716754912 | AJ66: 5.716754912
A67: GNU General Public License for more details. | B67: (1) | C67: 1996 | D67: 381.7 | E67: 383.5678571 | F67: 381.7 | M67: 1987 | N67: 106.4 | P67: 106.4 | W67: 1987 | Z67: 0 | AG67: 2008 | AJ67: 5.716754912
B68: (2) | C68: 1997 | D68: 386.5 | E68: 385.8107143 | F68: 386.5 | M68: 1988 | N68: 116.3 | P68: 116.3 | W68: 1988 | Z68: 0 | AG68: 2009 | AJ68: 5.716754912
A69: You should have received a copy of the GNU General Public License | B69: (2) | C69: 1998 | D69: 389.5 | E69: 388.0535714 | F69: 389.5 | M69: 1989 | N69: 123 | P69: 123 | W69: 1989 | Z69: 0 | AG69: 2010 | AJ69: 5.716754912
A70: along with this program. If not, see <https://www.gnu.org/licenses/>. | B70: (3) | C70: 1999 | D70: 390.6 | E70: 390.2964286 | F70: 390.6 | M70: 1990 | N70: 123.6 | P70: 123.6 | W70: 1990 | X70: 12.85 | Z70: 12.85 | AG70: 2011 | AJ70: 5.716754912
B71: (4) | C71: 2000 | D71: 394.1 | E71: 392.5392857 | F71: 394.1 | M71: 1991 | N71: 125.6 | P71: 125.6 | W71: 1991 | X71: 13.3 | Z71: 13.3 | AG71: 2012 | AJ71: 5.716754912
B72: (5) | C72: 2001 | D72: 394.3 | E72: 394.7821429 | F72: 394.3 | M72: 1992 | N72: 125.9 | P72: 125.9 | W72: 1992 | X72: 13.7 | Z72: 13.7 | AG72: 2013 | AJ72: 5.716754912
B73: (5) | C73: 2002 | D73: 395.6 | E73: 397.025 | F73: 395.6 | M73: 1993 | N73: 128.2 | P73: 128.2 | W73: 1993 | X73: 13.97 | Z73: 13.97 | AG73: 2014 | AJ73: 5.716754912
B74: (6) | C74: 2003 | D74: 402 | F74: 402 | M74: 1994 | N74: 132.1 | P74: 132.1 | W74: 1994 | X74: 14.33 | Z74: 14.33 | AG74: 2015 | AJ74: 5.716754912
B75: (6) | C75: 2004 | D75: 444.2 | F75: 444.2 | M75: 1995 | N75: 139.5 | P75: 139.5 | W75: 1995 | X75: 14.86 | Z75: 14.86
B76: (6) | C76: 2005 | D76: 468.2 | F76: 468.2 | M76: 1996 | N76: 142.1 | P76: 142.1 | W76: 1996 | X76: 15.37 | Z76: 15.37
B77: (7) | C77: 2006 | D77: 499.6 | F77: 499.6 | M77: 1997 | N77: 147.1 | P77: 147.1 | W77: 1997 | X77: 15.78 | Z77: 15.78
B78: (7) | C78: 2007 | D78: 525.4 | F78: 525.4 | M78: 1998 | N78: 148.7 | P78: 148.7 | W78: 1998 | X78: 16.23 | Z78: 16.23
B79: (7) | C79: 2008 | D79: 575.4 | F79: 575.4 | M79: 1999 | N79: 149.7 | P79: 149.7 | W79: 1999 | X79: 16.4 | Z79: 16.4
B80: (7) | C80: 2009 | D80: 521.9 | F80: 521.9 | M80: 2000 | N80: 156.7 | P80: 156.7 | W80: 2000 | X80: 17.09 | Z80: 17.09
C81: 2010 | D81: 550.8 | F81: 550.8 | H81: 40391 | M81: 2001 | N81: 158.4 | P81: 158.4 | W81: 2001 | X81: 17.57 | Z81: 17.57
C82: 2011 | D82: 585.7 | F82: 585.7 | M82: 2002 | N82: 157.3 | O82: 155.4254545 | P82: 157.3 | W82: 2002 | X82: 17.97 | Z82: 17.97
C83: 2012 | D83: 584.6 | F83: 584.6 | M83: 2003 | N83: 164.6 | O83: 165.7309091 | P83: 164.6 | W83: 2003 | X83: 18.5 | Z83: 18.5
C84: 2013 | D84: 567.3 | F84: 567.3 | M84: 2004 | N84: 172.8 | O84: 176.0363636 | P84: 172.8 | W84: 2004 | X84: 19.17 | Y84: 18.995 | Z84: 19.17
C85: 2014 | D85: 576.1 | F85: 576.1 | M85: 2005 | N85: 187.3 | O85: 186.3418182 | P85: 187.3 | W85: 2005 | X85: 19.67 | Y85: 19.29357143 | Z85: 19.67
C86: 2015 | D86: 556.8 | F86: 556.8 | M86: 2006 | N86: 196.8 | O86: 196.6472727 | P86: 196.8 | W86: 2006 | X86: 19.6 | Y86: 19.59214286 | Z86: 19.6
C87: 2016 | D87: 541.7 | F87: 541.7 | M87: 2007 | N87: 203.3 | O87: 206.9527273 | P87: 203.3 | W87: 2007 | X87: 19.55 | Y87: 19.89071429 | Z87: 19.55
M88: 2008 | N88: 228.2 | O88: 217.2581818 | P88: 228.2 | W88: 2008 | X88: 19.5 | Y88: 20.18928571 | Z88: 19.5
M89: 2009 | N89: 224.7 | O89: 227.5636364 | P89: 224.7 | W89: 2009 | X89: 20.3 | Y89: 20.48785714 | Z89: 20.3 | AB89: Jun 09
M90: 2010 | N90: 233.7 | O90: 237.8690909 | P90: 233.7 | W90: 2010 | X90: 21.07 | Y90: 20.78642857 | Z90: 21.07
M91: 2011 | N91: 249.3 | O91: 248.1745455 | P91: 252.1 | R91: 252.1 for 2014 | W91: 2011 | X91: 21.46 | Y91: 21.085 | Z91: 21.46
M92: 2012 | N92: 260.3 | P92: 260.3 | W92: 2012 | X92: 21.45 | Z92: 21.45
M93: 2013 | N93: 263.9 | P93: 263.9 | W93: 2013 | X93: 21.4 | Z93: 21.4
M94: 2014 | N94: 269.2 | P94: 269.2 | W94: 2014 | X94: 21.49 | Z94: 21.49
M95: 2015 | N95: 264.8 | P95: 264.8 | W95: 2015 | X95: 21.76 | Z95: 21.76
M96: 2016 | N96: 267.1 | P96: 267.1 | W96: 2016 | X96: 22.71 | Z96: 22.71

Sheet aspen
G1: © 2016-2019 Alliance for Sustainable Energy, LLC
B2: Sensitivity Block: | C2: MASSFLOW
B3: Filename: | C3: C:\AP10\InSitu-AP10.bkp | G3: This program is free software: you can redistribute it and/or modify
B4: Date: | C4: 2019-02-20 | G4: it under the terms of the GNU General Public License as published by
B5: Time: | C5: 10:24:09 | G5: the Free Software Foundation, either version 3 of the License, or
B6: USERKEY LIST | C6: ASPEN ID | D6: Value | E6: Units | G6: (at your option) any later version.
B7: CMIX.SO2.A100.112 | C7: CEFFHC | D7: 87.9401086 | E7: Check Sensitivity Block
B8: CMIX.WATER.A100.100 | C8: CEFFHT | D8: 94.6850003 | E8: Check Sensitivity Block | G8: This program is distributed in the hope that it will be useful,
B9: CMIX.WATER.A100.123 | C9: CEFFHYP | D9: 91.4159755 | E9: Check Sensitivity Block | G9: but WITHOUT ANY WARRANTY; without even the implied warranty of
B10: CMIX.WATER.A100.124 | C10: CEFFORG | D10: 44.2806397 | E10: Check Sensitivity Block | G10: MERCHANTABILITY or FITNESS FOR A PARTICULAR PURPOSE. See the
B11: CMIX.WATER.A600.600 | C11: CLOSSAQU | D11: 2.09540777 | E11: Check Sensitivity Block | G11: GNU General Public License for more details.
B12: CMIX.WATER.a600.618 | C12: CMIX.SO2.A100.112 | D12: 105.847033 | E12: LB/HR
B13: CMIX.WATER.a600.635 | C13: CMIX.WATER.A100.100 | D13: 20413.1481 | E13: LB/HR | G13: You should have received a copy of the GNU General Public License
B14: CMIX.WATER.A700.600 | C14: CMIX.WATER.A100.123 | D14: 30000 | E14: LB/HR | G14: along with this program. If not, see <https://www.gnu.org/licenses/>.
B15: CMIX.WATER.a700.704 | C15: CMIX.WATER.A100.124 | D15: 22401.894 | E15: LB/HR
B16: CMIX.WATER.A700.710 | C16: CMIX.WATER.A600.600 | D16: 7053.63112 | E16: LB/HR
B17: CMIX.WATER.a700.713 | C17: CMIX.WATER.A600.618 | D17: 7051.04469 | E17: LB/HR
B18: CMIX.WATER.A800.334 | C18: CMIX.WATER.A600.635 | D18: 2.49579021 | E18: LB/HR
B19: CMIX.WATER.A800.377 | C19: CMIX.WATER.A700.600 | D19: 7053.63112 | E19: LB/HR
B20: CMIX.WATER.A800.424 | C20: CMIX.WATER.A700.704 | D20: 5187.49001 | E20: LB/HR
B21: CMIX.WATER.A800.474 | C21: CMIX.WATER.A700.710 | D21: 52336.366 | E21: LB/HR
B22: CMIX.WATER.A800.576 | C22: CMIX.WATER.A700.713 | D22: 10840.6052 | E22: LB/HR
B23: CMIX.WATER.A800.813 | C23: CMIX.WATER.A800.334 | D23: 74265.7428 | E23: LB/HR
B24: CMIX.WATER.A800.815 | C24: CMIX.WATER.A800.377 | D24: 19549.7494 | E24: LB/HR
B25: CMIX.WATER.A800.823 | C25: CMIX.WATER.A800.424 | D25: 4645.92148 | E25: LB/HR
B26: CMIX.WATER.A800.825 | C26: CMIX.WATER.A800.474 | D26: 79.6184857 | E26: LB/HR
B27: CMIX_MOLE.hydrogen.A200.a201.202 | C27: CMIX.WATER.A800.576 | D27: 13949.2345 | E27: LB/HR
B28: CMIX_MOLE.Hydrogen.A200.a211.202p | C28: CMIX.WATER.A800.813 | D28: 29441.4691 | E28: LB/HR
B29: CMIX_MOLE.hydrogen.A200.a261.264 | C29: CMIX.WATER.A800.815 | D29: 0.0001801528 | E29: LB/HR
B30: CMIX_MOLE.hydrogen.a300.a310.321 | C30: CMIX.WATER.A800.823 | D30: 40761.2028 | E30: LB/HR
B31: CMIX_MOLE.hydrogen.a300.a360.a385.388 | C31: CMIX.WATER.A800.825 | D31: 4063.07116 | E31: LB/HR
B32: CMIX_MOLE.hydrogen.a300.a360.a385.390 | C32: CMIX_MOLE.HYDROGEN.A200.A201.202 | D32: 10300.4526 | E32: LBMOL/HR
B33: CMIX_MOLE.hydrogen.a400.a410.422 | C33: CMIX_MOLE.HYDROGEN.A200.A211.202P | D33: 0 | E33: Missing Stream
B34: CMIX_MOLE.hydrogen.a400.a410.435 | C34: CMIX_MOLE.HYDROGEN.A200.A261.264 | D34: 0 | E34: Missing Stream
B35: CMIX_MOLE.hydrogen.a400.a410.443 | C35: CMIX_MOLE.HYDROGEN.A300.A310.321 | D35: 9107.06286 | E35: LBMOL/HR
B36: CMIX_MOLE.hydrogen.a400.a460.472 | C36: CMIX_MOLE.HYDROGEN.A300.A360.A385.388 | D36: 2744.69394 | E36: LBMOL/HR
B37: CMIX_MOLE.hydrogen.a400.a460.485 | C37: CMIX_MOLE.HYDROGEN.A300.A360.A385.390 | D37: 2305.54291 | E37: LBMOL/HR
B38: CMIX_MOLE.hydrogen.a400.a460.493 | C38: CMIX_MOLE.HYDROGEN.A400.A410.422 | D38: 4808.26922 | E38: LBMOL/HR
B39: moleflmx.a200.a201.202 | C39: CMIX_MOLE.HYDROGEN.A400.A410.435 | D39: 1627.28589 | E39: LBMOL/HR
B40: moleflmx.a200.a211.202p | C40: CMIX_MOLE.HYDROGEN.A400.A410.443 | D40: 5525.03163 | E40: LBMOL/HR
B41: moleflmx.A200.a261.264 | C41: CMIX_MOLE.HYDROGEN.A400.A460.472 | D41: 770.243123 | E41: LBMOL/HR
B42: moleflmx.a300.a310.321 | C42: CMIX_MOLE.HYDROGEN.A400.A460.485 | D42: 440.053889 | E42: LBMOL/HR
B43: moleflmx.a300.a360.a385.388 | C43: CMIX_MOLE.HYDROGEN.A400.A460.493 | D43: 1014.20658 | E43: LBMOL/HR
B44: moleflmx.a300.a360.a385.390 | C44: D301AFT2 | D44: 102.919114 | E44: Check Sensitivity Block
B45: moleflmx.a400.a410.422 | C45: D301DFT | D45: 11.447287 | E45: Check Sensitivity Block
B46: moleflmx.a400.a410.443 | C46: D302AFT2 | D46: 128.579668 | E46: Check Sensitivity Block
B47: MOLEFLMX.A500.590 | C47: D302DFT | D47: 12.7950121 | E47: Check Sensitivity Block
B48: MOLEFLMX.A800.A830.836 | C48: DENAQPRD | D48: 0 | E48: Check Sensitivity Block
B49: PRES.A200.A201.208 | C49: DENLQPRD | D49: 0 | E49: Check Sensitivity Block
B50: pres.a200.a201.208 | C50: EFFHHV | D50: 54.1177387 | E50: Check Sensitivity Block
B51: PRES.A200.A201.CHAR-COM.226 | C51: EFFLHV | D51: 54.3576615 | E51: Check Sensitivity Block
B52: PRES.A200.A211.211p | C52: EFHHVNG | D52: 54.0876983 | E52: Check Sensitivity Block
B53: pres.a200.a211.211p | C53: EFHVNGEL | D53: 55.2275792 | E53: Check Sensitivity Block
B54: PRES.A200.A211.CHAR-COM.226p | C54: EFLHVNG | D54: 54.3285503 | E54: Check Sensitivity Block
B55: pres.a200.a261.261 | C55: EFLVNGEL | D55: 55.5525349 | E55: Check Sensitivity Block
B56: PRES.A200.A261.268 | C56: ELECHV | D56: -17973508.8 | E56: Check Sensitivity Block
B57: PRES.A200.A261.CATREGEN.286 | C57: FCEFNGFR | D57: 0 | E57: Check Sensitivity Block
B58: pres.a300.a310.312 | C58: FDMSTR | D58: 0.1 | E58: Check Sensitivity Block
B59: pres.a300.a310.321 | C59: FEEDA | D59: 0.92 | E59: Check Sensitivity Block
B60: pres.a300.a360.a365.372 | C60: FEEDC | D60: 50.94 | E60: Check Sensitivity Block
B61: pres.a400.a410.418 | C61: FEEDH | D61: 6.04 | E61: Check Sensitivity Block
B62: pres.a400.A410.435 | C62: FEEDN | D62: 0.17 | E62: Check Sensitivity Block
B63: pres.a400.A410.440 | C63: FEEDO | D63: 41.9 | E63: Check Sensitivity Block
B64: pres.a400.A410.442 | C64: FEEDS | D64: 0.03 | E64: Check Sensitivity Block
B65: pres.a400.A410.443 | C65: FUELCEFF | D65: 40.3985492 | E65: Check Sensitivity Block
B66: pres.a400.A460.485 | C66: FUELCEFN | D66: 40.3858157 | E66: Check Sensitivity Block
B67: pres.a400.A460.490 | C67: HCRATORG | D67: 1.46887293 | E67: Check Sensitivity Block
B68: pres.a400.A460.492 | C68: IFLAGSOT | D68: 0 | E68: Check Sensitivity Block
B69: pres.a400.A460.493 | C69: INCIS | D69: 0 | E69: Check Sensitivity Block
B70: pres.a500.590 | C70: INMIX | D70: 20413.1481 | E70: Check Sensitivity Block
B71: STRM.502 | C71: INNC | D71: 183718.333 | E71: Check Sensitivity Block
B72: STRM.A100.100 | C72: INWAT | D72: 20413.1481 | E72: Check Sensitivity Block
B73: STRM.A100.101 | C73: MOLEFLMX.A200.A201.202 | D73: 14529.8628 | E73: LBMOL/HR
B74: STRM.A100.112 | C74: MOLEFLMX.A200.A211.202P | D74: 0 | E74: Missing Stream
B75: strm.A100.HV-100.basis | C75: MOLEFLMX.A200.A261.264 | D75: 0 | E75: Missing Stream
B76: STRM.A200.201 | C76: MOLEFLMX.A300.A310.321 | D76: 14719.2675 | E76: LBMOL/HR
B77: strm.a200.a201.201 | C77: MOLEFLMX.A300.A360.A385.388 | D77: 4121.45898 | E77: LBMOL/HR
B78: strm.A200.a201.202 | C78: MOLEFLMX.A300.A360.A385.390 | D78: 2328.83122 | E78: LBMOL/HR
B79: strm.A200.a201.205 | C79: MOLEFLMX.A400.A410.422 | D79: 5545.28102 | E79: LBMOL/HR
B80: STRM.A200.a201.210 | C80: MOLEFLMX.A400.A410.443 | D80: 6138.91544 | E80: LBMOL/HR
B81: STRM.A200.A201.217 | C81: MOLEFLMX.A500.590 | D81: 3289.2322 | E81: LBMOL/HR
B82: STRM.A200.A201.CHAR-COM.220 | C82: MOLEFLMX.A800.A830.836 | D82: 6071.65261 | E82: LBMOL/HR
B83: STRM.A200.A201.CHAR-COM.235 | C83: PCTODIES | D83: 0.00106225677 | E83: Check Sensitivity Block
B84: strm.a200.a211.201p | C84: PCTOGASL | D84: 0.781582717 | E84: Check Sensitivity Block
B85: strm.A200.a211.202p | C85: PCTOPROD | D85: 0.553653913 | E85: Check Sensitivity Block
B86: strm.A200.a211.205p | C86: PRES.A200.A201.208 | D86: 121 | E86: PSI
B87: STRM.A200.A211.217P | C87: PRES.A200.A201.208 | D87: 121 | E87: PSI
B88: STRM.A200.A211.CHAR-COM.220p | C88: PRES.A200.A201.CHAR-COM.226 | D88: 116.922 | E88: PSI
B89: STRM.A200.A211.CHAR-COM.235P | C89: PRES.A200.A211.211P | D89: 0 | E89: Missing Stream
B90: STRM.A200.A261.264 | C90: PRES.A200.A211.211P | D90: 0 | E90: Missing Stream
B91: strm.A200.a261.265 | C91: PRES.A200.A211.CHAR-COM.226P | D91: 0 | E91: Missing Stream
B92: STRM.A200.a261.270 | C92: PRES.A200.A261.261 | D92: 0 | E92: Missing Stream
B93: STRM.A200.A261.277 | C93: PRES.A200.A261.268 | D93: 0 | E93: Missing Stream
B94: STRM.A200.A261.CATREGEN.280 | C94: PRES.A200.A261.CATREGEN.286 | D94: 0 | E94: Missing Stream
B95: STRM.A200.A261.CATREGEN.295 | C95: PRES.A300.A310.312 | D95: 113.921963 | E95: PSI
B96: STRM.A300.335 | C96: PRES.A300.A310.321 | D96: 100.921963 | E96: PSI
B97: strm.a300.390 | C97: PRES.A300.A360.A365.372 | D97: 87.9219634 | E97: PSI
B98: strm.a300.a310.311 | C98: PRES.A400.A410.418 | D98: 1815 | E98: PSI
B99: strm.a300.a310.312 | C99: PRES.A400.A410.435 | D99: 245 | E99: PSI
B100: strm.a300.a310.318 | C100: PRES.A400.A410.440 | D100: 1795 | E100: PSI
B101: strm.a300.a310.321 | C101: PRES.A400.A410.442 | D101: 1793 | E101: PSI
B102: strm.a300.a310.322 | C102: PRES.A400.A410.443 | D102: 1900 | E102: PSI
B103: STRM.a300.a310.323 | C103: PRES.A400.A460.485 | D103: 245 | E103: PSI
B104: strm.a300.a310.327 | C104: PRES.A400.A460.490 | D104: 1995 | E104: PSI
B105: strm.a300.a310.333 | C105: PRES.A400.A460.492 | D105: 1893 | E105: PSI
B106: strm.a300.a310.334 | C106: PRES.A400.A460.493 | D106: 2000 | E106: PSI
B107: strm.a300.a310.337 | C107: PRES.A500.590 | D107: 265.506625 | E107: PSI
B108: strm.a300.a310.343 | C108: QA100 | D108: 0 | E108: Check Sensitivity Block
B109: strm.A300.A310.350 | C109: QA201 | D109: 247993768 | E109: Check Sensitivity Block
B110: STRM.a300.a360.a365.370 | C110: QA201CAT | D110: 258580315 | E110: Check Sensitivity Block
B111: strm.a300.a360.a365.813 | C111: QA211 | D111: 0 | E111: Check Sensitivity Block
B112: strm.a300.a360.a385.377 | C112: QA211SND | D112: 0 | E112: Check Sensitivity Block
B113: strm.a300.a360.a385.388 | C113: QA251 | D113: 0 | E113: Check Sensitivity Block
B114: STRM.a300.a360.a385.390 | C114: QA261 | D114: 0 | E114: Check Sensitivity Block
B115: strm.a400.453 | C115: QA261CAT | D115: 0 | E115: Check Sensitivity Block
B116: strm.a400.456 | C116: QA310 | D116: 68111568 | E116: Check Sensitivity Block
B117: STRM.a400.a410.410 | C117: QA360 | D117: 20948190.4 | E117: Check Sensitivity Block
B118: strm.a400.a410.412 | C118: QA410 | D118: 10200412 | E118: Check Sensitivity Block
B119: STRM.a400.a410.417 | C119: QA450 | D119: 21198469.5 | E119: Check Sensitivity Block
B120: strm.a400.a410.422 | C120: QA460 | D120: 3761763.4 | E120: Check Sensitivity Block
B121: strm.a400.a410.424 | C121: QA500 | D121: 145942414 | E121: Check Sensitivity Block
B122: strm.a400.a410.428 | C122: QA600 | D122: 275630976 | E122: Check Sensitivity Block
B123: strm.a400.a410.429 | C123: QA700 | D123: 0 | E123: Check Sensitivity Block
B124: strm.a400.a410.430 | C124: QA800 | D124: 53200032.1 | E124: Check Sensitivity Block
B125: strm.a400.a410.431 | C125: QPINCH | D125: 846987594 | E125: Check Sensitivity Block
B126: strm.a400.A410.435 | C126: QPNCBT | D126: 846987594 | E126: Check Sensitivity Block
B127: strm.a400.A410.442 | C127: STRM.502 | D127: 39.9546303 | E127: LB/HR
B128: strm.a400.a450.429 | C128: STRM.A100.100 | D128: 204131.481 | E128: LB/HR
B129: STRM.a400.a450.451 | C129: STRM.A100.101 | D129: 204131.481 | E129: LB/HR
B130: strm.a400.a450.452 | C130: STRM.A100.112 | D130: 891004.841 | E130: LB/HR
B131: strm.a400.a450.453 | C131: STRM.A100.HV-100.BASIS | D131: 183718.333 | E131: LB/HR
B132: strm.a400.a450.454 | C132: STRM.A200.201 | D132: 204131.481 | E132: LB/HR
B133: STRM.a400.a450.455 | C133: STRM.A200.A201.201 | D133: 204131.481 | E133: LB/HR
B134: strm.a400.a450.456 | C134: STRM.A200.A201.202 | D134: 157363.224 | E134: LB/HR
B135: strm.a400.a450.460 | C135: STRM.A200.A201.205 | D135: 1384495.81 | E135: LB/HR
B136: strm.a400.a450.479 | C136: STRM.A200.A201.210 | D136: 4153.22058 | E136: LB/HR
B137: STRM.a400.a460.460 | C137: STRM.A200.A201.217 | D137: 152.2986 | E137: LB/HR
B138: strm.a400.a460.462 | C138: STRM.A200.A201.CHAR-COM.220 | D138: 1.604276e-05 | E138: LB/HR
B139: STRM.a400.a460.467 | C139: STRM.A200.A201.CHAR-COM.235 | D139: 2031.65301 | E139: LB/HR
B140: strm.a400.a460.472 | C140: STRM.A200.A211.201P | D140: 0 | E140: Missing Stream
B141: strm.a400.a460.474 | C141: STRM.A200.A211.202P | D141: 0 | E141: Missing Stream
B142: strm.a400.a460.478 | C142: STRM.A200.A211.205P | D142: 0 | E142: Missing Stream
B143: strm.a400.a460.479 | C143: STRM.A200.A211.217P | D143: 0 | E143: Missing Stream
B144: strm.a400.a460.481 | C144: STRM.A200.A211.CHAR-COM.220P | D144: 0 | E144: Missing Stream
B145: strm.a400.A460.485 | C145: STRM.A200.A211.CHAR-COM.235P | D145: 0 | E145: Missing Stream
B146: strm.a400.A460.492 | C146: STRM.A200.A261.264 | D146: 0 | E146: Missing Stream
B147: strm.A500.590 | C147: STRM.A200.A261.265 | D147: 0 | E147: Missing Stream
B148: STRM.a500.a560.a565.569 | C148: STRM.A200.A261.270 | D148: 0 | E148: Missing Stream
B149: STRM.A600.600 | C149: STRM.A200.A261.277 | D149: 0 | E149: Missing Stream
B150: STRM.A600.604 | C150: STRM.A200.A261.CATREGEN.280 | D150: 0 | E150: Missing Stream
B151: STRM.A600.633 | C151: STRM.A200.A261.CATREGEN.295 | D151: 0 | E151: Missing Stream
B152: STRM.A600.644 | C152: STRM.A300.335 | D152: 42.539674 | E152: LB/HR
B153: STRM.A600.A600BF.627 | C153: STRM.A300.390 | D153: 5486.3123 | E153: LB/HR
B154: STRM.A600.A600BF.629 | C154: STRM.A300.A310.311 | D154: 328798.36 | E154: LB/HR
B155: STRM.A600.A600WTR.618 | C155: STRM.A300.A310.312 | D155: 397404.059 | E155: LB/HR
B156: STRM.A700.715 | C156: STRM.A300.A310.318 | D156: 19167.512 | E156: LB/HR
B157: temp.a200.a201.208 | C157: STRM.A300.A310.321 | D157: 199442.721 | E157: LB/HR
B158: temp.a200.a201.char-com.205 | C158: STRM.A300.A310.322 | D158: 1174439.39 | E158: LB/HR
B159: temp.a200.a201.char-com.226 | C159: STRM.A300.A310.323 | D159: 1097185.14 | E159: LB/HR
B160: temp.a200.a211.205p | C160: STRM.A300.A310.327 | D160: 976478.124 | E160: LB/HR
B161: temp.a200.a211.211p | C161: STRM.A300.A310.333 | D161: 87773.211 | E161: LB/HR
B162: temp.a200.a211.char-com.226p | C162: STRM.A300.A310.334 | D162: 77249.2503 | E162: LB/HR
B163: temp.a200.a261.261 | C163: STRM.A300.A310.337 | D163: 52064.9265 | E163: LB/HR
B164: temp.a200.a261.265 | C164: STRM.A300.A310.343 | D164: 48400.7997 | E164: LB/HR
B165: temp.a200.a261.catregen.286 | C165: STRM.A300.A310.350 | D165: 8315.72916 | E165: LB/HR
B166: temp.a300.a310.312 | C166: STRM.A300.A360.A365.370 | D166: 77962.996 | E166: LB/HR
B167: temp.a300.a310.317 | C167: STRM.A300.A360.A365.813 | D167: 29562.1964 | E167: LB/HR
B168: temp.a300.a360.a365.370 | C168: STRM.A300.A360.A385.377 | D168: 19642.9744 | E168: LB/HR
B169: temp.a300.a360.a365.372 | C169: STRM.A300.A360.A385.388 | D169: 58320.0219 | E169: LB/HR
B170: VOLFLMX.453 | C170: STRM.A300.A360.A385.390 | D170: 5486.3123 | E170: LB/HR
B171: VOLFLMX.456 | C171: STRM.A400.453 | D171: 30956.6306 | E171: LB/HR
B172: VOLFLMX.A200.A201.208 | C172: STRM.A400.456 | D172: 12768.7556 | E172: LB/HR
B173: VOLFLMX.A200.A201.CHAR-COM.226 | C173: STRM.A400.A410.410 | D173: 52064.9265 | E173: LB/HR
B174: VOLFLMX.A200.A211.211p | C174: STRM.A400.A410.412 | D174: 52064.9265 | E174: LB/HR
B175: VOLFLMX.A200.A211.CHAR-COM.226p | C175: STRM.A400.A410.417 | D175: 78933.1945 | E175: LB/HR
B176: VOLFLMX.A200.A251.253 | C176: STRM.A400.A410.422 | D176: 28367.8638 | E176: LB/HR
B177: VOLFLMX.A200.A261.268 | C177: STRM.A400.A410.424 | D177: 4682.05844 | E177: LB/HR
B178: VOLFLMX.A200.A261.CATREGEN.286 | C178: STRM.A400.A410.428 | D178: 799.481899 | E178: LB/HR
B179: VOLFLMX.a300.a310.318 | C179: STRM.A400.A410.429 | D179: 45083.7906 | E179: LB/HR
B180: VOLFLMX.a300.a310.320 | C180: STRM.A400.A410.430 | D180: 0 | E180: LB/HR
B181: VOLFLMX.a300.a310.324 | C181: STRM.A400.A410.431 | D181: 5371.91342 | E181: LB/HR
B182: VOLFLMX.a300.a310.329 | C182: STRM.A400.A410.435 | D182: 3872.31942 | E182: LB/HR
B183: VOLFLMX.a300.a310.331 | C183: STRM.A400.A410.442 | D183: 26868.268 | E183: LB/HR
B184: VOLFLMX.a300.a310.332 | C184: STRM.A400.A450.429 | D184: 45083.7906 | E184: LB/HR
B185: VOLFLMX.a300.a360.a385.376 | C185: STRM.A400.A450.451 | D185: 45083.7906 | E185: LB/HR
B186: VOLFLMX.a300.a360.a385.377 | C186: STRM.A400.A450.452 | D186: 588.863786 | E186: LB/HR
B187: VOLFLMX.a300.a360.a385.387 | C187: STRM.A400.A450.453 | D187: 30956.6306 | E187: LB/HR
B188: VOLFLMX.a400.a410.412 | C188: STRM.A400.A450.454 | D188: 21475.8482 | E188: LB/HR
B189: VOLFLMX.a400.a410.422 | C189: STRM.A400.A450.455 | D189: 21475.8482 | E189: LB/HR
B190: VOLFLMX.a400.a410.428 | C190: STRM.A400.A450.456 | D190: 12768.7556 | E190: LB/HR
B191: VOLFLMX.a400.a460.462 | C191: STRM.A400.A450.460 | D191: 8707.09259 | E191: LB/HR
B192: VOLFLMX.a400.a460.472 | C192: STRM.A400.A450.479 | D192: 7937.44102 | E192: LB/HR
B193: VOLFLMX.a400.a460.478 | C193: STRM.A400.A460.460 | D193: 8707.09259 | E193: LB/HR
B194: VOLFLMX.a500.a560.a575.576 | C194: STRM.A400.A460.462 | D194: 8706.95561 | E194: LB/HR
B195: VOLFLMX.A800.815 | C195: STRM.A400.A460.467 | D195: 13650.7051 | E195: LB/HR
B196: VOLFLMX.A800.866 | C196: STRM.A400.A460.472 | D196: 5227.39988 | E196: LB/HR
B197: VOLFLMX.A800.880 | C197: STRM.A400.A460.474 | D197: 79.6228756 | E197: LB/HR
B198: VOLFLMX.A800.A810.810 | C198: STRM.A400.A460.478 | D198: 406.241329 | E198: LB/HR
B199: VOLFLMX.a800.a810.813 | C199: STRM.A400.A460.479 | D199: 7937.44102 | E199: LB/HR
B200: VOLFLMX.A800.A810.822A | C200: STRM.A400.A460.481 | D200: 1330.7987 | E200: LB/HR
... 79 more rows

Sheet aspenqw
K1: © 2016-2019 Alliance for Sustainable Energy, LLC
B3: Filename: | C3: C:\AP10\InSitu-AP10.bkp | K3: This program is free software: you can redistribute it and/or modify
B4: Date: | C4: 2019-02-20 | K4: it under the terms of the GNU General Public License as published by
B5: Time: | C5: 10:24:09 | K5: the Free Software Foundation, either version 3 of the License, or
C6: Heat Streams | D6: Value | E6: Units | G6: Work Streams | H6: Value | I6: Units | K6: (at your option) any later version.
C7: A100.A100DRYR.QM104 | D7: -16064081.7 | E7: BTU/HR | G7: A100.A100DWPT.W-K110 | H7: 451.143479 | I7: HP
C8: A100.A100DRYR.QM104B | D8: 74.999729 | E8: BTU/HR | G8: A100.A100DWPT.W-P130 | H8: 17.4838993 | I8: HP | K8: This program is distributed in the hope that it will be useful,
C9: A100.A100DWPT.QB65 | D9: 8783182.09 | E9: BTU/HR | G9: A200.A201.CHAR-COM.W-K202 | H9: 25041.264 | I9: HP | K9: but WITHOUT ANY WARRANTY; without even the implied warranty of
C10: A100.A121DWPT.Q-H125 | D10: 24259523.2 | E10: BTU/HR | G10: A200.A201.STM-PREP.W-P210 | H10: 2.59329662 | I10: HP | K10: MERCHANTABILITY or FITNESS FOR A PARTICULAR PURPOSE. See the
C11: A100.HV-100.QCOMB | D11: 1571406190 | E11: BTU/HR | G11: A200.A201.W-K201 | H11: 2260.74029 | I11: HP | K11: GNU General Public License for more details.
C12: A100.HV-100.QGROSS | D12: 1575912970 | E12: BTU/HR | G12: A300.A310.W-P318 | H12: 1.2978188 | I12: HP
C13: A100.HV-100.QNET | D13: 1467656020 | E13: BTU/HR | G13: A300.A310.W-P323 | H13: 43.1273836 | I13: HP | K13: You should have received a copy of the GNU General Public License
C14: A100.HV-100.QREJECT | D14: -1261698.47 | E14: BTU/HR | G14: A300.A310.W-P329 | H14: 2.58329244 | I14: HP | K14: along with this program. If not, see <https://www.gnu.org/licenses/>.
C15: A100.HV-100.QSHIFT | D15: 287185.335 | E15: BTU/HR | G15: A300.A310.W-P331 | H15: 1.2376005 | I15: HP
C16: A100.HV-100.QVAP-1 | D16: -104037355 | E16: BTU/HR | G16: A300.A310.W-P332 | H16: 0.555172225 | I16: HP
C17: A100.HV-100.QVAP-2 | D17: 108256952 | E17: BTU/HR | G17: A300.A360.A385.A390.W-F392 | H17: 52.1474842 | I17: HP
C18: A200.A201.CHAR-COM.Q-217DUM | D18: -31696.8553 | E18: BTU/HR | G18: A300.A360.A385.A390.WFDFN410 | H18: 73.1009667 | I18: HP
C19: A200.A201.CHAR-COM.QA-K202 | D19: 42712648.9 | E19: BTU/HR | G19: A300.A360.A385.A390.W-K390 | H19: 2514.13522 | I19: HP
C20: A200.A201.CHAR-COM.QC-M202 | D20: 393328.712 | E20: BTU/HR | G20: A300.A360.A385.A390.W-K390A | H20: 849.552646 | I20: HP
C21: A200.A201.CHAR-COM.Q-H208 | D21: 122123361 | E21: BTU/HR | G21: A300.A360.A385.A390.W-K390B | H21: 822.721194 | I21: HP
C22: A200.A201.CHAR-COM.Q-H208A | D22: 112898273 | E22: BTU/HR | G22: A300.A360.A385.A390.W-K390C | H22: 841.861376 | I22: HP
C23: A200.A201.CHAR-COM.Q-H208B | D23: 9225087.96 | E23: BTU/HR | G23: A300.A360.A385.W-K390 | H23: 2514.13522 | I23: HP
C24: A200.A201.CHAR-COM.Q-H209 | D24: -34188543.7 | E24: BTU/HR | G24: A300.A360.A385.W-P377 | H24: 0.317010398 | I24: HP
C25: A200.A201.CHAR-COM.Q-H209A | D25: -3547.39191 | E25: BTU/HR | G25: A400.A410.W-K412 | H25: 2372.04121 | I25: HP
C26: A200.A201.CHAR-COM.Q-H209B | D26: -34184996.3 | E26: BTU/HR | G26: A400.A410.W-K442 | H26: 234.028682 | I26: HP
C27: A200.A201.CHAR-COM.Q-R202 | D27: 14676560.2 | E27: BTU/HR | G27: A400.A410.W-P410 | H27: 220.670286 | I27: HP
C28: A200.A201.CHAR-COM.Q-S203 | D28: 1169.79786 | E28: BTU/HR | G28: A400.A450.W-P453 | H28: 0.494332407 | I28: HP
C29: A200.A201.CHAR-COM.Q-S204 | D29: -5.08448725e-08 | E29: BTU/HR | G29: A400.A450.W-P456 | H29: 1.18804719 | I29: HP
C30: A200.A201.CHAR-COM.QS205 | D30: 0 | E30: BTU/HR | G30: A400.A460.W-K462 | H30: 678.198334 | I30: HP
C31: A200.A201.CHAR-COM.Q-ST202 | D31: 258580315 | E31: BTU/HR | G31: A400.A460.W-K492 | H31: 40.8190219 | I31: HP
C32: A200.A201.CHAR-COM.Q-ST202A | D32: -258580315 | E32: BTU/HR | G32: A400.A460.W-P460 | H32: 87.6535178 | I32: HP
C33: A200.A201.CHAR-COM.Q-ST202B | D33: -258580315 | E33: BTU/HR | G33: A500.A510.A530.A545.W-K545 | H33: 1250.32095 | I33: HP
C34: A200.A201.CHAR-COM.Q-ST202C | D34: -258580315 | E34: BTU/HR | G34: A500.A510.W-K511 | H34: 2975.63456 | I34: HP
C35: A200.A201.CHAR-COM.Q-STM202 | D35: -258580315 | E35: BTU/HR | G35: A500.A560.A575.A580.WAFAN410 | H35: 52.1474842 | I35: HP
C36: A200.A201.CHAR-COM.QUSR200A | D36: -9094246.45 | E36: BTU/HR | G36: A500.A560.A575.A580.WFDFN410 | H36: 73.1009667 | I36: HP
C37: A200.A201.CHAR-COM.STMPINCH.Q-ST202C | D37: -258580315 | E37: BTU/HR | G37: A500.A560.A575.A580.W-K580 | H37: 3066.73789 | I37: HP
C38: A200.A201.CHAR-COM.STMPINCH.Q-ST202D | D38: 258580315 | E38: BTU/HR | G38: A500.A560.A575.A580.W-K580A | H38: 1036.91879 | I38: HP
C39: A200.A201.Q-H201 | D39: -75616638.6 | E39: BTU/HR | G39: A500.A560.A575.A580.W-K580B | H39: 1003.69404 | I39: HP
C40: A200.A201.Q-H201A | D40: -15464132.4 | E40: BTU/HR | G40: A500.A560.A575.A580.W-K580C | H40: 1026.12506 | I40: HP
C41: A200.A201.Q-H201B | D41: -60152506.2 | E41: BTU/HR | G41: A500.A560.A575.W-K580 | H41: 3066.73789 | I41: HP
C42: A200.A201.Q-R201 | D42: 14676560.2 | E42: BTU/HR | G42: A500.A560.A575.W-P576 | H42: 0.256435471 | I42: HP
C43: A200.A201.Q-S201 | D43: -1701.54108 | E43: BTU/HR | G43: A600.A600BF.WP603 | H43: 14.028059 | I43: HP
C44: A200.A201.Q-S202 | D44: -850.933727 | E44: BTU/HR | G44: A600.A600BL.WP604 | H44: 798.593187 | I44: HP
C45: A200.A201.STM-PREP.Q-H210 | D45: -5072203.43 | E45: BTU/HR | G45: A600.A600ST.W-602A | H45: -64638.371 | I45: HP
C46: A200.A201.STM-PREP.Q-H210B | D46: -1029339.76 | E46: BTU/HR | G46: A600.A600ST.WM602B | H46: -47442.0573 | I46: HP
C47: A200.A201.STM-PREP.Q-H210C | D47: -3718563.04 | E47: BTU/HR | G47: A600.A600ST.WM602C | H47: -25530.9239 | I47: HP
C48: A200.A201.STM-PREP.Q-H210C1 | D48: -324300.626 | E48: BTU/HR | G48: A600.A600ST.WP602 | H48: 12.1717708 | I48: HP
C49: A200.A201.STM-PREP.Q-H210D | D49: -406474.196 | E49: BTU/HR | G49: A600.A600ST.WTOTGEN | H49: -64638.371 | I49: HP
C50: A300.A310.HV-ORGLQ.QCOMB | D50: 240825930 | E50: BTU/HR | G50: A600.A600WTR.WP601 | H50: 0.417109778 | I50: HP
C51: A300.A310.HV-ORGLQ.QGROSS | D51: 241411466 | E51: BTU/HR | G51: A600.WM602SFT | H51: -64638.371 | I51: HP
C52: A300.A310.HV-ORGLQ.QNET | D52: 229609202 | E52: BTU/HR | G52: A700.W700A | H52: 395.823604 | I52: HP
C53: A300.A310.HV-ORGLQ.QREJECT | D53: 405202.512 | E53: BTU/HR | G53: A700.WM701 | H53: 146.046224 | I53: HP
C54: A300.A310.HV-ORGLQ.QSHIFT | D54: 2.16081217e-08 | E54: BTU/HR | G54: A700.WP701 | H54: 249.77738 | I54: HP
C55: A300.A310.HV-ORGLQ.QVAP-1 | D55: -11216727.8 | E55: BTU/HR | G55: A800.A810.A812.W-P812 | H55: 0.65356808 | I55: HP
C56: A300.A310.HV-ORGLQ.QVAP-2 | D56: 11802264.4 | E56: BTU/HR | G56: A800.A810.A822.W-P822 | H56: 0.142985674 | I56: HP
C57: A300.A310.HV-PRGAS.QCOMB | D57: 531498142 | E57: BTU/HR | G57: A800.A810.W-P810 | H57: 9.65745856 | I57: HP
C58: A300.A310.HV-PRGAS.QGROSS | D58: 532349432 | E58: BTU/HR | G58: A800.A810.W-P814 | H58: 0.653580395 | I58: HP
C59: A300.A310.HV-PRGAS.QNET | D59: 475753008 | E59: BTU/HR | G59: A800.A830.W-K831 | H59: 2220.04761 | I59: HP
C60: A300.A310.HV-PRGAS.QREJECT | D60: 779681.171 | E60: BTU/HR | G60: A800.A860.W-P860 | H60: 9.44291807 | I60: HP
C61: A300.A310.HV-PRGAS.QSHIFT | D61: -1.14142382e-07 | E61: BTU/HR | G61: A800.W-P815 | H61: 1.2080253e-07 | I61: HP
C62: A300.A310.HV-PRGAS.QVAP-1 | D62: -55745134.1 | E62: BTU/HR | G62: A800.W-P866 | H62: 1.87258821 | I62: HP
C63: A300.A310.HV-PRGAS.QVAP-2 | D63: 56596423.6 | E63: BTU/HR | G63: A900.W100 | H63: 468.627378 | I63: HP
C64: A300.A310.QA-H313 | D64: 73276797 | E64: BTU/HR | G64: A900.W200 | H64: 30333.679 | I64: HP
C65: A300.A310.QA-H320 | D65: 282244.259 | E65: BTU/HR | G65: A900.W300 | H65: 4709.4222 | I65: HP
C66: A300.A310.QC-H314 | D66: 12031214.3 | E66: BTU/HR | G66: A900.W400 | H66: 3931.25845 | I66: HP
C67: A300.A310.QCH-H316 | D67: 10362534.9 | E67: BTU/HR | G67: A900.W500 | H67: 7929.7658 | I67: HP
C68: A300.A310.QCH-H326 | D68: 13526059.5 | E68: BTU/HR | G68: A900.W600 | H68: 2125.1794 | I68: HP
C69: A300.A310.Q-H310 | D69: 88123597.3 | E69: BTU/HR | G69: A900.W700 | H69: 435.297597 | I69: HP
C70: A300.A310.Q-H312 | D70: 45480276.8 | E70: BTU/HR | G70: A900.W800 | H70: 2408.66886 | I70: HP
C71: A300.A310.Q-H312A | D71: 15790889 | E71: BTU/HR | G71: A900.WGEN | H71: -64638.371 | I71: HP
C72: A300.A310.Q-H312B | D72: 29689387.8 | E72: BTU/HR | G72: A900.WK601FAN | H72: 1238.80977 | I72: HP
C73: A300.A310.Q-H318 | D73: 2619261.82 | E73: BTU/HR | G73: A900.WKMXHOUT | H73: 1238.80977 | I73: HP
C74: A300.A310.Q-H318A | D74: 1406115.87 | E74: BTU/HR | G74: A900.WMISC | H74: 5234.18987 | I74: HP
C75: A300.A310.Q-H318B | D75: 1213145.95 | E75: BTU/HR | G75: A900.WNET | H75: -7062.28242 | I75: HP
C76: A300.A310.Q-H330 | D76: 0 | E76: BTU/HR | G76: A900.WPLANT | H76: 57576.0886 | I76: HP
C77: A300.A310.Q-S316 | D77: 865.197821 | E77: BTU/HR | G77: WNET | H77: -7062.28242 | I77: HP
C78: A300.A310.Q-S322 | D78: 27.4116776 | E78: BTU/HR
C79: A300.A310.QX-H315 | D79: 4544890.01 | E79: BTU/HR
C80: A300.A310.QX-H321 | D80: -4544890.01 | E80: BTU/HR
C81: A300.A360.A365.QA-H373 | D81: 11798910.4 | E81: BTU/HR
C82: A300.A360.A365.QC-H374 | D82: 3046052.14 | E82: BTU/HR
C83: A300.A360.A365.Q-H366 | D83: -8622169.66 | E83: BTU/HR
C84: A300.A360.A365.Q-H366A | D84: -5390216.47 | E84: BTU/HR
C85: A300.A360.A365.Q-H366B | D85: -3231953.18 | E85: BTU/HR
C86: A300.A360.A365.Q-H367 | D86: -730861.455 | E86: BTU/HR
C87: A300.A360.A365.Q-H369 | D87: -2921266.98 | E87: BTU/HR
C88: A300.A360.A365.Q-H372 | D88: 29622082.7 | E88: BTU/HR
C89: A300.A360.A365.Q-H372A | D89: 15835798 | E89: BTU/HR
C90: A300.A360.A365.Q-H372B | D90: 10175337.5 | E90: BTU/HR
C91: A300.A360.A365.Q-H372B1 | D91: 3610947.27 | E91: BTU/HR
C92: A300.A360.A385.A390.Q-410AIR | D92: -19474543.9 | E92: BTU/HR
C93: A300.A360.A385.A390.Q-410FDA | D93: -27299648.4 | E93: BTU/HR
C94: A300.A360.A385.A390.QA-K390 | D94: 3446468.94 | E94: BTU/HR
C95: A300.A360.A385.A390.QAK-410A | D95: 0 | E95: BTU/HR
C96: A300.A360.A385.A390.QAK-410B | D96: 1164520.32 | E96: BTU/HR
C97: A300.A360.A385.A390.QAK-410C | D97: 1109961.9 | E97: BTU/HR
C98: A300.A360.A385.A390.QAK-410D | D98: 1171986.71 | E98: BTU/HR
C99: A300.A360.A385.A390.QC-K390 | D99: 3641108.9 | E99: BTU/HR
C100: A300.A360.A385.A390.QHK-410A | D100: 0 | E100: BTU/HR
C101: A300.A360.A385.A390.QHK410A1 | D101: 0 | E101: BTU/HR
C102: A300.A360.A385.A390.QHK410A2 | D102: 0 | E102: BTU/HR
C103: A300.A360.A385.A390.QHK-410B | D103: 7.99066564e-08 | E103: BTU/HR
C104: A300.A360.A385.A390.QHK-410C | D104: 2.65325193e-08 | E104: BTU/HR
C105: A300.A360.A385.A390.QHK-410D | D105: 0 | E105: BTU/HR
C106: A300.A360.A385.A390.QHK410D1 | D106: 0 | E106: BTU/HR
C107: A300.A360.A385.A390.QHK410D2 | D107: 0 | E107: BTU/HR
C108: A300.A360.A385.A390.QKCW410A | D108: 0 | E108: BTU/HR
C109: A300.A360.A385.A390.QKCW410B | D109: 1290132 | E109: BTU/HR
C110: A300.A360.A385.A390.QKCW410C | D110: 1206394.96 | E110: BTU/HR
C111: A300.A360.A385.A390.QKCW410D | D111: 1144581.94 | E111: BTU/HR
C112: A300.A360.A385.QA-K390 | D112: 3446468.94 | E112: BTU/HR
C113: A300.A360.A385.QC-K390 | D113: 3641108.9 | E113: BTU/HR
C114: A300.Q0-M335 | D114: -1264.0353 | E114: BTU/HR
C115: A400.A410.H-410.QX-H410 | D115: -27318461 | E115: BTU/HR
C116: A400.A410.QA-H413 | D116: 2872900.45 | E116: BTU/HR
C117: A400.A410.QA-K412 | D117: 5679888.91 | E117: BTU/HR
C118: A400.A410.QC-410 | D118: 19510674.2 | E118: BTU/HR
C119: A400.A410.QC-H413 | D119: 2332994.8 | E119: BTU/HR
C120: A400.A410.QC-H4445 | D120: 619443.368 | E120: BTU/HR
C121: A400.A410.QF-H411M | D121: -21447616.7 | E121: BTU/HR
C122: A400.A410.Q-H412 | D122: 20400824 | E122: BTU/HR
C123: A400.A410.Q-H412A | D123: 8632170.55 | E123: BTU/HR
C124: A400.A410.Q-H412B | D124: 11768653.4 | E124: BTU/HR
C125: A400.A410.Q-S411 | D125: 2274864.97 | E125: BTU/HR
C126: A400.A410.Q-S412 | D126: 169869.658 | E126: BTU/HR
C127: A400.A410.QW-R410 | D127: 18891230.8 | E127: BTU/HR
C128: A400.A450.D-450-CN.QCN-D450 | D128: 14097297.6 | E128: BTU/HR
C129: A400.A450.D-450-CN.QCNMD450 | D129: -14097297.6 | E129: BTU/HR
C130: A400.A450.D-450-CN.QMCND450 | D130: -14097297.6 | E130: BTU/HR
C131: A400.A450.D-450-RB.QRB-D450 | D131: -6692229.99 | E131: BTU/HR
C132: A400.A450.D-450-RB.QRBMD450 | D132: 6692229.99 | E132: BTU/HR
C133: A400.A450.D-451-CN.QCN-D451 | D133: 2513160.59 | E133: BTU/HR
C134: A400.A450.D-451-CN.QCNMD451 | D134: -2513160.59 | E134: BTU/HR
C135: A400.A450.D-451-RB.QRB-D451 | D135: -2407446.23 | E135: BTU/HR
C136: A400.A450.D-451-RB.QRBMD451 | D136: 2407446.23 | E136: BTU/HR
C137: A400.A450.HV-DIESL.QCOMB | D137: 251765566 | E137: BTU/HR
C138: A400.A450.HV-DIESL.QGROSS | D138: 252262139 | E138: BTU/HR
C139: A400.A450.HV-DIESL.QNET | D139: 235578669 | E139: BTU/HR
C140: A400.A450.HV-DIESL.QREJECT | D140: 0.022807521 | E140: BTU/HR
C141: A400.A450.HV-DIESL.QSHIFT | D141: -0.0014001115 | E141: BTU/HR
C142: A400.A450.HV-DIESL.QVAP-1 | D142: -16186897.9 | E142: BTU/HR
C143: A400.A450.HV-DIESL.QVAP-2 | D143: 16683470.6 | E143: BTU/HR
C144: A400.A450.HV-GASOL.QCOMB | D144: 599383321 | E144: BTU/HR
C145: A400.A450.HV-GASOL.QGROSS | D145: 600586325 | E145: BTU/HR
C146: A400.A450.HV-GASOL.QNET | D146: 562204822 | E146: BTU/HR
C147: A400.A450.HV-GASOL.QREJECT | D147: 113097.735 | E147: BTU/HR
C148: A400.A450.HV-GASOL.QSHIFT | D148: 1870.16234 | E148: BTU/HR
C149: A400.A450.HV-GASOL.QVAP-1 | D149: -37180368.6 | E149: BTU/HR
C150: A400.A450.HV-GASOL.QVAP-2 | D150: 38381502.6 | E150: BTU/HR
C151: A400.A450.Q0-H455 | D151: 659128.728 | E151: BTU/HR
C152: A400.A450.Q0-H458 | D152: 274827.523 | E152: BTU/HR
C153: A400.A450.QA-H457 | D153: 0 | E153: BTU/HR
C154: A400.A450.QC-H454 | D154: 1316346.01 | E154: BTU/HR
C155: A400.A450.QC-H457 | D155: 387503.258 | E155: BTU/HR
C156: A400.A450.QC-H459 | D156: 80083.7876 | E156: BTU/HR
C157: A400.A450.QCN-D450 | D157: 14097297.6 | E157: BTU/HR
C158: A400.A450.QCN-D451 | D158: 2513160.59 | E158: BTU/HR
C159: A400.A450.Q-H450 | D159: -11711110.7 | E159: BTU/HR
C160: A400.A450.Q-H450A | D160: -4208102.11 | E160: BTU/HR
C161: A400.A450.Q-H450A1 | D161: 0.00308794617 | E161: BTU/HR
C162: A400.A450.Q-H450B | D162: -7503008.64 | E162: BTU/HR
C163: A400.A450.Q-H451 | D163: 0 | E163: BTU/HR
C164: A400.A450.Q-H452 | D164: -2912507.94 | E164: BTU/HR
C165: A400.A450.Q-H452A | D165: -835182.828 | E165: BTU/HR
C166: A400.A450.Q-H452A1 | D166: -4.97635161e-05 | E166: BTU/HR
C167: A400.A450.Q-H452B | D167: -2077325.11 | E167: BTU/HR
C168: A400.A450.Q-H453 | D168: 0 | E168: BTU/HR
C169: A400.A450.Q-H456 | D169: 2063185.86 | E169: BTU/HR
C170: A400.A450.Q-H456A | D170: 1145595.39 | E170: BTU/HR
C171: A400.A450.Q-H456B | D171: 917590.464 | E171: BTU/HR
C172: A400.A450.QRB-D450 | D172: -6692229.99 | E172: BTU/HR
C173: A400.A450.QRB-D451 | D173: -2407446.23 | E173: BTU/HR
C174: A400.A460.H-460.QX-H460 | D174: -1272784.55 | E174: BTU/HR
C175: A400.A460.QA-H463 | D175: 454341.949 | E175: BTU/HR
C176: A400.A460.QA-K462 | D176: 1628424.41 | E176: BTU/HR
C177: A400.A460.QC-460 | D177: 3957223.78 | E177: BTU/HR
C178: A400.A460.QC-H463 | D178: 381303.977 | E178: BTU/HR
C179: A400.A460.QC-H4945 | D179: 127785.391 | E179: BTU/HR
C180: A400.A460.QF-H461M | D180: -4274351.56 | E180: BTU/HR
C181: A400.A460.Q-H462 | D181: 7523526.81 | E181: BTU/HR
C182: A400.A460.Q-H462A | D182: 3297293.77 | E182: BTU/HR
C183: A400.A460.Q-H462A1 | D183: 2386864.01 | E183: BTU/HR
C184: A400.A460.Q-H462B | D184: 1839369.03 | E184: BTU/HR
C185: A400.A460.Q-S461 | D185: 53423.321 | E185: BTU/HR
C186: A400.A460.Q-S462 | D186: 3245.46514 | E186: BTU/HR
C187: A400.A460.QW-R460 | D187: 3829438.39 | E187: BTU/HR
C188: A500.A510.A530.A545.QF-H548 | D188: 2997655.34 | E188: BTU/HR
C189: A500.A510.A530.A545.Q-H545 | D189: -16693950.7 | E189: BTU/HR
C190: A500.A510.A530.A545.Q-H545A | D190: -4446739.35 | E190: BTU/HR
C191: A500.A510.A530.A545.Q-H545B | D191: -12247211.4 | E191: BTU/HR
C192: A500.A510.A530.A545.Q-H546 | D192: 131343725 | E192: BTU/HR
C193: A500.A510.A530.A545.Q-H546A | D193: 126502489 | E193: BTU/HR
C194: A500.A510.A530.A545.Q-H546B | D194: 4841235.69 | E194: BTU/HR
C195: A500.A510.A530.A545.Q-H547 | D195: -8120739.3 | E195: BTU/HR
C196: A500.A510.A530.A545.Q-H547A | D196: -4124951.69 | E196: BTU/HR
C197: A500.A510.A530.A545.Q-H547B | D197: -3995787.6 | E197: BTU/HR
C198: A500.A510.A530.A545.Q-R530 | D198: -60030698.7 | E198: BTU/HR
C199: A500.A510.A530.A545.Q-R530A | D199: 0 | E199: BTU/HR
C200: A500.A510.A530.Q-H525 | D200: -4034295.75 | E200: BTU/HR
C201: A500.A510.A530.Q-H530 | D201: -41948222.7 | E201: BTU/HR
... 93 more rows

Sheet DCFROR
B2: Based on DOE targeting assumptions | G2: Total Capital Investment
A3: Assumptions | B3: Value | G3: Process Area | H3: Description | J3: Purchased Cost | K3: Installed Cost | L3: ISBL
A4: Fixed Capital Investment | B4: =FCI -> 521690148.9 | G4: A100 | H4: Feed Handling & Drying | J4: =CAPEX!S23 -> 244789.9101 | K4: =CAPEX!R23 -> 480301.5581 | L4: =K4 -> 480301.5581
A5: General Plant | B5: =B4-B6 -> 470980479.3 | G5: A200 | H5: In Situ Catalytic Pyrolysis | J5: =CAPEX!S38 -> 31150213.77 | K5: =CAPEX!R38 -> 92838242.56 | L5: =K5 -> 92838242.56
A6: Steam Plant | B6: =K9 -> 50709669.64 | G6: A300 | H6: Pyrolysis Vapor Quench | J6: =CAPEX!S60+CAPEX!S71 -> 12601519.52 | K6: =CAPEX!R60+CAPEX!R71 -> 23698051.87 | L6: =K6 -> 23698051.87
G7: A400 | H7: Hydroprocessing and Separation | J7: =CAPEX!S88+CAPEX!S104+CAPEX!S119 -> 19165259.46 | K7: =CAPEX!R88+CAPEX!R104+CAPEX!R119 -> 33912822.89 | L7: 33912822.89
A8: Equity | B8: 0.4 | G8: A500 | H8: Hydrogen Plant | J8: =CAPEX!S134 -> 36132143.97 | K8: =CAPEX!R134 -> 69857143
A9: Loan Interest | B9: 0.08 | G9: A600 | H9: Steam System and Power Generation | J9: =CAPEX!S154 -> 28063716.16 | K9: =CAPEX!R154 -> 50709669.64
A10: Loan Term, years | B10: 10 | G10: A700 | H10: Cooling Water and Other Utilities | J10: =CAPEX!S180 -> 4705001.069 | K10: =CAPEX!R180 -> 9438494.309
A11: Annual Loan Payment | B11: =-PMT(B9,B10,FCI*(1-B8)) -> 46648329.69 | G11: A800 | H11: Water Management | J11: =CAPEX!S206 -> 7247099.795 | K11: =CAPEX!R206 -> 17199674.76
A13: Land Requirement | B13: 132 | C13: Acres
A14: Land Cost | B14: 14000 | C14: /acre
A17: Working Capital (% of FCI) | B17: 0.05
A18: Salvage Value
A19: General Plant | B19: 0 | C19: Not permitted since 2002 | G19: Subtotal | J19: =SUM(J4:J18) -> 139309743.7 | K19: =SUM(K4:K18) -> 298134400.6 | L19: =SUM(L4:L18) -> 150929418.9
A20: Steam Plant | B20: 0 | C20: Not permitted since 2002 | G20: Warehouse | I20: 0.04 | J20: of ISBL | K20: =I20*ISBL -> 6037176.755
A21: Depreciation Period (Years) | B21: MACR (IRS publication 946, Table A1, Page 76. http://www.irs.gov/pub/irs-pdf/p946.pdf ) | G21: Site Development | I21: 0.1 | J21: of ISBL | K21: =I21*ISBL -> 15092941.89
A22: General Plant | B22: 7 | C22: IRS Pub 946 | G22: Additional Piping | I22: 0.045 | J22: of ISBL | K22: =I22*ISBL -> 6791823.849
A23: Steam/Electricity System | B23: 20 | C23: IRS Pub 946 | G23: Total Direct Costs (TDC) | K23: =SUM(K19:K22) -> 326056343.1
A24: Construction Period (Years) | B24: 3 | D24: © 2016-2019 Alliance for Sustainable Energy, LLC | G24: Prorateable Expenses | I24: 0.1 | J24: of TDC | K24: =I24*$K$23 -> 32605634.31
A25: % Spent in Year -2 | B25: 0.08 | G25: Field Expenses | I25: 0.1 | J25: of TDC | K25: =I25*$K$23 -> 32605634.31
A26: % Spent in Year -1 | B26: 0.6 | D26: This program is free software: you can redistribute it and/or modify | G26: Home Office & Construction Fee | I26: 0.2 | J26: of TDC | K26: =I26*$K$23 -> 65211268.61
A27: % Spent in Year 0 | B27: =1-SUM(B25:B26) -> 0.32 | D27: it under the terms of the GNU General Public License as published by | G27: Project Contingency | I27: 0.1 | J27: of TDC | K27: =I27*$K$23 -> 32605634.31
A28: Start-up Time (Years) | B28: 0.5 | D28: the Free Software Foundation, either version 3 of the License, or | G28: Other Costs (Start-Up, Permits, etc.) | I28: 0.1 | J28: of TDC | K28: =I28*$K$23 -> 32605634.31
A29: EtOH production/Feedstock use (% of Normal) | B29: 0.5 | D29: (at your option) any later version. | G29: Total Indirect Costs | K29: =SUM(K24:K28) -> 195633805.8
A30: Variable Costs (% of Normal) | B30: 0.75 | G30: Fixed Capital Investment (FCI) | K30: =K23+K29 -> 521690148.9
A31: Fixed Cost (% of Normal) | B31: 1 | D31: This program is distributed in the hope that it will be useful, | G31: Land | K31: =B13*B14 -> 1848000
A32: Discount Rate (Internal Rate of Return [IRR]) | B32: 0.1 | C32: Short et. al | D32: but WITHOUT ANY WARRANTY; without even the implied warranty of | G32: Working Capital | I32: 0.05 | J32: of FCI | K32: =I32*K30 -> 26084507.45
A33: Income Tax Rate | B33: 0.35 | D33: MERCHANTABILITY or FITNESS FOR A PARTICULAR PURPOSE. See the | G33: Total Capital Investment (TCI) | K33: =SUM(K30:K32) -> 549622656.4
A34: Cost Year for Analysis | B34: 2011 | D34: GNU General Public License for more details.
A36: Total Fuel Production Rate (MM GGE/yr) | B36: =ANNUALGGE -> 54.17973161 | D36: You should have received a copy of the GNU General Public License
A37: Minimum Fuel Selling Price ($/GGE) | B37: =B38 -> 3.440951454 | D37: along with this program. If not, see <https://www.gnu.org/licenses/>.
A38: MFSP (Gasoline-Equivalent Basis) | B38: 3.440951454 | C38: Manipulated Value
A39: Net Present Value | B39: =B78 -> 0 | C39: Targeted Value
A41: Discounted Cash Flow Rate of Return Analysis
A42: Year | B42: Cumulative | C42: -2 | D42: -1 | E42: 0 | F42: 1 | G42: 2 | H42: 3 | I42: 4 | J42: 5 | K42: 6 | L42: 7 | M42: 8 | N42: 9 | O42: 10 | P42: 11 | Q42: 12 | R42: 13 | S42: 14 | T42: 15 | U42: 16 | V42: 17 | W42: 18 | X42: 19 | Y42: 20 | Z42: 21 | AA42: 22 | AB42: 23 | AC42: 24 | AD42: 25 | AE42: 26 | AF42: 27 | AG42: 28 | AH42: 29 | AI42: 30
A43: Fixed Capital Investment | C43: =FCI*B8*B25 -> 16694084.77 | D43: =FCI*B8*B26 -> 125205635.7 | E43: =FCI*B8*B27 -> 66776339.06
A44: Land | C44: =K31 -> 1848000 | AI44: =-C44 -> -1848000
A45: Working Capital | E45: =FCI*B17 -> 26084507.45 | AI45: =-E45 -> -26084507.45
A46: Loan Payment | F46: =B11 -> 46648329.69 | G46: =IF($B$10>F42,$B$11,0) -> 46648329.69 | H46: =IF($B$10>G42,$B$11,0) -> 46648329.69 | I46: 46648329.69 | J46: 46648329.69 | K46: 46648329.69 | L46: 46648329.69 | M46: 46648329.69 | N46: 46648329.69 | O46: 46648329.69 | P46: 0 | Q46: 0 | R46: 0 | S46: 0 | T46: 0 | U46: 0 | V46: 0 | W46: 0 | X46: 0 | Y46: 0 | Z46: 0 | AA46: 0 | AB46: 0 | AC46: 0 | AD46: 0 | AE46: 0 | AF46: 0 | AG46: 0 | AH46: 0 | AI46: 0
A47: Loan Interest Payment | C47: =$B$9*C48 -> 2003290.172 | D47: =$B$9*D48 -> 17027966.46 | E47: =$B$9*E48 -> 25041127.15 | F47: =B4*(1-B8)*B9 -> 25041127.15 | G47: =$B$9*F48 -> 23312550.94 | H47: =$B$9*G48 -> 21445688.64 | I47: 19429477.36 | J47: 17251969.17 | K47: 14900260.33 | L47: 12360414.78 | M47: 9617381.592 | N47: 6654905.745 | O47: 3455431.829 | P47: 1.62050128e-08 | Q47: 1.750141382e-08 | R47: 1.890152693e-08 | S47: 2.041364908e-08 | T47: 2.204674101e-08 | U47: 2.381048029e-08 | V47: 2.571531871e-08 | W47: 2.777254421e-08 | X47: 2.999434775e-08 | Y47: 3.239389557e-08 | Z47: 3.498540721e-08 | AA47: 3.778423979e-08 | AB47: 4.080697897e-08 | AC47: 4.407153729e-08 | AD47: 4.759726027e-08 | AE47: 5.140504109e-08 | AF47: 5.551744438e-08 | AG47: 5.995883993e-08 | AH47: 6.475554713e-08 | AI47: 6.99359909e-08
A48: Loan Principal | C48: =FCI*(1-B8)*B25 -> 25041127.15 | D48: =FCI*(1-B8)*B26+C48 -> 212849580.8 | E48: =FCI*(1-B8)*B27+D48 -> 313014089.3 | F48: =FCI*(1-B8)-F46+F47 -> 291406886.8 | G48: =F48-G46+G47 -> 268071108.1 | H48: =G48-H46+H47 -> 242868467 | I48: 215649614.7 | J48: 186253254.2 | K48: 154505184.8 | L48: 120217269.9 | M48: 83186321.81 | N48: 43192897.86 | O48: 2.0256266e-07 | P48: 2.187676728e-07 | Q48: 2.362690866e-07 | R48: 2.551706135e-07 | S48: 2.755842626e-07 | T48: 2.976310036e-07 | U48: 3.214414839e-07 | V48: 3.471568026e-07 | W48: 3.749293468e-07 | X48: 4.049236946e-07 | Y48: 4.373175901e-07 | Z48: 4.723029974e-07 | AA48: 5.100872371e-07 | AB48: 5.508942161e-07 | AC48: 5.949657534e-07 | AD48: 6.425630137e-07 | AE48: 6.939680548e-07 | AF48: 7.494854992e-07 | AG48: 8.094443391e-07 | AH48: 8.741998862e-07 | AI48: 9.441358771e-07
A49: Annual Income
A50: Fuel Sales | F50: =($B$37)*($B$36*(B28*B29+(1-B28)))*1000000 -> 139822369.7 | G50: =($B$37)*($B$36)*1000000 -> 186429826.3 | H50: 186429826.3 | I50: 186429826.3 | J50: 186429826.3 | K50: 186429826.3 | L50: 186429826.3 | M50: 186429826.3 | N50: 186429826.3 | O50: 186429826.3 | P50: 186429826.3 | Q50: 186429826.3 | R50: 186429826.3 | S50: 186429826.3 | T50: 186429826.3 | U50: 186429826.3 | V50: 186429826.3 | W50: 186429826.3 | X50: 186429826.3 | Y50: 186429826.3 | Z50: 186429826.3 | AA50: 186429826.3 | AB50: 186429826.3 | AC50: 186429826.3 | AD50: 186429826.3 | AE50: 186429826.3 | AF50: 186429826.3 | AG50: 186429826.3 | AH50: 186429826.3 | AI50: 186429826.3
A51: By-Product Credit | F51: =-(OPEX!$K$31)*(B28*B29+(1-B28))*1000000 -> 1822295.423 | G51: =-(OPEX!$K$31)*1000000 -> 2429727.231 | H51: =-(OPEX!$K$31)*1000000 -> 2429727.231 | I51: =-(OPEX!$K$31)*1000000 -> 2429727.231 | J51: =-(OPEX!$K$31)*1000000 -> 2429727.231 | K51: =-(OPEX!$K$31)*1000000 -> 2429727.231 | L51: =-(OPEX!$K$31)*1000000 -> 2429727.231 | M51: =-(OPEX!$K$31)*1000000 -> 2429727.231 | N51: =-(OPEX!$K$31)*1000000 -> 2429727.231 | O51: =-(OPEX!$K$31)*1000000 -> 2429727.231 | P51: =-(OPEX!$K$31)*1000000 -> 2429727.231 | Q51: =-(OPEX!$K$31)*1000000 -> 2429727.231 | R51: =-(OPEX!$K$31)*1000000 -> 2429727.231 | S51: =-(OPEX!$K$31)*1000000 -> 2429727.231 | T51: =-(OPEX!$K$31)*1000000 -> 2429727.231 | U51: =-(OPEX!$K$31)*1000000 -> 2429727.231 | V51: =-(OPEX!$K$31)*1000000 -> 2429727.231 | W51: =-(OPEX!$K$31)*1000000 -> 2429727.231 | X51: =-(OPEX!$K$31)*1000000 -> 2429727.231 | Y51: =-(OPEX!$K$31)*1000000 -> 2429727.231 | Z51: =-(OPEX!$K$31)*1000000 -> 2429727.231 | AA51: =-(OPEX!$K$31)*1000000 -> 2429727.231 | AB51: =-(OPEX!$K$31)*1000000 -> 2429727.231 | AC51: =-(OPEX!$K$31)*1000000 -> 2429727.231 | AD51: =-(OPEX!$K$31)*1000000 -> 2429727.231 | AE51: =-(OPEX!$K$31)*1000000 -> 2429727.231 | AF51: =-(OPEX!$K$31)*1000000 -> 2429727.231 | AG51: =-(OPEX!$K$31)*1000000 -> 2429727.231 | AH51: =-(OPEX!$K$31)*1000000 -> 2429727.231 | AI51: =-(OPEX!$K$31)*1000000 -> 2429727.231
A52: Total Annual Sales | F52: =SUM(F50:F51) -> 141644665.1 | G52: =SUM(G50:G51) -> 188859553.5 | H52: 188859553.5 | I52: 188859553.5 | J52: 188859553.5 | K52: 188859553.5 | L52: 188859553.5 | M52: 188859553.5 | N52: 188859553.5 | O52: 188859553.5 | P52: 188859553.5 | Q52: 188859553.5 | R52: 188859553.5 | S52: 188859553.5 | T52: 188859553.5 | U52: 188859553.5 | V52: 188859553.5 | W52: 188859553.5 | X52: 188859553.5 | Y52: 188859553.5 | Z52: 188859553.5 | AA52: 188859553.5 | AB52: 188859553.5 | AC52: 188859553.5 | AD52: 188859553.5 | AE52: 188859553.5 | AF52: 188859553.5 | AG52: 188859553.5 | AH52: 188859553.5 | AI52: 188859553.5
A53: Annual Manufacturing Cost
A54: Raw Materials | F54: =(OPEX!$K$8)*(B28*B29+(1-B28))*1000000 -> 43453060.1 | G54: =(OPEX!$K$8)*1000000 -> 57937413.46 | H54: =(OPEX!$K$8)*1000000 -> 57937413.46 | I54: =(OPEX!$K$8)*1000000 -> 57937413.46 | J54: =(OPEX!$K$8)*1000000 -> 57937413.46 | K54: =(OPEX!$K$8)*1000000 -> 57937413.46 | L54: =(OPEX!$K$8)*1000000 -> 57937413.46 | M54: =(OPEX!$K$8)*1000000 -> 57937413.46 | N54: =(OPEX!$K$8)*1000000 -> 57937413.46 | O54: =(OPEX!$K$8)*1000000 -> 57937413.46 | P54: =(OPEX!$K$8)*1000000 -> 57937413.46 | Q54: =(OPEX!$K$8)*1000000 -> 57937413.46 | R54: =(OPEX!$K$8)*1000000 -> 57937413.46 | S54: =(OPEX!$K$8)*1000000 -> 57937413.46 | T54: =(OPEX!$K$8)*1000000 -> 57937413.46 | U54: =(OPEX!$K$8)*1000000 -> 57937413.46 | V54: =(OPEX!$K$8)*1000000 -> 57937413.46 | W54: =(OPEX!$K$8)*1000000 -> 57937413.46 | X54: =(OPEX!$K$8)*1000000 -> 57937413.46 | Y54: =(OPEX!$K$8)*1000000 -> 57937413.46 | Z54: =(OPEX!$K$8)*1000000 -> 57937413.46 | AA54: =(OPEX!$K$8)*1000000 -> 57937413.46 | AB54: =(OPEX!$K$8)*1000000 -> 57937413.46 | AC54: =(OPEX!$K$8)*1000000 -> 57937413.46 | AD54: =(OPEX!$K$8)*1000000 -> 57937413.46 | AE54: =(OPEX!$K$8)*1000000 -> 57937413.46 | AF54: =(OPEX!$K$8)*1000000 -> 57937413.46 | AG54: =(OPEX!$K$8)*1000000 -> 57937413.46 | AH54: =(OPEX!$K$8)*1000000 -> 57937413.46 | AI54: =(OPEX!$K$8)*1000000 -> 57937413.46
A55: Catalyst Costs | C55: 0 | D55: 0 | E55: 0 | F55: 6867999.864 | G55: 272953.6251 | H55: 5325566.125 | I55: 272953.6251 | J55: 5325566.125 | K55: 272953.6251 | L55: 5325566.125 | M55: 272953.6251 | N55: 5325566.125 | O55: 272953.6251 | P55: 5325566.125 | Q55: 272953.6251 | R55: 5325566.125 | S55: 272953.6251 | T55: 5325566.125 | U55: 272953.6251 | V55: 5325566.125 | W55: 272953.6251 | X55: 5325566.125 | Y55: 272953.6251 | Z55: 5325566.125 | AA55: 272953.6251 | AB55: 5325566.125 | AC55: 272953.6251 | AD55: 5325566.125 | AE55: 272953.6251 | AF55: 5325566.125 | AG55: 272953.6251 | AH55: 5325566.125 | AI55: 272953.6251
A56: Other Variable Costs | F56: =SUM(OPEX!$K$9:$K$20,OPEX!$K$28)*(B28*B29+(1-B28))*1000000 -> 21079571.38 | G56: =SUM(OPEX!$K$9:$K$20,OPEX!$K$28)*1000000 -> 28106095.17 | H56: =SUM(OPEX!$K$9:$K$20,OPEX!$K$28)*1000000 -> 28106095.17 | I56: =SUM(OPEX!$K$9:$K$20,OPEX!$K$28)*1000000 -> 28106095.17 | J56: =SUM(OPEX!$K$9:$K$20,OPEX!$K$28)*1000000 -> 28106095.17 | K56: =SUM(OPEX!$K$9:$K$20,OPEX!$K$28)*1000000 -> 28106095.17 | L56: =SUM(OPEX!$K$9:$K$20,OPEX!$K$28)*1000000 -> 28106095.17 | M56: =SUM(OPEX!$K$9:$K$20,OPEX!$K$28)*1000000 -> 28106095.17 | N56: =SUM(OPEX!$K$9:$K$20,OPEX!$K$28)*1000000 -> 28106095.17 | O56: =SUM(OPEX!$K$9:$K$20,OPEX!$K$28)*1000000 -> 28106095.17 | P56: =SUM(OPEX!$K$9:$K$20,OPEX!$K$28)*1000000 -> 28106095.17 | Q56: =SUM(OPEX!$K$9:$K$20,OPEX!$K$28)*1000000 -> 28106095.17 | R56: =SUM(OPEX!$K$9:$K$20,OPEX!$K$28)*1000000 -> 28106095.17 | S56: =SUM(OPEX!$K$9:$K$20,OPEX!$K$28)*1000000 -> 28106095.17 | T56: =SUM(OPEX!$K$9:$K$20,OPEX!$K$28)*1000000 -> 28106095.17 | U56: =SUM(OPEX!$K$9:$K$20,OPEX!$K$28)*1000000 -> 28106095.17 | V56: =SUM(OPEX!$K$9:$K$20,OPEX!$K$28)*1000000 -> 28106095.17 | W56: =SUM(OPEX!$K$9:$K$20,OPEX!$K$28)*1000000 -> 28106095.17 | X56: =SUM(OPEX!$K$9:$K$20,OPEX!$K$28)*1000000 -> 28106095.17 | Y56: =SUM(OPEX!$K$9:$K$20,OPEX!$K$28)*1000000 -> 28106095.17 | Z56: =SUM(OPEX!$K$9:$K$20,OPEX!$K$28)*1000000 -> 28106095.17 | AA56: =SUM(OPEX!$K$9:$K$20,OPEX!$K$28)*1000000 -> 28106095.17 | AB56: =SUM(OPEX!$K$9:$K$20,OPEX!$K$28)*1000000 -> 28106095.17 | AC56: =SUM(OPEX!$K$9:$K$20,OPEX!$K$28)*1000000 -> 28106095.17 | AD56: =SUM(OPEX!$K$9:$K$20,OPEX!$K$28)*1000000 -> 28106095.17 | AE56: =SUM(OPEX!$K$9:$K$20,OPEX!$K$28)*1000000 -> 28106095.17 | AF56: =SUM(OPEX!$K$9:$K$20,OPEX!$K$28)*1000000 -> 28106095.17 | AG56: =SUM(OPEX!$K$9:$K$20,OPEX!$K$28)*1000000 -> 28106095.17 | AH56: =SUM(OPEX!$K$9:$K$20,OPEX!$K$28)*1000000 -> 28106095.17 | AI56: =SUM(OPEX!$K$9:$K$20,OPEX!$K$28)*1000000 -> 28106095.17
A57: Fixed Operating Costs | F57: =(OPEX!$K$53*1000000)*(1-B28)+((OPEX!$K$53*1000000)*B28*B31) -> 25470148.35 | G57: =(OPEX!$K$53*1000000) -> 25470148.35 | H57: =(OPEX!$K$53*1000000) -> 25470148.35 | I57: =(OPEX!$K$53*1000000) -> 25470148.35 | J57: =(OPEX!$K$53*1000000) -> 25470148.35 | K57: =(OPEX!$K$53*1000000) -> 25470148.35 | L57: =(OPEX!$K$53*1000000) -> 25470148.35 | M57: =(OPEX!$K$53*1000000) -> 25470148.35 | N57: =(OPEX!$K$53*1000000) -> 25470148.35 | O57: =(OPEX!$K$53*1000000) -> 25470148.35 | P57: =(OPEX!$K$53*1000000) -> 25470148.35 | Q57: =(OPEX!$K$53*1000000) -> 25470148.35 | R57: =(OPEX!$K$53*1000000) -> 25470148.35 | S57: =(OPEX!$K$53*1000000) -> 25470148.35 | T57: =(OPEX!$K$53*1000000) -> 25470148.35 | U57: =(OPEX!$K$53*1000000) -> 25470148.35 | V57: =(OPEX!$K$53*1000000) -> 25470148.35 | W57: =(OPEX!$K$53*1000000) -> 25470148.35 | X57: =(OPEX!$K$53*1000000) -> 25470148.35 | Y57: =(OPEX!$K$53*1000000) -> 25470148.35 | Z57: =(OPEX!$K$53*1000000) -> 25470148.35 | AA57: =(OPEX!$K$53*1000000) -> 25470148.35 | AB57: =(OPEX!$K$53*1000000) -> 25470148.35 | AC57: =(OPEX!$K$53*1000000) -> 25470148.35 | AD57: =(OPEX!$K$53*1000000) -> 25470148.35 | AE57: =(OPEX!$K$53*1000000) -> 25470148.35 | AF57: =(OPEX!$K$53*1000000) -> 25470148.35 | AG57: =(OPEX!$K$53*1000000) -> 25470148.35 | AH57: =(OPEX!$K$53*1000000) -> 25470148.35 | AI57: =(OPEX!$K$53*1000000) -> 25470148.35
A58: Total Product Cost | F58: =SUM(F54:F57) -> 96870779.69 | G58: 111786610.6 | H58: 116839223.1 | I58: 111786610.6 | J58: 116839223.1 | K58: 111786610.6 | L58: 116839223.1 | M58: 111786610.6 | N58: 116839223.1 | O58: 111786610.6 | P58: 116839223.1 | Q58: 111786610.6 | R58: 116839223.1 | S58: 111786610.6 | T58: 116839223.1 | U58: 111786610.6 | V58: 116839223.1 | W58: 111786610.6 | X58: 116839223.1 | Y58: 111786610.6 | Z58: 116839223.1 | AA58: 111786610.6 | AB58: 116839223.1 | AC58: 111786610.6 | AD58: 116839223.1 | AE58: 111786610.6 | AF58: 116839223.1 | AG58: 111786610.6 | AH58: 116839223.1 | AI58: 111786610.6
A59: Annual Depreciation
A60: General Plant Writedown | F60: 0.1429 | G60: 0.2449 | H60: 0.1749 | I60: 0.1249 | J60: 0.0893 | K60: 0.0892 | L60: 0.0893 | M60: 0.0446
A61: Depreciation Charge | F61: =$B$5*F60 -> 67303110.49 | G61: =$B$5*G60 -> 115343119.4 | H61: 82374485.83 | I61: 58825461.86 | J61: 42058556.8 | K61: 42011458.75 | L61: 42058556.8 | M61: 21005729.38
A62: Remaining Value | F62: =$B$5-$B$19-F61 -> 403677368.8 | G62: =F62-G61 -> 288334249.4 | H62: 205959763.6 | I62: 147134301.7 | J62: 105075744.9 | K62: 63064286.18 | L62: 21005729.38 | M62: 0
A63: Steam Plant Writedown | F63: 0.0375 | G63: 0.07219 | H63: 0.06677 | I63: 0.06177 | J63: 0.05713 | K63: 0.05285 | L63: 0.04888 | M63: 0.04522 | N63: 0.04462 | O63: 0.04461 | P63: 0.04462 | Q63: 0.04461 | R63: 0.04462 | S63: 0.04461 | T63: 0.04462 | U63: 0.04461 | V63: 0.04462 | W63: 0.04461 | X63: 0.04462 | Y63: 0.04461 | Z63: 0.02231
A64: Depreciation Charge | F64: =$B$6*F63 -> 1901612.611 | G64: =$B$6*G63 -> 3660731.051 | H64: 3385884.642 | I64: 3132336.293 | J64: 2897043.426 | K64: 2680006.04 | L64: 2478688.652 | M64: 2293091.261 | N64: 2262665.459 | O64: 2262158.362 | P64: 2262665.459 | Q64: 2262158.362 | R64: 2262665.459 | S64: 2262158.362 | T64: 2262665.459 | U64: 2262158.362 | V64: 2262665.459 | W64: 2262158.362 | X64: 2262665.459 | Y64: 2262158.362 | Z64: 1131332.73
A65: Remaining Value | F65: =$B$6-$B$20-F64 -> 48808057.03 | G65: =F65-G64 -> 45147325.97 | H65: =G65-H64 -> 41761441.33 | I65: 38629105.04 | J65: 35732061.61 | K65: 33052055.57 | L65: 30573366.92 | M65: 28280275.66 | N65: 26017610.2 | O65: 23755451.84 | P65: 21492786.38 | Q65: 19230628.02 | R65: 16967962.56 | S65: 14705804.19 | T65: 12443138.74 | U65: 10180980.37 | V65: 7918314.914 | W65: 5656156.551 | X65: 3393491.092 | Y65: 1131332.73 | Z65: 5.820766091e-09
A66: Annual Tax
A67: Net Revenue | F67: =F52-(F47+F58+F61+F64) -> -49471964.81 | G67: -65243458.47 | H67: -35185728.71 | I67: -4314332.618 | J67: 9812760.998 | K67: 17481217.77 | L67: 15122670.16 | M67: 44156740.67 | N67: 63102759.19 | O67: 71355352.71 | P67: 69757664.94 | Q67: 74810784.54 | R67: 69757664.94 | S67: 74810784.54 | T67: 69757664.94 | U67: 74810784.54 | V67: 69757664.94 | W67: 74810784.54 | X67: 69757664.94 | Y67: 74810784.54 | Z67: 70888997.67 | AA67: 77072942.9 | AB67: 72020330.4 | AC67: 77072942.9 | AD67: 72020330.4 | AE67: 77072942.9 | AF67: 72020330.4 | AG67: 77072942.9 | AH67: 72020330.4 | AI67: 77072942.9
A68: Losses Forward | G68: =IF(F69<0,F69,0) -> -49471964.81 | H68: =IF(G69<0,G69,0) -> -114715423.3 | I68: -149901152 | J68: -154215484.6 | K68: -144402723.6 | L68: -126921505.8 | M68: -111798835.7 | N68: -67642095.01 | O68: -4539335.813 | P68: 0 | Q68: 0 | R68: 0 | S68: 0 | T68: 0 | U68: 0 | V68: 0 | W68: 0 | X68: 0 | Y68: 0 | Z68: 0 | AA68: 0 | AB68: 0 | AC68: 0 | AD68: 0 | AE68: 0 | AF68: 0 | AG68: 0 | AH68: 0 | AI68: 0
A69: Taxable Income | F69: =F67+F68 -> -49471964.81 | G69: =G67+G68 -> -114715423.3 | H69: -149901152 | I69: -154215484.6 | J69: -144402723.6 | K69: -126921505.8 | L69: -111798835.7 | M69: -67642095.01 | N69: -4539335.813 | O69: 66816016.89 | P69: 69757664.94 | Q69: 74810784.54 | R69: 69757664.94 | S69: 74810784.54 | T69: 69757664.94 | U69: 74810784.54 | V69: 69757664.94 | W69: 74810784.54 | X69: 69757664.94 | Y69: 74810784.54 | Z69: 70888997.67 | AA69: 77072942.9 | AB69: 72020330.4 | AC69: 77072942.9 | AD69: 72020330.4 | AE69: 77072942.9 | AF69: 72020330.4 | AG69: 77072942.9 | AH69: 72020330.4 | AI69: 77072942.9
A70: Income Tax | F70: =IF(F69*($B$33)<0,0,F69*$B$33) -> 0 | G70: =IF(G69*($B$33)<0,0,G69*$B$33) -> 0 | H70: 0 | I70: 0 | J70: 0 | K70: 0 | L70: 0 | M70: 0 | N70: 0 | O70: 23385605.91 | P70: 24415182.73 | Q70: 26183774.59 | R70: 24415182.73 | S70: 26183774.59 | T70: 24415182.73 | U70: 26183774.59 | V70: 24415182.73 | W70: 26183774.59 | X70: 24415182.73 | Y70: 26183774.59 | Z70: 24811149.18 | AA70: 26975530.01 | AB70: 25207115.64 | AC70: 26975530.01 | AD70: 25207115.64 | AE70: 26975530.01 | AF70: 25207115.64 | AG70: 26975530.01 | AH70: 25207115.64 | AI70: 26975530.01
A71: Annual Cash Flow
A72: Annual Cash Income | F72: =F52-(F46+F58+F70) -> -1874444.25 | G72: 30424613.21 | H72: 25372000.71 | I72: 30424613.21 | J72: 25372000.71 | K72: 30424613.21 | L72: 25372000.71 | M72: 30424613.21 | N72: 25372000.71 | O72: 7039007.295 | P72: 47605147.67 | Q72: 50889168.31 | R72: 47605147.67 | S72: 50889168.31 | T72: 47605147.67 | U72: 50889168.31 | V72: 47605147.67 | W72: 50889168.31 | X72: 47605147.67 | Y72: 50889168.31 | Z72: 47209181.21 | AA72: 50097412.88 | AB72: 46813214.76 | AC72: 50097412.88 | AD72: 46813214.76 | AE72: 50097412.88 | AF72: 46813214.76 | AG72: 50097412.88 | AH72: 46813214.76 | AI72: 50097412.88
A73: Discount Factor | C73: =1/(1+$B$32)^C42 -> 1.21 | D73: 1.1 | E73: 1 | F73: 0.9090909091 | G73: 0.826446281 | H73: 0.7513148009 | I73: 0.6830134554 | J73: 0.6209213231 | K73: 0.5644739301 | L73: 0.5131581182 | M73: 0.4665073802 | N73: 0.4240976184 | O73: 0.3855432894 | P73: 0.3504938995 | Q73: 0.3186308177 | R73: 0.2896643797 | S73: 0.2633312543 | T73: 0.2393920494 | U73: 0.2176291358 | V73: 0.1978446689 | W73: 0.1798587899 | X73: 0.1635079908 | Y73: 0.148643628 | Z73: 0.1351305709 | AA73: 0.1228459736 | AB73: 0.1116781578 | AC73: 0.101525598 | AD73: 0.09229599818 | AE73: 0.08390545289 | AF73: 0.07627768444 | AG73: 0.06934334949 | AH73: 0.06303940863 | AI73: 0.0573085533
A74: Annual Present Value | F74: =F73*F72 -> -1704040.227 | G74: =G73*G72 -> 25144308.44 | H74: 19062359.66 | I74: 20780420.2 | J74: 15754016.25 | K74: 17173900.99 | L74: 13019848.14 | M74: 14193306.6 | N74: 10760205.07 | O74: 2713842.027 | P74: 16685313.84 | Q74: 16214857.31 | R74: 13789515.57 | S74: 13400708.52 | T74: 11396293.86 | U74: 11074965.72 | V74: 9418424.679 | W74: 9152864.232 | X74: 7783822.048 | Y74: 7564350.605 | Z74: 6379403.611 | AA74: 6154265.459 | AB74: 5228013.585 | AC74: 5086169.801 | AD74: 4320672.384 | AE74: 4203446.117 | AF74: 3570803.623 | AG74: 3473922.41 | AH74: 2951077.375 | AI74: 2871010.257
A75: Total Capital Investment + Interest | C75: =SUM(C43:C45,C47)*C73 -> 24859903.67 | D75: =SUM(D43:D45,D47)*D73 -> 156456962.4 | E75: =SUM(E43:E45,E47)*E73 -> 117901973.7 | AI75: =(AI43+AI47+AI45+AI44)*AI73 -> -1600771.592
A76: Cumulative Present Value | B76: =SUM(F74:AI74) -> 297618068.2
A77: Cumulative Investements + Interest | B77: =SUM(C75:AI75) -> 297618068.2
A78: Net Present Worth | B78: =B76-B77 -> 0
A80: NPV of Income Tax
A81: NPV of Fuel Income

Sheet CAPEX
A1: EQUIPMENT LIST | E1: © 2016-2019 Alliance for Sustainable Energy, LLC | G1: This program is free software: you can redistribute it and/or modify it under the terms of the GNU General Public License as published by the Free Software Foundation, either version 3 of the License, or (at your option) any later version.
G2: This program is distributed in the hope that it will be useful, but WITHOUT ANY WARRANTY; without even the implied warranty of MERCHANTABILITY or FITNESS FOR A PARTICULAR PURPOSE. See the GNU General Public License for more details. You should have received a copy of the GNU General Public License along with this program. If not, see <https://www.gnu.org/licenses/>.
A3: Equip ID | B3: Required | C3: Spares | D3: Equipment Name | E3: Scaling Stream | F3: Design Flow (per unit) | G3: Design Flow (total) | H3: Actual Flow (total) | I3: Units | J3: Size Ratio | K3: Original Equip Cost (per unit) | L3: Base Year | M3: Total Orig Equip Cost (Req+Spare) in Base Year | N3: Scaling Exp. | O3: Scaled Cost in Base Year | P3: Install Factor | Q3: Installed Cost in Base Year | R3: ="Installed Cost in "&COSTYEAR&"$" -> Installed Cost in 2011$ | S3: ="Scaled Uninstalled Cost in "&COSTYEAR&"$" -> Scaled Uninstalled Cost in 2011$ | V3: Equipment Category | W3: Equipment Type | X3: Design Pressure (psig) | Y3: Design Temp (F) | Z3: MOC | AA3: Sizing Information | AF3: Source/Reference | AH3: ACCE Equip Cost | AI3: ACCE Direct Cost | AJ3: TPI Bin | AK3: Remarks
A4: C-101 | D4: Hopper Feeder | E4: included w/ feedstock cost | K4: INCLUDED | V4: CONVEYOR | W4: VIBRATING-FEEDER | Z4: CS | AA4: Included in per unit cost of feedstock | AF4: Idaho National Lab
A5: C-102 | D5: Screener Feeder Conveyor | E5: included w/ feedstock cost | K5: INCLUDED | V5: CONVEYOR | W5: BELT | Z5: CS | AA5: Included in per unit cost of feedstock | AF5: Idaho National Lab
A6: C-103 | D6: Radial Stacker Conveyor | E6: included w/ feedstock cost | K6: INCLUDED | V6: CONVEYOR | W6: BELT | Z6: CS | AA6: Included in per unit cost of feedstock | AF6: Idaho National Lab
A7: C-104 | D7: Dryer Feed Screw Conveyor | E7: included w/ feedstock cost | K7: INCLUDED | V7: CONVEYOR | W7: SCREW | Z7: CS | AA7: Included in per unit cost of feedstock | AF7: Idaho National Lab
A8: C-105 | D8: Biomass Feed Screw Conveyor | E8: included w/ feedstock cost | K8: INCLUDED | V8: CONVEYOR | W8: SCREW | Z8: CS | AA8: Included in per unit cost of feedstock | AF8: Idaho National Lab
A9: K-101 | B9: 3 | D9: Flue Gas Blower | E9: A100.A100DWPT.W-k110 | F9: 204 | G9: =F9*B9 -> 612 | H9: =IF(ISNUMBER(SEARCH(".W",E9)),VLOOKUP(E9,INDIRECT(LU_WORK),2),IF(ISNUMBER(SEARCH(".Q",E9)),ABS(VLOOKUP(E9,INDIRECT(LU_HEAT),2)),VLOOKUP(E9,INDIRECT(LU_SENS),2))) -> 451.143479 | I9: =IF(ISNUMBER(SEARCH(".W",E9)),VLOOKUP(E9,INDIRECT(LU_WORK),3),IF(ISNUMBER(SEARCH(".Q",E9)),VLOOKUP(E9,INDIRECT(LU_HEAT),3),VLOOKUP(E9,INDIRECT(LU_SENS),3))) -> HP | J9: =IFERROR(H9/G9,0) -> 0.7371625474 | K9: =AH9 -> 59300 | L9: 2013 | M9: =K9*(B9+C9) -> 177900 | N9: 0.78 | O9: =IF(E9="",M9,M9*J9^N9) -> 140241.0945 | P9: =AI9/AH9 -> 1.935919056 | Q9: =O9*P9 -> 271495.4073 | R9: =Q9*VLOOKUP(COSTYEAR,INDIRECT(IX_CAP),4,FALSE)/VLOOKUP(L9,INDIRECT(IX_CAP),4,FALSE) -> 280301.1811 | S9: =O9*VLOOKUP(COSTYEAR,INDIRECT(IX_CAP),4,FALSE)/VLOOKUP(L9,INDIRECT(IX_CAP),4,FALSE) -> 144789.7216 | V9: FAN | W9: CENTRIFUGAL | Z9: CS | AA9: 60,000 cfm | AB9: 15" H2O | AC9: 204 hp | AF9: ACCE V8.4 | AH9: 59300 | AI9: 114800
A10: M-101 | D10: Hydraulic Truck Dump with Scale | E10: included w/ feedstock cost | K10: INCLUDED | V10: SCALE | W10: TRUCK-SCALE | Z10: CS | AA10: Included in per unit cost of feedstock | AF10: Idaho National Lab
A11: M-102 | D11: Hammermill | E11: included w/ feedstock cost | K11: INCLUDED | V11: MISC | W11: SIZE REDUCER | Z11: CS | AA11: Included in per unit cost of feedstock | AF11: Idaho National Lab
A12: M-103 | D12: Front End Loaders | E12: included w/ feedstock cost | K12: INCLUDED | V12: VEHICLE | W12: LOADER | Z12: CS | AA12: Included in per unit cost of feedstock | AF12: Idaho National Lab
A13: M-104 | B13: 2 | D13: Cross Flow Pellet Dryer | E13: STRM.A100.100 | F13: 102065.5 | G13: =F13*B13 -> 204131 | H13: =IF(ISNUMBER(SEARCH(".W",E13)),VLOOKUP(E13,INDIRECT(LU_WORK),2),IF(ISNUMBER(SEARCH(".Q",E13)),ABS(VLOOKUP(E13,INDIRECT(LU_HEAT),2)),VLOOKUP(E13,INDIRECT(LU_SENS),2))) -> 204131.481 | I13: =IF(ISNUMBER(SEARCH(".W",E13)),VLOOKUP(E13,INDIRECT(LU_WORK),3),IF(ISNUMBER(SEARCH(".Q",E13)),VLOOKUP(E13,INDIRECT(LU_HEAT),3),VLOOKUP(E13,INDIRECT(LU_SENS),3))) -> LB/HR | J13: =IFERROR(H13/G13,0) -> 1.000002356 | K13: 50000 | L13: 2011 | M13: =K13*(B13+C13) -> 100000 | N13: 0.8 | O13: =IF(E13="",M13,M13*J13^N13) -> 100000.1885 | P13: 2 | Q13: =O13*P13 -> 200000.377 | R13: =Q13*VLOOKUP(COSTYEAR,INDIRECT(IX_CAP),4,FALSE)/VLOOKUP(L13,INDIRECT(IX_CAP),4,FALSE) -> 200000.377 | S13: =O13*VLOOKUP(COSTYEAR,INDIRECT(IX_CAP),4,FALSE)/VLOOKUP(L13,INDIRECT(IX_CAP),4,FALSE) -> 100000.1885 | V13: MISC | W13: DRYER | Z13: CS | AA13: 50 ton/h | AB13: 5% moisture reduction | AF13: Idaho National Lab
A14: S-101 | D14: Magnetic Head Pulley | E14: included w/ feedstock cost | K14: INCLUDED | V14: SEPARATOR | W14: MAGNET | Z14: CS | AA14: Included in per unit cost of feedstock | AF14: Idaho National Lab
A15: S-102 | D15: Vibratory Conveyor | E15: included w/ feedstock cost | K15: INCLUDED | V15: SEPARATOR | W15: SCREEN | Z15: CS | AA15: Included in per unit cost of feedstock | AF15: Idaho National Lab
A16: T-101 | D16: Dump Hopper | E16: included w/ feedstock cost | K16: INCLUDED | V16: TANK | W16: LIVE-BTM-BIN | Z16: CS | AA16: Included in per unit cost of feedstock | AF16: Idaho National Lab
A17: T-102 | D17: Hammermill surge bin | E17: included w/ feedstock cost | K17: INCLUDED | V17: TANK | W17: LIVE-BTM-BIN | Z17: CS | AA17: Included in per unit cost of feedstock | AF17: Idaho National Lab
A18: T-103 | D18: Dryer Feed Bin | E18: included w/ feedstock cost | K18: INCLUDED | V18: TANK | W18: LIVE-BTM-BIN | Z18: CS | AA18: Included in per unit cost of feedstock | AF18: Idaho National Lab
A19: T-104 | D19: Dried Biomass Hopper | E19: included w/ feedstock cost | K19: INCLUDED | V19: TANK | W19: VERTICAL-VESSEL | Z19: CS | AA19: Included in per unit cost of feedstock | AF19: Idaho National Lab
A20: T-105 | D20: Lock Hopper | E20: included w/ feedstock cost | K20: INCLUDED | V20: TANK | W20: VERTICAL-VESSEL | Z20: CS | AA20: Included in per unit cost of feedstock | AF20: Idaho National Lab
A21: T-106 | D21: Feed Hopper | E21: included w/ feedstock cost | K21: INCLUDED | V21: TANK | W21: VERTICAL-VESSEL | Z21: CS | AA21: Included in per unit cost of feedstock | AF21: Idaho National Lab
A22: A100 | B22: 1 | D22: Pinch Exchanger CAPEX | L22: 2008 | M22: =O22 -> 0 | O22: 0 | P22: 2.6353666 | Q22: =O22*P22 -> 0 | R22: =Q22*VLOOKUP(COSTYEAR,INDIRECT(IX_CAP),4,FALSE)/VLOOKUP(L22,INDIRECT(IX_CAP),4,FALSE) -> 0 | S22: =O22*VLOOKUP(COSTYEAR,INDIRECT(IX_CAP),4,FALSE)/VLOOKUP(L22,INDIRECT(IX_CAP),4,FALSE) -> 0
A23: Area A100: Feed Handling & Drying ↑ | M23: =SUM(M4:M21) -> 277900 | O23: =SUM(O4:O21) -> 240241.283 | P23: =IF(O23=0,"",Q23/O23) -> 1.962592683 | Q23: =SUM(Q4:Q21) -> 471495.7843 | R23: =SUM(R4:R21) -> 480301.5581 | S23: =SUM(S4:S21) -> 244789.9101
A24: C-202 | B24: 2 | D24: Fines purge cooler | E24: included | V24: CONVEYOR | W24: SCREW | Z24: CS | AF24: HGI FCC Costing Sheet
A25: K-201 | B25: 2 | D25: Fluidizing gas recycle compressor | E25: A200.A201.W-K201 | F25: 3648 | G25: =F25*B25 -> 7296 | H25: =IF(ISNUMBER(SEARCH(".W",E25)),VLOOKUP(E25,INDIRECT(LU_WORK),2),IF(ISNUMBER(SEARCH(".Q",E25)),ABS(VLOOKUP(E25,INDIRECT(LU_HEAT),2)),VLOOKUP(E25,INDIRECT(LU_SENS),2))) -> 2260.74029 | I25: =IF(ISNUMBER(SEARCH(".W",E25)),VLOOKUP(E25,INDIRECT(LU_WORK),3),IF(ISNUMBER(SEARCH(".Q",E25)),VLOOKUP(E25,INDIRECT(LU_HEAT),3),VLOOKUP(E25,INDIRECT(LU_SENS),3))) -> HP | J25: =IFERROR(H25/G25,0) -> 0.3098602371 | K25: 4700000 | L25: 2014 | M25: =K25*(B25+C25) -> 9400000 | N25: 0.9 | O25: =IF(E25="",M25,M25*J25^N25) -> 3274742.209 | P25: 1.6 | Q25: =O25*P25 -> 5239587.535 | R25: =Q25*VLOOKUP(COSTYEAR,INDIRECT(IX_CAP),4,FALSE)/VLOOKUP(L25,INDIRECT(IX_CAP),4,FALSE) -> 5326898.835 | S25: =O25*VLOOKUP(COSTYEAR,INDIRECT(IX_CAP),4,FALSE)/VLOOKUP(L25,INDIRECT(IX_CAP),4,FALSE) -> 3329311.772 | V25: COMPRESSOR | W25: RECIPROCATING | Z25: SS | AA25: 2-stage reciprocating | AC25: 3648 hp | AF25: Vendor quote via HGI | AJ25: cfb
A26: K-202 | B26: 2 | D26: Combustor air compressor | E26: A200.A201.CHAR-COM.W-K202 | F26: 10000 | G26: =F26*B26 -> 20000 | H26: =IF(ISNUMBER(SEARCH(".W",E26)),VLOOKUP(E26,INDIRECT(LU_WORK),2),IF(ISNUMBER(SEARCH(".Q",E26)),ABS(VLOOKUP(E26,INDIRECT(LU_HEAT),2)),VLOOKUP(E26,INDIRECT(LU_SENS),2))) -> 25041.264 | I26: =IF(ISNUMBER(SEARCH(".W",E26)),VLOOKUP(E26,INDIRECT(LU_WORK),3),IF(ISNUMBER(SEARCH(".Q",E26)),VLOOKUP(E26,INDIRECT(LU_HEAT),3),VLOOKUP(E26,INDIRECT(LU_SENS),3))) -> HP | J26: =IFERROR(H26/G26,0) -> 1.2520632 | K26: 2600000 | L26: 2014 | M26: =K26*(B26+C26) -> 5200000 | N26: 0.78 | O26: =IF(E26="",M26,M26*J26^N26) -> 6196576.556 | P26: 1.6 | Q26: =O26*P26 -> 9914522.489 | R26: =Q26*VLOOKUP(COSTYEAR,INDIRECT(IX_CAP),4,FALSE)/VLOOKUP(L26,INDIRECT(IX_CAP),4,FALSE) -> 10079735.85 | S26: =O26*VLOOKUP(COSTYEAR,INDIRECT(IX_CAP),4,FALSE)/VLOOKUP(L26,INDIRECT(IX_CAP),4,FALSE) -> 6299834.905 | V26: COMPRESSOR | W26: CENTRIFUGAL | Z26: SS | AA26: Multi-stage oil-free | AC26: 10,000 hp | AF26: Vendor quote via HGI | AJ26: cfb | AK26: Adjust installation factor based on pressure: 3 at 20 psia, 4 at 120 psia
A27: R-201 | B27: 2 | D27: Catalytic Fluidized Bed Reactor | E27: VOLFLMX.A200.A201.208 | F27: 1225468 | G27: =F27*B27 -> 2450936 | H27: =IF(ISNUMBER(SEARCH(".W",E27)),VLOOKUP(E27,INDIRECT(LU_WORK),2),IF(ISNUMBER(SEARCH(".Q",E27)),ABS(VLOOKUP(E27,INDIRECT(LU_HEAT),2)),VLOOKUP(E27,INDIRECT(LU_SENS),2))) -> 2349240.84 | I27: =IF(ISNUMBER(SEARCH(".W",E27)),VLOOKUP(E27,INDIRECT(LU_WORK),3),IF(ISNUMBER(SEARCH(".Q",E27)),VLOOKUP(E27,INDIRECT(LU_HEAT),3),VLOOKUP(E27,INDIRECT(LU_SENS),3))) -> CUFT/HR | J27: =IFERROR(H27/G27,0) -> 0.9585076232 | K27: 3889900 | L27: 2011 | M27: =K27*(B27+C27) -> 7779800 | N27: 0.5 | O27: =IF(E27="",M27,M27*J27^N27) -> 7616688.912 | P27: =3 + (VLOOKUP(AK27,INDIRECT(LU_SENS),2)-20)*(4-3)/(120-20) -> 4.01 | Q27: =O27*P27 -> 30542922.54 | R27: =Q27*VLOOKUP(COSTYEAR,INDIRECT(IX_CAP),4,FALSE)/VLOOKUP(L27,INDIRECT(IX_CAP),4,FALSE) -> 30542922.54 | S27: =O27*VLOOKUP(COSTYEAR,INDIRECT(IX_CAP),4,FALSE)/VLOOKUP(L27,INDIRECT(IX_CAP),4,FALSE) -> 7616688.912 | V27: REACTOR | W27: FLUIDIZED BED | X27: 105 | Y27: 930 | Z27: Refractory | AA27: 1,000 tpd biomass | AC27: 20,424 ACFM gas prod | AE27: 7.8 lb media/lb | AF27: HGI FCC Costing Sheet | AJ27: cfb | AK27: =REPLACE(E27, FIND("VOLFLMX", UPPER(E27)), 7,"PRES") -> PRES.A200.A201.208
A28: R-202 | B28: 2 | D28: Char Combustor | E28: VOLFLMX.A200.A201.CHAR-COM.226 | F28: 1199076 | G28: =F28*B28 -> 2398152 | H28: =IF(ISNUMBER(SEARCH(".W",E28)),VLOOKUP(E28,INDIRECT(LU_WORK),2),IF(ISNUMBER(SEARCH(".Q",E28)),ABS(VLOOKUP(E28,INDIRECT(LU_HEAT),2)),VLOOKUP(E28,INDIRECT(LU_SENS),2))) -> 2386299.77 | I28: =IF(ISNUMBER(SEARCH(".W",E28)),VLOOKUP(E28,INDIRECT(LU_WORK),3),IF(ISNUMBER(SEARCH(".Q",E28)),VLOOKUP(E28,INDIRECT(LU_HEAT),3),VLOOKUP(E28,INDIRECT(LU_SENS),3))) -> CUFT/HR | J28: =IFERROR(H28/G28,0) -> 0.9950577653 | K28: 3152459 | L28: 2011 | M28: =K28*(B28+C28) -> 6304918 | N28: 0.5 | O28: =IF(E28="",M28,M28*J28^N28) -> 6289318.51 | P28: =3 + (VLOOKUP(AK28,INDIRECT(LU_SENS),2)-20)*(4-3)/(120-20) -> 3.96922 | Q28: =O28*P28 -> 24963688.82 | R28: =Q28*VLOOKUP(COSTYEAR,INDIRECT(IX_CAP),4,FALSE)/VLOOKUP(L28,INDIRECT(IX_CAP),4,FALSE) -> 24963688.82 | S28: =O28*VLOOKUP(COSTYEAR,INDIRECT(IX_CAP),4,FALSE)/VLOOKUP(L28,INDIRECT(IX_CAP),4,FALSE) -> 6289318.51 | V28: REACTOR | W28: FLUIDIZED BED | X28: 105 | Y28: 1200 | Z28: Refractory | AA28: 727,725 lb/h solids | AC28: 20,000 ACFM gas prod | AF28: HGI FCC Costing Sheet | AJ28: cfb | AK28: =REPLACE(E28, FIND("VOLFLMX", UPPER(E28)), 7,"PRES") -> PRES.A200.A201.CHAR-COM.226
A29: R-202C | B29: 2 | D29: Catalyst Cooler | E29: A200.A201.CHAR-COM.Q-STM202 | F29: 127815673 | G29: =F29*B29 -> 255631346 | H29: =IF(ISNUMBER(SEARCH(".W",E29)),VLOOKUP(E29,INDIRECT(LU_WORK),2),IF(ISNUMBER(SEARCH(".Q",E29)),ABS(VLOOKUP(E29,INDIRECT(LU_HEAT),2)),VLOOKUP(E29,INDIRECT(LU_SENS),2))) -> 258580315 | I29: =IF(ISNUMBER(SEARCH(".W",E29)),VLOOKUP(E29,INDIRECT(LU_WORK),3),IF(ISNUMBER(SEARCH(".Q",E29)),VLOOKUP(E29,INDIRECT(LU_HEAT),3),VLOOKUP(E29,INDIRECT(LU_SENS),3))) -> BTU/HR | J29: =IFERROR(H29/G29,0) -> 1.011536023 | K29: 1793235 | L29: 2011 | M29: =K29*(B29+C29) -> 3586470 | N29: 0.8 | O29: =IF(E29="",M29,M29*J29^N29) -> 3619530.871 | P29: 3 | Q29: =O29*P29 -> 10858592.61 | R29: =Q29*VLOOKUP(COSTYEAR,INDIRECT(IX_CAP),4,FALSE)/VLOOKUP(L29,INDIRECT(IX_CAP),4,FALSE) -> 10858592.61 | S29: =O29*VLOOKUP(COSTYEAR,INDIRECT(IX_CAP),4,FALSE)/VLOOKUP(L29,INDIRECT(IX_CAP),4,FALSE) -> 3619530.871 | V29: HEAT EXCH | W29: SOLIDS COOLER | X29: 105 | Y29: 1200 | Z29: Refractory | AA29: 128 MMBtu/h | AF29: HGI FCC Costing Sheet | AJ29: cfb
A30: S-201 | B30: 2 | D30: Primary Cyclone | E30: included | K30: INCLUDED | V30: SEPARATOR | W30: CYCLONE | X30: 105 | Y30: 930 | Z30: CS | AA30: 20,424 ACFM gas prod | AC30: 712,880 lb/h solids | AE30: 99.9% reject | AF30: HGI FCC Costing Sheet
A31: S-202 | B31: 2 | D31: Secondary Cyclone | E31: included | K31: INCLUDED | V31: SEPARATOR | W31: CYCLONE | X31: 105 | Y31: 930 | Z31: CS | AA31: 21,341 ACFM gas prod | AC31: 720 lb/h solids | AE31: 99.9% reject | AF31: HGI FCC Costing Sheet
A32: S-203 | B32: 0 | D32: Char Combustor Primary Cyclone | E32: Included | K32: INCLUDED | V32: SEPARATOR | W32: CYCLONE | X32: 105 | Y32: 1200 | Z32: CS | AA32: 20,000 ACFM gas prod | AC32: 713,000 lb/h solids | AE32: 99.9% reject | AF32: HGI FCC Costing Sheet
A33: S-204 | B33: 0 | D33: Char Combustor Secondary Cyclone | E33: Included | K33: INCLUDED | V33: SEPARATOR | W33: CYCLONE | X33: 105 | Y33: 1200 | Z33: CS | AA33: 20,000 ACFM gas prod | AC33: 720 lb/h solids | AE33: 99.9% reject | AF33: HGI FCC Costing Sheet
A34: T-201 | B34: 2 | D34: Catalyst steam stripper | E34: STRM.A200.a201.210 | F34: 2139 | G34: =F34*B34 -> 4278 | H34: =IF(ISNUMBER(SEARCH(".W",E34)),VLOOKUP(E34,INDIRECT(LU_WORK),2),IF(ISNUMBER(SEARCH(".Q",E34)),ABS(VLOOKUP(E34,INDIRECT(LU_HEAT),2)),VLOOKUP(E34,INDIRECT(LU_SENS),2))) -> 4153.22058 | I34: =IF(ISNUMBER(SEARCH(".W",E34)),VLOOKUP(E34,INDIRECT(LU_WORK),3),IF(ISNUMBER(SEARCH(".Q",E34)),VLOOKUP(E34,INDIRECT(LU_HEAT),3),VLOOKUP(E34,INDIRECT(LU_SENS),3))) -> LB/HR | J34: =IFERROR(H34/G34,0) -> 0.9708323001 | K34: 742538 | L34: 2011 | M34: =K34*(B34+C34) -> 1485076 | N34: 0.3 | O34: =IF(E34="",M34,M34*J34^N34) -> 1471946.227 | P34: 3 | Q34: =O34*P34 -> 4415838.682 | R34: =Q34*VLOOKUP(COSTYEAR,INDIRECT(IX_CAP),4,FALSE)/VLOOKUP(L34,INDIRECT(IX_CAP),4,FALSE) -> 4415838.682 | S34: =O34*VLOOKUP(COSTYEAR,INDIRECT(IX_CAP),4,FALSE)/VLOOKUP(L34,INDIRECT(IX_CAP),4,FALSE) -> 1471946.227 | V34: VESSEL | W34: PRESSURE STORAGE | X34: 105 | Y34: 650 | Z34: CS | AA34: 1 min cat res. time | AC34: 3 lb steam/1000 lb catalyst | AF34: HGI FCC Costing Sheet | AJ34: cfb
A35: T-202 | B35: 0 | D35: Depleted catalyst and ash storage bin | E35: Included | K35: INCLUDED | V35: MISC | W35: ROLL-OFF DISPOSAL | X35: 0 | Y35: 300 | Z35: CS | AF35: HGI FCC Costing Sheet
A36: T-207 | B36: 0 | D36: Catalyst feed bin | E36: Included | K36: INCLUDED | V36: VESSEL | W36: PRESSURE STORAGE | X36: 105 | Y36: 650 | Z36: CS | AF36: HGI FCC Costing Sheet
A37: A201 | B37: 1 | D37: Pinch Exchanger CAPEX | L37: 2008 | M37: =O37 -> 2479203.369 | O37: 2479203.369 | P37: 2.6353666 | Q37: =O37*P37 -> 6533609.753 | R37: =Q37*VLOOKUP(COSTYEAR,INDIRECT(IX_CAP),4,FALSE)/VLOOKUP(L37,INDIRECT(IX_CAP),4,FALSE) -> 6650565.228 | S37: =O37*VLOOKUP(COSTYEAR,INDIRECT(IX_CAP),4,FALSE)/VLOOKUP(L37,INDIRECT(IX_CAP),4,FALSE) -> 2523582.574 | AF37: ACCE V7.2 | AJ37: heat
A38: Area A201: In Situ Catalytic Fast Pyrolysis ↑ | M38: =SUM(M24:M37) -> 36235467.37 | O38: =SUM(O24:O37) -> 30948006.65 | P38: =IFERROR(Q38/O38,0) -> 2.987874581 | Q38: =SUM(Q24:Q37) -> 92468762.43 | R38: =SUM(R24:R37) -> 92838242.56 | S38: =SUM(S24:S37) -> 31150213.77
A39: D-301 | B39: 1 | D39: Heavy Fraction Condenser Absorber | E39: d301dft | G39: 12 | H39: =IF(ISNUMBER(SEARCH(".W",E39)),VLOOKUP(E39,INDIRECT(LU_WORK),2),IF(ISNUMBER(SEARCH(".Q",E39)),ABS(VLOOKUP(E39,INDIRECT(LU_HEAT),2)),VLOOKUP(E39,INDIRECT(LU_SENS),2))) -> 11.447287 | I39: ft | J39: =IFERROR((H39/G39)^2,0) -> 0.9100026365 | K39: =AH39 -> 1085800 | L39: 2013 | M39: =K39*(B39+C39) -> 1085800 | N39: 0.6 | O39: =IF(B39<1,M39,M39*J39^N39) -> 1026066.309 | P39: =AI39/AH39 -> 1.398784307 | Q39: =O39*P39 -> 1435245.45 | R39: =Q39*VLOOKUP(COSTYEAR,INDIRECT(IX_CAP),4,FALSE)/VLOOKUP(L39,INDIRECT(IX_CAP),4,FALSE) -> 1481796.686 | S39: =O39*VLOOKUP(COSTYEAR,INDIRECT(IX_CAP),4,FALSE)/VLOOKUP(L39,INDIRECT(IX_CAP),4,FALSE) -> 1059346.09 | V39: VESSEL | W39: TRAYED TOWER | X39: 120 | Y39: 500 | Z39: 316SS | AA39: 12' Ø | AB39: 70' T-T | AC39: 14 trays | AD39: sieve | AF39: ACCE V8.4 | AH39: 1085800 | AI39: 1518800 | AJ39: q
A40: D-302 | B40: 1 | D40: Light Fraction Condenser Absorber | E40: d302dft | G40: 13 | H40: 12.7950121 | I40: ft | J40: =IFERROR((H40/G40)^2,0) -> 0.9687120393 | K40: =AH40 -> 1085300 | L40: 2013 | M40: 1085300 | N40: 0.6 | O40: 1064796.516 | P40: =AI40/AH40 -> 1.325808532 | Q40: 1411716.306 | R40: 1457504.39 | S40: 1099332.486 | V40: VESSEL | W40: TRAYED TOWER | X40: 100 | Y40: 120 | Z40: 316SS | AA40: 13' Ø | AB40: 70' T-T | AC40: 20 trays | AD40: sieve | AF40: ACCE V8.4 | AH40: 1085300 | AI40: 1438900 | AJ40: q
A41: H-313 | B41: 1 | D41: D-301 Vapor ACHE | E41: a300.a310.qa-h313 | G41: 61000000 | H41: 73276797 | I41: =IF(ISNUMBER(SEARCH(".W",E41)),VLOOKUP(E41,INDIRECT(LU_WORK),3),IF(ISNUMBER(SEARCH(".Q",E41)),VLOOKUP(E41,INDIRECT(LU_HEAT),3),VLOOKUP(E41,INDIRECT(LU_SENS),3))) -> BTU/HR | J41: =IFERROR(H41/G41,0) -> 1.201258967 | K41: 578900 | L41: 2013 | M41: 578900 | N41: 0.6 | O41: 646227.6485 | P41: 1.317498704 | Q41: 851404.0897 | R41: 879018.8178 | S41: 667187.6146 | V41: HEAT EXCH | W41: AIR COOLED | X41: 130 | Z41: 316SS | AA41: 15,000 sq ft | AB41: 45' tubes | AC41: 3 bays x 15' | AD41: 2 fan/bay | AF41: ACCE V8.4 | AH41: 578900 | AI41: 762700 | AJ41: q
A42: H-314 | B42: 1 | D42: D-302 Feed Cooler | E42: a300.a310.qc-h314 | G42: 12067840 | H42: 12031214.3 | I42: BTU/HR | J42: 0.9969650161 | K42: 172000 | L42: 2013 | M42: 172000 | N42: 0.7 | O42: 171634.4214 | P42: 2.027906977 | Q42: 348058.6405 | R42: 359347.6922 | S42: 177201.2702 | V42: HEAT EXCH | W42: SHELL & TUBE | X42: 150 | Y42: 190 | Z42: 316SS | AA42: 5,000 sq ft | AB42: Shell 43" Ø | AC42: 20' L | AD42: 955 X 1" tubes | AF42: ACCE V8.4 | AH42: 172000 | AI42: 348800 | AJ42: q
A43: H-315 | B43: 1 | D43: D-302 Feed/overhead exchanger | E43: a300.a310.qx-h315 | G43: 4850345 | H43: 4544890.01 | I43: BTU/HR | J43: 0.9370240694 | K43: 758400 | L43: 2013 | M43: 758400 | N43: 0.7 | O43: 724642.5758 | P43: 1.520701477 | Q43: 1101965.035 | R43: 1137706.542 | S43: 748145.8781 | V43: HEAT EXCH | W43: SHELL & TUBE | X43: 110 | Z43: 316SS | AA43: 18,500 sq ft | AB43: Shell 42" Ø | AC43: 23' L | AD43: 884 X 1" tubes | AE43: 4 shells | AF43: ACCE V8.4 | AH43: 758400 | AI43: 1153300 | AJ43: q
A44: H-316 | B44: 1 | D44: D-302 Liquid feed chiller | E44: a300.a310.qch-h316 | G44: 10138754 | H44: 10362534.9 | I44: BTU/HR | J44: 1.022071834 | K44: 132400 | L44: 2013 | M44: 132400 | N44: 0.7 | O44: 134438.909 | P44: 2.331570997 | Q44: 313453.8611 | R44: 323620.5296 | S44: 138799.346 | V44: HEAT EXCH | W44: SHELL & TUBE | X44: 150 | Y44: 190 | Z44: 316SS | AA44: 3,650 sq ft | AB44: Shell 36" Ø | AC44: 20' L | AD44: 698 X 1" tubes | AF44: ACCE V8.4 | AH44: 132400 | AI44: 308700 | AJ44: q
A45: H-320 | B45: 1 | D45: Heavy fraction ACHE | E45: a300.a310.qa-h320 | G45: 280000 | H45: 282244.259 | I45: BTU/HR | J45: 1.008015211 | K45: 33300 | L45: 2013 | M45: 33300 | N45: 0.6 | O45: 33459.88815 | P45: 2.423423423 | Q45: 81087.47668 | R45: 83717.49532 | S45: 34545.13747 | V45: HEAT EXCH | W45: AIR COOLED | X45: 130 | Z45: 316SS | AA45: 70 sq ft | AB45: 5' tubes | AC45: 1 bays x 2' | AD45: 2 fan/bay | AF45: ACCE V8.4 | AH45: 33300 | AI45: 80700 | AJ45: q
A46: H-320A | B46: 1 | D46: Heavy fraction cooler | E46: a300.a310.qc-h320a | G46: 845500 | H46: 12031214.3 | I46: BTU/HR | J46: 14.22970349 | K46: 45300 | L46: 2013 | M46: 45300 | N46: 0.7 | O46: 290626.5573 | P46: 3.227373068 | Q46: 937960.3241 | R46: 968382.4464 | S46: 300052.8374 | V46: HEAT EXCH | W46: SHELL & TUBE | X46: 2085 | Y46: 190 | Z46: SS Clad CS | AA46: 343 | AB46: 14 | AC46: 16 | AD46: 82 X 1" tubes | AF46: H-463C | AH46: 45300 | AI46: 146200 | AJ46: q
A47: H-326 | B47: 1 | C47: 1 | D47: D-302 Quench circulation chiller | E47: a300.a310.qch-h326 | G47: 13087000 | H47: 13526059.5 | I47: BTU/HR | J47: 1.033549286 | K47: 78300 | L47: 2013 | M47: 156600 | N47: 0.7 | O47: 160259.4292 | P47: 4.634738186 | Q47: 742760.4961 | R47: 766851.4412 | S47: 165457.3377 | V47: HEAT EXCH | W47: PLATE & FRAME | X47: 200 | Y47: 200 | Z47: 316SS | AA47: 7,500 sq ft | AB47: 486 plates | AF47: ACCE V8.4 | AH47: 78300 | AI47: 362900 | AJ47: q
A48: P-318 | B48: 1 | C48: 1 | D48: D-301 Bottoms pump | E48: VOLFLMX.a300.a310.318 | G48: 56 | H48: =IF(ISNUMBER(SEARCH(".W",E48)),VLOOKUP(E48,INDIRECT(LU_WORK),2),IF(ISNUMBER(SEARCH(".Q",E48)),ABS(VLOOKUP(E48,INDIRECT(LU_HEAT),2)),VLOOKUP(E48,INDIRECT(LU_SENS),2)))*7.481/60 -> 48.3923735 | I48: gpm | J48: 0.8641495268 | K48: 5800 | L48: 2013 | M48: 11600 | N48: 0.8 | O48: 10321.17416 | P48: 4.379310345 | Q48: 45199.62477 | R48: 46665.64468 | S48: 10655.93461 | V48: PUMP | W48: CENTRIFUGAL | X48: 125 | Y48: 250 | Z48: 316SS | AA48: 56 | AB48: 75 | AF48: ACCE V8.4 | AH48: 5800 | AI48: 25400 | AJ48: q
A49: P-323 | B49: 1 | C49: 1 | D49: Circulation filter charge pump | E49: a300.a310.w-p323 | G49: 41 | H49: 43.1273836 | I49: HP | J49: 1.051887405 | K49: 25400 | L49: 2013 | M49: 50800 | N49: 0.8 | O49: 52897.98343 | P49: 4.614173228 | Q49: 244080.459 | R49: 251997.0471 | S49: 54613.69451 | V49: PUMP | W49: CENTRIFUGAL | X49: 135 | Y49: 250 | Z49: 316SS | AA49: 2655 | AB49: 69 | AF49: ACCE V8.4 | AH49: 25400 | AI49: 117200 | AJ49: q
A50: P-329 | B50: 1 | C50: 1 | D50: Aqueous filter charge pump | E50: VOLFLMX.a300.a310.329 | G50: 182 | H50: =IF(ISNUMBER(SEARCH(".W",E50)),VLOOKUP(E50,INDIRECT(LU_WORK),2),IF(ISNUMBER(SEARCH(".Q",E50)),ABS(VLOOKUP(E50,INDIRECT(LU_HEAT),2)),VLOOKUP(E50,INDIRECT(LU_SENS),2)))*7.481/60 -> 179.2336819 | I50: gpm | J50: 0.9848004499 | K50: 7500 | L50: 2013 | M50: 15000 | N50: 0.8 | O50: 14817.32647 | P50: 4.2 | Q50: 62232.77116 | R50: 64251.2499 | S50: 15297.91664 | V50: PUMP | W50: CENTRIFUGAL | X50: 125 | Y50: 250 | Z50: 316SS | AA50: 182 | AB50: 30 | AF50: ACCE V8.4 | AH50: 7500 | AI50: 31500 | AJ50: q
A51: P-331 | B51: 1 | C51: 1 | D51: Organic product pump | E51: VOLFLMX.a300.a310.331 | G51: 124 | H51: =IF(ISNUMBER(SEARCH(".W",E51)),VLOOKUP(E51,INDIRECT(LU_WORK),2),IF(ISNUMBER(SEARCH(".Q",E51)),ABS(VLOOKUP(E51,INDIRECT(LU_HEAT),2)),VLOOKUP(E51,INDIRECT(LU_SENS),2)))*7.481/60 -> 118.1554741 | I51: gpm | J51: 0.9528667264 | K51: 6500 | L51: 2013 | M51: 13000 | N51: 0.8 | O51: 12507.45882 | P51: 4.630769231 | Q51: 57919.15548 | R51: 59797.72495 | S51: 12913.12997 | V51: PUMP | W51: CENTRIFUGAL | X51: 125 | Y51: 250 | Z51: 316SS | AA51: 124 | AB51: 30 | AF51: ACCE V8.4 | AH51: 6500 | AI51: 30100 | AJ51: q
A52: P-332 | B52: 1 | C52: 1 | D52: Quench recycle pump | E52: a300.a310.w-p332 | G52: 0.53 | H52: 0.555172225 | I52: HP | J52: 1.047494764 | K52: 7800 | L52: 2013 | M52: 15600 | N52: 0.8 | O52: 16189.9716 | P52: 4.884615385 | Q52: 79081.78437 | R52: 81646.7497 | S52: 16715.08262 | V52: PUMP | W52: CENTRIFUGAL | X52: 125 | Y52: 250 | Z52: 316SS | AA52: 215 | AB52: 9 | AF52: ACCE V8.4 | AH52: 7800 | AI52: 38100 | AJ52: q
A53: S-319 | B53: 1 | C53: 1 | D53: D-301 Bottoms filter | E53: VOLFLMX.a300.a310.320 | G53: 52 | H53: =IF(ISNUMBER(SEARCH(".W",E53)),VLOOKUP(E53,INDIRECT(LU_WORK),2),IF(ISNUMBER(SEARCH(".Q",E53)),ABS(VLOOKUP(E53,INDIRECT(LU_HEAT),2)),VLOOKUP(E53,INDIRECT(LU_SENS),2)))*7.481/60 -> 44.75937235 | I53: gpm | J53: 0.8607571607 | K53: 14600 | L53: 2013 | M53: 29200 | N53: 0.8 | O53: 25899.26068 | P53: 1.842465753 | Q53: 47718.50084 | R53: 49266.21883 | S53: 26739.28606 | V53: FILTER | W53: CARTRIDGE | Z53: 316SS | AA53: 52 | AF53: ACCE V8.4 | AH53: 14600 | AI53: 26900 | AJ53: q
A54: S-322 | B54: 1 | D54: D-302 Bottoms decanter | E54: STRM.a300.a310.323 | G54: 1013050 | H54: 1097185.14 | I54: LB/HR | J54: 1.08305132 | K54: 294700 | L54: 2013 | M54: 294700 | N54: 0.7 | O54: 311626.5568 | P54: 1.821513403 | Q54: 567631.9501 | R54: 586042.7167 | S54: 321733.9579 | V54: VESSEL | W54: HORIZ LL SEP | X54: 110 | Y54: 150 | Z54: 316SS | AA54: 11 | AB54: 35 | AC54: +20% internals | AF54: ACCE V8.4 | AH54: 294700 | AI54: 536800 | AJ54: q
A55: S-324 | B55: 2 | C55: 1 | D55: Quench circulation filter | E55: VOLFLMX.a300.a310.324 | G55: 2340 | H55: =IF(ISNUMBER(SEARCH(".W",E55)),VLOOKUP(E55,INDIRECT(LU_WORK),2),IF(ISNUMBER(SEARCH(".Q",E55)),ABS(VLOOKUP(E55,INDIRECT(LU_HEAT),2)),VLOOKUP(E55,INDIRECT(LU_SENS),2)))*7.481/60 -> 2447.436169 | I55: gpm | J55: 1.045912893 | K55: 83100 | L55: 2013 | M55: 249300 | N55: 0.8 | O55: =IF(E55="",M55,M55*J55^N55) -> 258415.5787 | P55: 1.709987966 | Q55: 441887.5298 | R55: 456219.8593 | S55: 266797.1169 | V55: FILTER | W55: TUBULAR | Z55: 316SS | AA55: 2340 | AB55: 60 | AF55: ACCE V8.4 | AH55: 83100 | AI55: 142100 | AJ55: q
A56: S-329 | B56: 1 | C56: 1 | D56: Aqueous phase filter | E56: VOLFLMX.a300.a310.329 | G56: 182 | H56: =IF(ISNUMBER(SEARCH(".W",E56)),VLOOKUP(E56,INDIRECT(LU_WORK),2),IF(ISNUMBER(SEARCH(".Q",E56)),ABS(VLOOKUP(E56,INDIRECT(LU_HEAT),2)),VLOOKUP(E56,INDIRECT(LU_SENS),2)))*7.481/60 -> 179.2336819 | I56: gpm | J56: 0.9848004499 | K56: 26500 | L56: 2013 | M56: 53000 | N56: 0.8 | O56: =IF(E56="",M56,M56*J56^N56) -> 52354.55352 | P56: 1.769811321 | Q56: 92657.68151 | R56: 95662.97208 | S56: 54052.63881 | V56: FILTER | W56: TUBULAR | Z56: 316SS | AA56: 182 | AB56: 400 | AF56: ACCE V8.4 | AH56: 26500 | AI56: 46900 | AJ56: q
A57: T-328 | B57: 1 | D57: Organic product surge tank | E57: VOLFLMX.a300.a310.331 | G57: 1000 | H57: 947.644492 | I57: CUFT/HR | J57: 0.947644492 | K57: 48000 | L57: 2013 | M57: 48000 | N57: 0.7 | O57: =IF(B57<1,M57,M57*J57^N57) -> 46226.71659 | P57: 3.241666667 | Q57: 149851.6063 | R57: 154711.9439 | S57: 47726.04954 | V57: VESSEL | W57: VERTICAL PRESSURE | X57: 125 | Y57: 250 | Z57: 316SS | AA57: 4.5 | AB57: 13.5 | AF57: ACCE V8.4 | AH57: 48000 | AI57: 155600 | AJ57: q
A58: T-332 | B58: 1 | D58: D-301 Circulation surge tank | E58: VOLFLMX.a300.a310.332 | G58: 1000 | H58: 1570.47746 | I58: CUFT/HR | J58: 1.57047746 | K58: 48000 | L58: 2013 | M58: 48000 | N58: 0.7 | O58: =IF(E58="",M58,M58*J58^N58) -> 65835.99942 | P58: 3.241666667 | Q58: 213418.3648 | R58: 220340.4482 | S58: 67971.34648 | V58: VESSEL | W58: VERTICAL PRESSURE | X58: 125 | Y58: 250 | Z58: 316SS | AA58: 4.5 | AB58: 13.5 | AF58: T-328 | AH58: 48000 | AI58: 155600 | AJ58: q
A59: A310 | B59: 1 | D59: Pinch exchanger CAPEX | L59: 2008 | M59: =O59 -> 1447137.508 | O59: 1447137.508 | P59: 2.6353666 | Q59: 3813737.853 | R59: 3882006.014 | S59: 1473042.124 | AF59: ACCE V7.2 | AJ59: heat
A60: Area A310: Product Condensation and Separation ↑ | M60: =SUM(M39:M59) -> 6323337.508 | O60: =SUM(O39:O59) -> 6566382.342 | P60: =Q60/O60 -> 1.985730998 | Q60: =SUM(Q39:Q59) -> 13039068.96 | R60: =SUM(R39:R59) -> 13406554.63 | S60: =SUM(S39:S59) -> 6758326.276
A61: H-373 | B61: 1 | D61: Post-WGS ACHE | E61: a300.a360.a365.qa-h373 | G61: 5160000 | H61: =IF(ISNUMBER(SEARCH(".W",E61)),VLOOKUP(E61,INDIRECT(LU_WORK),2),IF(ISNUMBER(SEARCH(".Q",E61)),ABS(VLOOKUP(E61,INDIRECT(LU_HEAT),2)),VLOOKUP(E61,INDIRECT(LU_SENS),2))) -> 11798910.4 | I61: =IF(ISNUMBER(SEARCH(".W",E61)),VLOOKUP(E61,INDIRECT(LU_WORK),3),IF(ISNUMBER(SEARCH(".Q",E61)),VLOOKUP(E61,INDIRECT(LU_HEAT),3),VLOOKUP(E61,INDIRECT(LU_SENS),3))) -> BTU/HR | J61: =IFERROR(H61/G61,0) -> 2.286610543 | K61: =AH61 -> 88300 | L61: 2013 | M61: =K61*(B61+C61) -> 88300 | N61: 0.6 | O61: =IF(B61<1,M61,M61*J61^N61) -> 145036.0704 | P61: =AI61/AH61 -> 1.714609287 | Q61: =O61*P61 -> 248680.1932 | R61: =Q61*VLOOKUP(COSTYEAR,INDIRECT(IX_CAP),4,FALSE)/VLOOKUP(L61,INDIRECT(IX_CAP),4,FALSE) -> 256745.9706 | S61: =O61*VLOOKUP(COSTYEAR,INDIRECT(IX_CAP),4,FALSE)/VLOOKUP(L61,INDIRECT(IX_CAP),4,FALSE) -> 149740.2193 | V61: HEAT EXCH | W61: AIR COOLED | X61: 150 | Z61: 316SS | AA61: 1252 | AB61: 24 | AC61: 1 bays x 8' | AD61: 2 fan/bay | AF61: ACCE V8.4 | AH61: 88300 | AI61: 151400 | AJ61: wgs
A62: H-374 | B62: 1 | D62: Post-WGS cooler | E62: a300.a360.a365.qc-h374 | G62: 2929000 | H62: 3046052.14 | I62: BTU/HR | J62: 1.039963175 | K62: 45600 | L62: 2013 | M62: 45600 | N62: 0.7 | O62: =IF(B62<1,M62,M62*J62^N62) -> 46868.10731 | P62: 4.048245614 | Q62: 189733.6098 | R62: 195887.4939 | S62: 48388.24334 | V62: HEAT EXCH | W62: SHELL & TUBE | X62: 150 | Y62: 140 | Z62: 316SS | AA62: 1188 | AB62: 21 | AC62: 20 | AD62: 227 X 1" tubes | AF62: ACCE V8.4 | AH62: 45600 | AI62: 184600 | AJ62: wgs
A63: K-390 | B63: 1 | D63: PSA compressor: multistage | E63: a300.a360.a385.w-k390 | G63: 3648 | H63: 2514.13522 | I63: HP | J63: 0.6891818037 | K63: 4700000 | L63: 2014 | M63: 4700000 | N63: 0.9 | O63: =IF(E63="",M63,M63*J63^N63) -> 3362004.42 | P63: 1.6 | Q63: 5379207.072 | R63: 5468844.961 | S63: 3418028.101 | V63: COMPRESSOR | W63: RECIPROCATING | Z63: SS | AA63: 2-stage reciprocating | AC63: 3648 hp | AF63: Vendor quote via HGI | AJ63: wgs
A64: M-385 | B64: 1 | D64: PSA | E64: STRM.a300.a360.a385.390 | G64: 5218 | H64: 5486.3123 | I64: LB/HR | J64: 1.051420525 | K64: 975000 | L64: 2013 | M64: 975000 | N64: 0.6 | O64: =IF(B64<1,M64,M64*J64^N64) -> 1004778.853 | P64: 1.8 | Q64: 1808601.935 | R64: 1867262.742 | S64: 1037368.19 | V64: MISC | W64: MISC | AF64: Vendor quote via HGI | AJ64: wgs
A65: P-377 | B65: 1 | C65: 1 | D65: Compressor condensate pump | E65: VOLFLMX.a300.a360.a385.377 | G65: 56 | H65: =IF(ISNUMBER(SEARCH(".W",E65)),VLOOKUP(E65,INDIRECT(LU_WORK),2),IF(ISNUMBER(SEARCH(".Q",E65)),ABS(VLOOKUP(E65,INDIRECT(LU_HEAT),2)),VLOOKUP(E65,INDIRECT(LU_SENS),2)))*7.481/60 -> 46.71726676 | I65: gpm | J65: 0.8342369064 | K65: =AH65 -> 5800 | L65: 2013 | M65: 11600 | N65: 0.8 | O65: =IF(E65="",M65,M65*J65^N65) -> 10034.35608 | P65: =AI65/AH65 -> 4.379310345 | Q65: 43943.55939 | R65: 45368.83965 | S65: 10359.81378 | V65: PUMP | W65: CENTRIFUGAL | X65: 125 | Y65: 250 | Z65: 316SS | AA65: 56 | AB65: 30 | AF65: P-318 | AH65: 5800 | AI65: 25400 | AJ65: wgs
A66: R-365 | B66: 1 | D66: High-temperature WGS | E66: STRM.a300.a360.a365.370 | G66: 354424 | H66: 77962.996 | I66: LB/HR | J66: 0.2199709839 | K66: 1243000 | L66: 2013 | M66: 1243000 | N66: 0.6 | O66: =IF(B66<1,M66,M66*J66^N66) -> 501060.7303 | P66: 1.416572808 | Q66: 709789.0056 | R66: 732810.5421 | S66: 517312.3034 | V66: VESSEL | W66: VERTICAL PRESSURE | X66: 450 | Y66: 1000 | Z66: 316SS | AA66: 12 | AB66: 24 | AC66: +20% internals | AF66: ACCE V8.4 | AH66: 1243000 | AI66: 1760800 | AJ66: wgs | AK66: Vessel size from Spath 2002, GHSV=3000
A67: S-385 | B67: 1 | D67: PSA Compressor suction KO | E67: VOLFLMX.a300.a360.a385.376 | G67: 288000 | H67: 309211.642 | I67: CUFT/HR | J67: 1.073651535 | K67: 44900 | L67: 2013 | M67: 44900 | N67: 0.7 | O67: =IF(B67<1,M67,M67*J67^N67) -> 47190.07694 | P67: 2 | Q67: 94380.15389 | R67: 97441.31171 | S67: 48720.65585 | V67: VESSEL | W67: VERTICAL PRESSURE | X67: 135 | Y67: 150 | Z67: 316SS | AA67: 4.5 | AB67: 7.5 | AF67: ACCE V8.4 | AH67: 44900 | AI67: 140400 | AJ67: wgs
A68: S-386 | B68: 1 | D68: PSA Compr disch KO | E68: VOLFLMX.a300.a360.a385.387 | G68: 103650 | H68: 111259.802 | I68: CUFT/HR | J68: 1.073418254 | K68: 52500 | L68: 2013 | M68: 52500 | N68: 0.7 | O68: =IF(B68<1,M68,M68*J68^N68) -> 55169.31439 | P68: =AI68/AH68 -> 2.561904762 | Q68: 141338.5292 | R68: 145922.7509 | S68: 56958.69458 | V68: VESSEL | W68: VERTICAL PRESSURE | X68: 280 | Y68: 160 | Z68: 316SS | AA68: 4 | AB68: 7 | AF68: ACCE V8.4 | AH68: 52500 | AI68: 134500 | AJ68: wgs
A69: T-377 | B69: 1 | D69: Compressor condensate tank | E69: VOLFLMX.a300.a360.a385.377 | G69: 1000 | H69: 374.687342 | I69: CUFT/HR | J69: 0.374687342 | K69: 48000 | L69: 2013 | M69: 48000 | N69: 0.7 | O69: =IF(B69<1,M69,M69*J69^N69) -> 24144.01835 | P69: 3.241666667 | Q69: 78266.85949 | R69: 80805.39327 | S69: 24927.11361 | V69: VESSEL | W69: VERTICAL PRESSURE | X69: 125 | Y69: 250 | Z69: 316SS | AA69: 4.5 | AB69: 13.5 | AF69: T-328 | AH69: 48000 | AI69: 155600 | AJ69: wgs
A70: A360 | B70: 1 | D70: Pinch exchanger CAPEX | L70: 2008 | M70: =O70 -> 522045 | O70: 522045 | P70: 2.6353666 | Q70: 1375779.957 | R70: 1400407.231 | S70: 531389.914 | AF70: ACCE V7.2 | AJ70: heat
A71: Area A360: Hydrogen Recycle and WGS ↑ | M71: =SUM(M61:M70) -> 7730945 | O71: =SUM(O61:O70) -> 5718330.947 | P71: =IFERROR(Q71/O71,0) -> 1.760954546 | Q71: =SUM(Q61:Q70) -> 10069720.87 | R71: =SUM(R61:R70) -> 10291497.24 | S71: =SUM(S61:S70) -> 5843193.249
A72: H-410 | B72: 1 | D72: Feed-effluent exchanger | E72: a400.a410.h-410.qx-h410 | G72: 22846147 | H72: =IF(ISNUMBER(SEARCH(".W",E72)),VLOOKUP(E72,INDIRECT(LU_WORK),2),IF(ISNUMBER(SEARCH(".Q",E72)),ABS(VLOOKUP(E72,INDIRECT(LU_HEAT),2)),VLOOKUP(E72,INDIRECT(LU_SENS),2))) -> 27318461 | I72: =IF(ISNUMBER(SEARCH(".W",E72)),VLOOKUP(E72,INDIRECT(LU_WORK),3),IF(ISNUMBER(SEARCH(".Q",E72)),VLOOKUP(E72,INDIRECT(LU_HEAT),3),VLOOKUP(E72,INDIRECT(LU_SENS),3))) -> BTU/HR | J72: =IFERROR(H72/G72,0) -> 1.195757911 | K72: =AH72 -> 542500 | L72: 2013 | M72: =K72*(B72+C72) -> 542500 | N72: 0.7 | O72: =IF(B72<1,M72,M72*J72^N72) -> 614822.8877 | P72: =AI72/AH72 -> 2.225806452 | Q72: =O72*P72 -> 1368476.75 | R72: =Q72*VLOOKUP(COSTYEAR,INDIRECT(IX_CAP),4,FALSE)/VLOOKUP(L72,INDIRECT(IX_CAP),4,FALSE) -> 1412862.388 | S72: =O72*VLOOKUP(COSTYEAR,INDIRECT(IX_CAP),4,FALSE)/VLOOKUP(L72,INDIRECT(IX_CAP),4,FALSE) -> 634764.2611 | V72: HEAT EXCH | W72: SHELL & TUBE | X72: 1910 | Y72: 650 | Z72: 316SS | AA72: 2636 | AB72: 32 | AC72: 23 | AD72: 504 X 1" tubes | AF72: ACCE V8.4 | AH72: 542500 | AI72: 1207500 | AJ72: htr
A73: H-411 | B73: 1 | D73: Feed furnace | E73: A400.A410.QF-H411 | G73: 2210000 | H73: 619443.368 | I73: BTU/HR | J73: 0.2802911167 | K73: 263800 | L73: 2013 | M73: 263800 | N73: 0.6 | O73: =IF(E73="",M73,M73*J73^N73) -> 122981.6715 | P73: 1.311220622 | Q73: 161256.1038 | R73: 166486.3388 | S73: 126970.5006 | V73: HEAT EXCH | W73: BOX FURNACE | X73: 1930 | Y73: 650 | Z73: 316SS | AA73: 2.21 MMBtu/h | AC73: 208 CFM gas | AF73: ACCE V8.4 | AH73: 263800 | AI73: 345900 | AJ73: htr
A74: H-413A | B74: 1 | D74: HT product ACHE | E74: a400.a410.qa-h413 | G74: 1780000 | H74: 2872900.45 | I74: BTU/HR | J74: 1.613989017 | K74: 44800 | L74: 2013 | M74: 44800 | N74: 0.6 | O74: =IF(B74<1,M74,M74*J74^N74) -> 59706.05257 | P74: 1.933035714 | Q74: 115413.932 | R74: 119157.3065 | S74: 61642.57887 | V74: HEAT EXCH | W74: AIR COOLED | X74: 150 | Z74: 316SS | AA74: 432 | AB74: 14 | AC74: 1 bays x 4' | AD74: 2 fan/bay | AF74: ACCE V8.4 | AH74: 44800 | AI74: 86600 | AJ74: htr
A75: H-413C | B75: 1 | D75: HT product cooler | E75: a400.a410.qc-h413 | G75: 1452000 | H75: 2332994.8 | I75: BTU/HR | J75: 1.60674573 | K75: 63900 | L75: 2013 | M75: 63900 | N75: 0.7 | O75: =IF(B75<1,M75,M75*J75^N75) -> 89056.13977 | P75: 3.200312989 | Q75: 285007.5209 | R75: 294251.5512 | S75: 91944.61672 | V75: HEAT EXCH | W75: SHELL & TUBE | X75: 2085 | Y75: 190 | Z75: 316SS | AA75: 589 | AB75: 18 | AC75: 16 | AD75: 141 X 1" tubes | AF75: ACCE V8.4 | AH75: 63900 | AI75: 204500 | AJ75: htr
A76: H-444 | B76: 1 | D76: Quench hydrogen stage 2 cooler | E76: a400.a410.qc-h444 | G76: 215000 | H76: 2332994.8 | I76: BTU/HR | J76: 10.8511386 | K76: 21500 | L76: 2013 | M76: 21500 | N76: 0.7 | O76: =IF(B76<1,M76,M76*J76^N76) -> 114096.1993 | P76: 7.102325581 | Q76: 810348.3547 | R76: 836631.4672 | S76: 117796.834 | V76: HEAT EXCH | W76: SHELL & TUBE | X76: 1650 | Y76: 650 | Z76: 316SS | AA76: 57 | AB76: 8 | AC76: 8 | AD76: 29 X 1" tubes | AF76: ACCE V8.4 | AH76: 21500 | AI76: 152700 | AJ76: htr
A77: H-445 | B77: 1 | D77: Quench hydrogen stage 3 cooler | E77: a400.a410.qc-h445 | G77: 215000 | H77: 619443.368 | I77: BTU/HR | J77: 2.881131944 | K77: 21500 | L77: 2013 | M77: 21500 | N77: 0.7 | O77: =IF(B77<1,M77,M77*J77^N77) -> 45095.44359 | P77: 7.102325581 | Q77: 320282.5226 | R77: 330670.6742 | S77: 46558.08445 | V77: HEAT EXCH | W77: SHELL & TUBE | X77: 1650 | Y77: 650 | Z77: 316SS | AA77: 57 | AB77: 8 | AC77: 8 | AD77: 29 X 1" tubes | AF77: H-444 | AH77: 21500 | AI77: 152700 | AJ77: htr
A78: K-412 | B78: 1 | D78: Hydrogen makeup compressor | E78: a400.a410.w-k412 | G78: 1051 | H78: 2372.04121 | I78: HP | J78: 2.256937402 | K78: 1890000 | L78: 2014 | M78: 1890000 | N78: 0.64 | O78: =IF(E78="",M78,M78*J78^N78) -> 3182103.44 | P78: 1.6 | Q78: 5091365.503 | R78: 5176206.866 | S78: 3235129.291 | V78: COMPRESSOR | W78: RECIPROCATING | AA78: 1,050 hp | AB78: 4-stage recip | AF78: Vendor quote via HGI | AJ78: cmp
A79: K-442 | B79: 1 | D79: Hydrogen recycle compressor | E79: a400.a410.k-442.w-k442 | G79: 146 | H79: 0.317010398 | I79: HP | J79: 0.002171304096 | K79: 1200000 | L79: 2014 | M79: 1200000 | N79: 0.9 | O79: 4810.938802 | P79: 1.6 | Q79: 7697.502084 | R79: 7825.771516 | S79: 4891.107198 | V79: COMPRESSOR | W79: RECIPROCATING | AA79: 146 hp | AB79: single stage recip | AF79: Vendor quote via HGI | AJ79: cmp
A80: P-410 | B80: 1 | C80: 1 | D80: HT feed pump | E80: VOLFLMX.a400.a410.412 | G80: 135 | H80: =IF(ISNUMBER(SEARCH(".W",E80)),VLOOKUP(E80,INDIRECT(LU_WORK),2),IF(ISNUMBER(SEARCH(".Q",E80)),ABS(VLOOKUP(E80,INDIRECT(LU_HEAT),2)),VLOOKUP(E80,INDIRECT(LU_SENS),2)))*7.481/60 -> 118.1185754 | I80: gpm | J80: 0.8749524105 | K80: =AH80 -> 43200 | L80: 2013 | M80: 86400 | N80: 0.8 | O80: 77642.81775 | P80: =AI80/AH80 -> 3.576388889 | Q80: 277680.9107 | R80: 286687.3072 | S80: 80161.11115 | V80: PUMP | W80: DIAPHRAGM | Y80: 90 | Z80: 316SS | AA80: 135 | AB80: 5275 | AF80: ACCE V8.4 | AH80: 43200 | AI80: 154500 | AJ80: htr
A81: R-410 | B81: 0 | D81: Hydrotreater, 1000 psi | E81: STRM.a400.a410.417 | F81: 55000 | G81: =F81*B81 -> 0 | H81: =IF(ISNUMBER(SEARCH(".W",E81)),VLOOKUP(E81,INDIRECT(LU_WORK),2),IF(ISNUMBER(SEARCH(".Q",E81)),ABS(VLOOKUP(E81,INDIRECT(LU_HEAT),2)),VLOOKUP(E81,INDIRECT(LU_SENS),2))) -> 78933.1945 | I81: LB/HR | J81: 0 | K81: 3396200 | L81: 2013 | M81: 0 | N81: 1 | O81: 0 | P81: 1.501472234 | Q81: 0 | R81: 0 | S81: 0 | V81: VESSEL | W81: VERTICAL PRESSURE | X81: 1130 | Y81: 850 | Z81: CS+Inconel | AA81: 10 | AB81: 48 | AC81: +60% internals | AF81: ACCE V8.4 | AH81: 3396200 | AI81: 5099300 | AJ81: htr
A82: R-410 | B82: 0 | D82: Hydrotreater, 1500 psi | E82: STRM.a400.a410.417 | F82: 55000 | G82: =F82*B82 -> 0 | H82: =IF(ISNUMBER(SEARCH(".W",E82)),VLOOKUP(E82,INDIRECT(LU_WORK),2),IF(ISNUMBER(SEARCH(".Q",E82)),ABS(VLOOKUP(E82,INDIRECT(LU_HEAT),2)),VLOOKUP(E82,INDIRECT(LU_SENS),2))) -> 78933.1945 | I82: LB/HR | J82: 0 | K82: 4775000 | L82: 2013 | M82: 0 | N82: 1 | O82: 0 | P82: 1.529612565 | Q82: 0 | R82: 0 | S82: 0 | V82: VESSEL | W82: VERTICAL PRESSURE | X82: 1640 | Y82: 850 | Z82: CS+Inconel | AA82: 10 | AB82: 48 | AC82: +60% internals | AF82: ACCE V8.4 | AH82: 4775000 | AI82: 7303900 | AJ82: htr
A83: R-410 | B83: 1 | D83: Hydrotreater, 2000 psi | E83: STRM.a400.a410.417 | F83: 55000 | G83: =F83*B83 -> 55000 | H83: 78933.1945 | I83: LB/HR | J83: 1.435148991 | K83: 6045800 | L83: 2013 | M83: 6045800 | N83: 1 | O83: 8676623.769 | P83: 1.426080916 | Q83: 12373567.57 | R83: 12774896.04 | S83: 8958044.318 | V83: VESSEL | W83: VERTICAL PRESSURE | X83: 2070 | Y83: 850 | Z83: CS+Inconel | AA83: 10 | AB83: 48 | AC83: +60% internals | AF83: ACCE V8.4 | AH83: 6045800 | AI83: 8621800 | AJ83: htr
A84: S-410 | B84: 1 | D84: Vapor KO drum | E84: STRM.a400.a410.410 | G84: 56193 | H84: 52064.9265 | I84: LB/HR | J84: 0.9265375848 | K84: 48500 | L84: 2013 | M84: 48500 | N84: 0.7 | O84: 45977.55444 | P84: 3.449484536 | Q84: 158598.8631 | R84: 163742.9122 | S84: 47468.80599 | V84: VESSEL | W84: VERTICAL PRESSURE | X84: 120 | Y84: 250 | Z84: 316SS | AA84: 4.5 | AB84: 10 | AF84: ACCE V8.4 | AH84: 48500 | AI84: 167300 | AJ84: htr
A85: S-411 | B85: 1 | D85: HP HT effluent flash: 3 phase | E85: VOLFLMX.a400.a410.422 | G85: 8028 | H85: 19625.2155 | I85: CUFT/HR | J85: 2.444595852 | K85: 373800 | L85: 2013 | M85: 373800 | N85: 0.7 | O85: 698850.4456 | P85: 2.053504548 | Q85: 1435092.568 | R85: 1481638.846 | S85: 721517.1972 | V85: VESSEL | W85: HORIZ LL SEP | X85: 2025 | Y85: 160 | Z85: 316SS | AA85: 3 | AB85: 10 | AC85: +20% internals | AF85: ACCE V8.4 | AH85: 373800 | AI85: 767600 | AJ85: htr
A86: S-412 | B86: 1 | D86: LP HT effluent flash: 3 phase | E86: VOLFLMX.a400.a410.428 | G86: 9494 | H86: 6290.06755 | I86: CUFT/HR | J86: 0.6625308142 | K86: 45200 | L86: 2013 | M86: 45200 | N86: 0.7 | O86: 33883.06526 | P86: 4.988938053 | Q86: 169040.5136 | R86: 174523.2308 | S86: 34982.04005 | V86: VESSEL | W86: HORIZ LL SEP | X86: 70 | Y86: 170 | Z86: 316SS | AA86: 4 | AB86: 13 | AC86: +10% internals | AF86: ACCE V8.4 | AH86: 45200 | AI86: 225500 | AJ86: htr
A87: A410 | B87: 1 | D87: Pinch exchanger CAPEX | L87: 2008 | M87: =O87 -> 159918 | O87: 159918 | P87: 2.6353666 | Q87: 421442.5559 | R87: 428986.6267 | S87: 162780.6267 | AF87: ACCE V7.2 | AJ87: heat
A88: Area A410: Whole Oil Hydroprocessing ↑ | M88: =SUM(M73:M87) -> 10265118 | O88: =SUM(O73:O87) -> 13310745.54 | P88: =IFERROR(Q88/O88,0) -> 1.624762066 | Q88: =SUM(Q73:Q87) -> 21626794.42 | R88: =SUM(R73:R87) -> 22241704.94 | S88: =SUM(S73:S87) -> 13689887.11
A89: D-450 | B89: 1 | D89: Gasoline column | E89: STRM.a400.a450.451 | G89: 52557 | H89: =IF(ISNUMBER(SEARCH(".W",E89)),VLOOKUP(E89,INDIRECT(LU_WORK),2),IF(ISNUMBER(SEARCH(".Q",E89)),ABS(VLOOKUP(E89,INDIRECT(LU_HEAT),2)),VLOOKUP(E89,INDIRECT(LU_SENS),2))) -> 45083.7906 | I89: =IF(ISNUMBER(SEARCH(".W",E89)),VLOOKUP(E89,INDIRECT(LU_WORK),3),IF(ISNUMBER(SEARCH(".Q",E89)),VLOOKUP(E89,INDIRECT(LU_HEAT),3),VLOOKUP(E89,INDIRECT(LU_SENS),3))) -> LB/HR | J89: =IFERROR(H89/G89,0) -> 0.8578075347 | K89: =AH89 -> 491900 | L89: 2013 | M89: =K89*(B89+C89) -> 491900 | N89: 0.7 | O89: =IF(E89="",M89,M89*J89^N89) -> 441824.4263 | P89: =AI89/AH89 -> 1.689367758 | Q89: =O89*P89 -> 746403.9403 | R89: =Q89*VLOOKUP(COSTYEAR,INDIRECT(IX_CAP),4,FALSE)/VLOOKUP(L89,INDIRECT(IX_CAP),4,FALSE) -> 770613.0581 | S89: =O89*VLOOKUP(COSTYEAR,INDIRECT(IX_CAP),4,FALSE)/VLOOKUP(L89,INDIRECT(IX_CAP),4,FALSE) -> 456154.7091 | V89: VESSEL | W89: TRAYED TOWER | X89: 35 | Y89: 650 | Z89: 316SS | AA89: 7.5' Ø | AB89: 64' T-T | AC89: 26 trays | AD89: sieve | AF89: ACCE V8.4 | AH89: 491900 | AI89: 831000 | AJ89: sep
A90: D-451 | B90: 1 | D90: Diesel column | E90: STRM.a400.a450.455 | G90: 23368 | H90: 21475.8482 | I90: LB/HR | J90: 0.9190280811 | K90: 297900 | L90: 2013 | M90: 297900 | N90: 0.7 | O90: 280802.2933 | P90: 1.906680094 | Q90: 535400.143 | R90: 552765.4922 | S90: 289909.9298 | V90: VESSEL | W90: TRAYED TOWER | X90: 35 | Y90: 800 | Z90: 316SS | AA90: 3.5' Ø | AB90: 64' T-T | AC90: 26 trays | AD90: sieve | AF90: ACCE V8.4 | AH90: 297900 | AI90: 568000 | AJ90: sep
A91: H-450C | B91: 1 | D91: D-450 Condenser (startup) | E91: a400.a450.qcn-d450 | G91: 16444000 | H91: 14097297.6 | I91: BTU/HR | J91: 0.8572912673 | K91: 34700 | L91: 2013 | M91: 34700 | N91: 0.7 | O91: 31154.39735 | P91: 4.57925072 | Q91: 142663.7965 | R91: 147291.0023 | S91: 32164.86961 | V91: HEAT EXCH | W91: SHELL & TUBE | X91: 60 | Y91: 250 | Z91: 316SS | AA91: 821 | AB91: 18 | AC91: 20 | AD91: 157 X 1" tubes | AF91: ACCE V8.4 | AH91: 34700 | AI91: 158900 | AJ91: sep
A92: H-450R | B92: 1 | D92: D-450 Reboiler (startup) | E92: a400.a450.qrb-d450 | G92: 6951000 | H92: 6692229.99 | I92: BTU/HR | J92: 0.9627722615 | K92: 50500 | L92: 2013 | M92: 50500 | N92: 0.7 | O92: 49176.52953 | P92: 2.827722772 | Q92: 139057.5924 | R92: 143567.8334 | S92: 50771.53772 | V92: HEAT EXCH | W92: SHELL & TUBE | X92: 60 | Y92: 250 | Z92: 316SS | AA92: 980 | AB92: 30 | AC92: 25 | AD92: 94 X 1" tubes | AF92: ACCE V8.4 | AH92: 50500 | AI92: 142800 | AJ92: sep
A93: H-451C | B93: 1 | D93: D-451 Condenser (startup) | E93: a400.a450.qcn-d451 | G93: 3050000 | H93: 2513160.59 | I93: BTU/HR | J93: 0.8239870787 | K93: 13200 | L93: 2013 | M93: 13200 | N93: 0.7 | O93: 11527.05093 | P93: 6.659090909 | Q93: 76759.68009 | R93: 79249.3295 | S93: 11900.9232 | V93: HEAT EXCH | W93: SHELL & TUBE | X93: 150 | Y93: 190 | Z93: 316SS | AA93: 72 | AB93: 18 | AC93: 20 | AD93: 28 X 1" tubes | AF93: ACCE V8.4 | AH93: 13200 | AI93: 87900 | AJ93: sep
A94: H-451R | B94: 1 | D94: D-451 Reboiler (startup) | E94: a400.a450.qrb-d451 | G94: 6951000 | H94: 2407446.23 | I94: BTU/HR | J94: 0.3463453072 | K94: 50500 | L94: 2013 | M94: 50500 | N94: 0.7 | O94: 24040.74342 | P94: 2.827722772 | Q94: 67980.55763 | R94: 70185.46202 | S94: 24820.48902 | V94: HEAT EXCH | W94: SHELL & TUBE | X94: 60 | Y94: 250 | Z94: 316SS | AA94: 980 | AB94: 30 | AC94: 25 | AD94: 94 X 1" tubes | AF94: H-450R | AH94: 50500 | AI94: 142800 | AJ94: sep
A95: H-454 | B95: 1 | D95: Gasoline product cooler | E95: a400.a450.qc-h454 | G95: 1731000 | H95: 1316346.01 | I95: BTU/HR | J95: 0.7604540786 | K95: 22400 | L95: 2013 | M95: 22400 | N95: 0.7 | O95: =IF(B95<1,M95,M95*J95^N95) -> 18492.64845 | P95: 4.040178571 | Q95: 74713.60201 | R95: 77136.88824 | S95: 19092.44527 | V95: HEAT EXCH | W95: SHELL & TUBE | X95: 150 | Y95: 250 | Z95: CS | AA95: 589 | AB95: 18 | AC95: 16 | AD95: 141 X 1" tubes | AF95: ACCE V8.4 | AH95: 22400 | AI95: 90500 | AJ95: sep
A96: H-457A | B96: 1 | D96: Diesel product ACHE | E96: a400.a450.qa-h457 | G96: 170000 | H96: 0 | I96: BTU/HR | J96: 0 | K96: 29700 | L96: 2013 | M96: 29700 | N96: 0.6 | O96: 0 | P96: 2.34006734 | Q96: 0 | R96: 0 | S96: 0 | V96: HEAT EXCH | W96: AIR COOLED | X96: 150 | Z96: CS | AA96: 41 | AB96: 10 | AC96: 1 bays x 1' | AD96: 2 fan/bay | AF96: ACCE V8.4 | AH96: 29700 | AI96: 69500 | AJ96: sep
A97: H-457C | B97: 1 | D97: Diesel Product Cooler | E97: a400.a450.qc-h457 | G97: 316000 | H97: 387503.258 | I97: BTU/HR | J97: 1.226276133 | K97: 10300 | L97: 2013 | M97: 10300 | N97: 0.7 | O97: 11880.89117 | P97: 5.631067961 | Q97: 66902.10561 | R97: 69072.03112 | S97: 12266.24001 | V97: HEAT EXCH | W97: SHELL & TUBE | X97: 150 | Y97: 250 | Z97: CS | AA97: 58 | AB97: 8 | AC97: 8 | AD97: 28 X 1" tubes | AF97: ACCE V8.4 | AH97: 10300 | AI97: 58000 | AJ97: sep
A98: H-459 | B98: 1 | D98: D-450 Overhead vapor cooler | E98: a400.a450.qc-h459 | G98: 54900 | H98: 80083.7876 | I98: BTU/HR | J98: 1.458721086 | K98: 7900 | L98: 2013 | M98: 7900 | N98: 0.7 | O98: 10289.81754 | P98: 6.303797468 | Q98: 64864.92574 | R98: 66968.77667 | S98: 10623.56096 | V98: HEAT EXCH | W98: SHELL & TUBE | X98: 150 | Y98: 250 | Z98: CS | AA98: 12 | AB98: 4 | AC98: 8 | AD98: 6 X 1" tubes | AF98: ACCE V8.4 | AH98: 7900 | AI98: 49800 | AJ98: sep
A99: P-450 | B99: 1 | C99: 1 | D99: D-450 Reflux pump | E99: A400.A450.D-450.QCN-D450 | G99: 7190000 | H99: 18891230.8 | I99: BTU/HR | J99: 2.627431266 | K99: 9400 | L99: 2013 | M99: 18800 | N99: 0.8 | O99: 40717.67205 | P99: 4.308510638 | Q99: 175432.5232 | R99: 181122.561 | S99: 42038.32279 | V99: PUMP | W99: CENTRIFUGAL | X99: 35 | Y99: 250 | Z99: 316SS | AA99: 253 | AB99: 225 | AF99: ACCE V8.4 | AH99: 9400 | AI99: 40500 | AJ99: sep
A100: P-451 | B100: 1 | C100: 1 | D100: D-451 Reflux pump | E100: A400.A450.D-451.QCN-D451 | G100: 7436000 | H100: 6692229.99 | I100: BTU/HR | J100: 0.8999771369 | K100: 7400 | L100: 2013 | M100: 14800 | N100: 0.8 | O100: 13603.38209 | P100: 3.959459459 | Q100: 53862.03991 | R100: 55609.01953 | S100: 14044.59879 | V100: PUMP | W100: CENTRIFUGAL | X100: 35 | Y100: 250 | Z100: 316SS | AA100: 108 | AB100: 225 | AF100: ACCE V8.4 | AH100: 7400 | AI100: 29300 | AJ100: sep
A101: S-450 | B101: 1 | C101: 1 | D101: D-450 Overhead accumulator | E101: A400.A450.D-450.QCN-D450 | G101: 7190000 | H101: 18891230.8 | I101: BTU/HR | J101: 2.627431266 | K101: 39100 | L101: 2013 | M101: 78200 | N101: 0.7 | O101: 153772.5115 | P101: 4.007672634 | Q101: 616269.8862 | R101: 636258.1921 | S101: 158760.0211 | V101: VESSEL | W101: HORIZ PRESSURE | X101: 35 | Y101: 250 | Z101: 316SS | AA101: 4.5 | AB101: 13.5 | AF101: ACCE V8.4 | AH101: 39100 | AI101: 156700 | AJ101: sep
A102: S-451 | B102: 1 | C102: 1 | D102: D-451 Overhead accumulator | E102: A400.A450.D-451.QCN-D451 | G102: 7436000 | H102: 6692229.99 | I102: BTU/HR | J102: 0.8999771369 | K102: 28600 | L102: 2013 | M102: 57200 | N102: 0.7 | O102: 53132.23227 | P102: 4.335664336 | Q102: 230363.5245 | R102: 237835.213 | S102: 54855.54105 | V102: VESSEL | W102: HORIZ PRESSURE | X102: 35 | Y102: 400 | Z102: 316SS | AA102: 3.5 | AB102: 10.5 | AF102: ACCE V8.4 | AH102: 28600 | AI102: 124000 | AJ102: sep
A103: A450 | B103: 1 | D103: Pinch exchanger CAPEX | L103: 2008 | M103: =O103 -> 482593 | O103: 482593 | P103: 2.6353666 | Q103: 1271809.474 | R103: 1294575.615 | S103: 491231.6999 | AF103: ACCE V7.2 | AJ103: heat
A104: Area A450: Oil Fractionation ↑ | M104: =SUM(M89:M103) -> 1660593 | O104: =SUM(O89:O103) -> 1623007.596 | P104: =IFERROR(Q104/O104,0) -> 2.626287025 | Q104: =SUM(Q89:Q103) -> 4262483.791 | R104: =SUM(R89:R103) -> 4382250.474 | S104: =SUM(S89:S103) -> 1668634.888
A105: H-460 | B105: 1 | D105: Feed-effluent exchanger | E105: a400.a460.h-460.qx-h460 | G105: 1395356 | H105: =IF(ISNUMBER(SEARCH(".W",E105)),VLOOKUP(E105,INDIRECT(LU_WORK),2),IF(ISNUMBER(SEARCH(".Q",E105)),ABS(VLOOKUP(E105,INDIRECT(LU_HEAT),2)),VLOOKUP(E105,INDIRECT(LU_SENS),2))) -> 1272784.55 | I105: =IF(ISNUMBER(SEARCH(".W",E105)),VLOOKUP(E105,INDIRECT(LU_WORK),3),IF(ISNUMBER(SEARCH(".Q",E105)),VLOOKUP(E105,INDIRECT(LU_HEAT),3),VLOOKUP(E105,INDIRECT(LU_SENS),3))) -> BTU/HR | J105: =IFERROR(H105/G105,0) -> 0.9121575784 | K105: =AH105 -> 134600 | L105: 2013 | M105: =K105*(B105+C105) -> 134600 | N105: 0.7 | O105: =IF(B105<1,M105,M105*J105^N105) -> 126210.0589 | P105: =AI105/AH105 -> 3.372213967 | Q105: =O105*P105 -> 425607.3234 | R105: =Q105*VLOOKUP(COSTYEAR,INDIRECT(IX_CAP),4,FALSE)/VLOOKUP(L105,INDIRECT(IX_CAP),4,FALSE) -> 439411.6152 | S105: =O105*VLOOKUP(COSTYEAR,INDIRECT(IX_CAP),4,FALSE)/VLOOKUP(L105,INDIRECT(IX_CAP),4,FALSE) -> 130303.5986 | V105: HEAT EXCH | W105: SHELL & TUBE | X105: 2390 | Y105: 650 | Z105: CS | AA105: 276 | AB105: 14 | AC105: 18 | AD105: 66 X 1" tubes | AF105: ACCE V8.4 | AH105: 134600 | AI105: 453900 | AJ105: hcr
A106: H-461 | B106: 1 | D106: Feed furnace | E106: A400.A460.QF-H461 | G106: 680000 | H106: 127785.391 | I106: BTU/HR | J106: 0.1879196926 | K106: 142800 | L106: 2013 | M106: 142800 | N106: 0.6 | O106: =IF(E106="",M106,M106*J106^N106) -> 52373.49828 | P106: 1.521008403 | Q106: 79660.531 | R106: 82244.26759 | S106: 54072.19803 | V106: HEAT EXCH | W106: BOX FURNACE | X106: 2100 | Y106: 750 | Z106: 316SS | AA106: 0.68 MMBtu/h | AC106: 48 CFM gas | AF106: ACCE V8.4 | AH106: 142800 | AI106: 217200 | AJ106: hcr
A107: H-463A | B107: 1 | D107: HC product ACHE | E107: a400.a460.qa-h463 | G107: 1000000 | H107: 454341.949 | I107: BTU/HR | J107: 0.454341949 | K107: 38000 | L107: 2013 | M107: 38000 | N107: 0.6 | O107: =IF(B107<1,M107,M107*J107^N107) -> 23670.81977 | P107: 2.052631579 | Q107: 48587.47215 | R107: 50163.37465 | S107: 24438.56714 | V107: HEAT EXCH | W107: AIR COOLED | X107: 150 | Z107: CS | AA107: 243 | AB107: 10 | AC107: 1 bays x 3' | AD107: 2 fan/bay | AF107: ACCE V8.4 | AH107: 38000 | AI107: 78000 | AJ107: hcr
A108: H-463C | B108: 1 | D108: HC product Cooler | E108: a400.a460.qc-h463 | G108: 845500 | H108: 381303.977 | I108: BTU/HR | J108: 0.4509804577 | K108: 45300 | L108: 2013 | M108: 45300 | N108: 0.7 | O108: =IF(B108<1,M108,M108*J108^N108) -> 25942.30782 | P108: 3.227373068 | Q108: 83725.50559 | R108: 86441.08694 | S108: 26783.7294 | V108: HEAT EXCH | W108: SHELL & TUBE | X108: 2085 | Y108: 190 | Z108: SS Clad CS | AA108: 343 | AB108: 14 | AC108: 16 | AD108: 82 X 1" tubes | AF108: ACCE V8.4 | AH108: 45300 | AI108: 146200 | AJ108: hcr
A109: H-494 | B109: 1 | D109: Quench hydrogen stage 2 cooler | E109: a400.a460.qc-h494 | G109: 215000 | H109: 381303.977 | I109: BTU/HR | J109: 1.77350687 | K109: 21500 | L109: 2013 | M109: 21500 | N109: 0.7 | O109: =IF(B109<1,M109,M109*J109^N109) -> 32108.60759 | P109: 7.102325581 | Q109: 228045.785 | R109: 235442.2991 | S109: 33150.02902 | V109: HEAT EXCH | W109: SHELL & TUBE | X109: 1650 | Y109: 650 | Z109: 316SS | AA109: 57 | AB109: 8 | AC109: 8 | AD109: 29 X 1" tubes | AF109: H-444 | AH109: 21500 | AI109: 152700 | AJ109: hcr
A110: H-495 | B110: 1 | D110: Quench hydrogen stage 3 cooler | E110: a400.a460.qc-h495 | G110: 215000 | H110: 127785.391 | I110: BTU/HR | J110: 0.5943506558 | K110: 21500 | L110: 2013 | M110: 21500 | N110: 0.7 | O110: =IF(B110<1,M110,M110*J110^N110) -> 14937.17201 | P110: 7.102325581 | Q110: 106088.6589 | R110: 109529.5743 | S110: 15421.6493 | V110: HEAT EXCH | W110: SHELL & TUBE | X110: 1650 | Y110: 650 | Z110: 316SS | AA110: 57 | AB110: 8 | AC110: 8 | AD110: 29 X 1" tubes | AF110: H-444 | AH110: 21500 | AI110: 152700 | AJ110: hcr
A111: K-462 | B111: 1 | D111: Hydrogen makeup compressor | E111: a400.a460.w-k462 | G111: 1051 | H111: 678.198334 | I111: HP | J111: 0.6452886147 | K111: 1890000 | L111: 2014 | M111: 1890000 | N111: 0.64 | O111: =IF(E111="",M111,M111*J111^N111) -> 1427921.609 | P111: 1.6 | Q111: 2284674.574 | R111: 2322745.874 | S111: 1451716.171 | V111: COMPRESSOR | W111: RECIPROCATING | AA111: 1,050 hp | AB111: 4-stage recip | AF111: Vendor quote via HGI | AJ111: cmp
A112: K-492 | B112: 1 | D112: Hydrogen recycle compressor | E112: a400.a460.w-k492 | G112: 146 | H112: 40.8190219 | I112: HP | J112: 0.2795823418 | K112: 1200000 | L112: 2014 | M112: 1200000 | N112: 0.9 | O112: 381100.9316 | P112: 1.6 | Q112: 609761.4906 | R112: 619922.4181 | S112: 387451.5113 | V112: COMPRESSOR | W112: RECIPROCATING | AA112: 146 hp | AB112: single stage recip | AF112: Vendor quote via HGI | AJ112: cmp
A113: P-460 | B113: 1 | C113: 1 | D113: HC feed pump | E113: VOLFLMX.a400.a460.462 | G113: 135 | H113: =IF(ISNUMBER(SEARCH(".W",E113)),VLOOKUP(E113,INDIRECT(LU_WORK),2),IF(ISNUMBER(SEARCH(".Q",E113)),ABS(VLOOKUP(E113,INDIRECT(LU_HEAT),2)),VLOOKUP(E113,INDIRECT(LU_SENS),2)))*7.481/60 -> 25.47597669 | I113: gpm | J113: 0.1887109385 | K113: =AH113 -> 43200 | L113: 2013 | M113: 86400 | N113: 0.8 | O113: 22758.90704 | P113: =AI113/AH113 -> 3.576388889 | Q113: 81394.70228 | R113: 84034.68557 | S113: 23497.07713 | V113: PUMP | W113: DIAPHRAGM | Y113: 90 | Z113: 316SS | AA113: 135 | AB113: 5275 | AF113: P-410 | AH113: 43200 | AI113: 154500 | AJ113: hcr
A114: R-460 | B114: 1 | D114: Hydrocracker | E114: STRM.a400.a460.467 | F114: 24000 | G114: =F114*B114 -> 24000 | H114: 13650.7051 | I114: LB/HR | J114: 0.5687793792 | K114: 2615800 | L114: 2013 | M114: 2615800 | N114: 1 | O114: 1487813.1 | P114: 1.966625889 | Q114: 2925971.76 | R114: 3020873.718 | S114: 1536069.333 | V114: VESSEL | W114: VERTICAL PRESSURE | X114: 2070 | Y114: 850 | Z114: CS+Inconel | AA114: 6.5 | AB114: 48 | AC114: +60% internals | AF114: ACCE V8.4 | AH114: 2615800 | AI114: 5144300 | AJ114: hcr
A115: S-460 | B115: 1 | D115: Vapor KO drum | E115: STRM.a400.a460.460 | G115: 56193 | H115: 8707.09259 | I115: LB/HR | J115: 0.1549497729 | K115: 48500 | L115: 2013 | M115: 48500 | N115: 0.7 | O115: 13148.47544 | P115: 3.449484536 | Q115: 45355.4627 | R115: 46826.53712 | S115: 13574.93754 | V115: VESSEL | W115: VERTICAL PRESSURE | X115: 120 | Y115: 250 | Z115: 316SS | AA115: 4.5 | AB115: 10 | AF115: S-410 | AH115: 48500 | AI115: 167300 | AJ115: hcr
A116: S-461 | B116: 1 | D116: HP effluent flash: 3 phase | E116: VOLFLMX.a400.a460.472 | G116: 8257 | H116: 3036.77775 | I116: CUFT/HR | J116: 0.3677822151 | K116: 223900 | L116: 2013 | M116: 223900 | N116: 0.7 | O116: 111164.8792 | P116: 2.150513622 | Q116: 239061.5871 | R116: 246815.3914 | S116: 114770.4385 | V116: VESSEL | W116: HORIZ LL SEP | X116: 2025 | Y116: 160 | Z116: 316SS | AA116: 3 | AB116: 10 | AC116: +20% internals | AF116: ACCE V8.4 | AH116: 223900 | AI116: 481500 | AJ116: hcr
A117: S-462 | B117: 1 | D117: LP effluent flash | E117: VOLFLMX.a400.a460.478 | G117: 2520 | H117: 2465.84698 | I117: CUFT/HR | J117: 0.9785107063 | K117: 8100 | L117: 2013 | M117: 8100 | N117: 0.7 | O117: 7977.75925 | P117: 8.987654321 | Q117: 71701.34239 | R117: 74026.92797 | S117: 8236.51259 | V117: VESSEL | W117: HORIZ LL SEP | X117: 70 | Y117: 170 | Z117: 316SS | AA117: 1 | AB117: 7 | AF117: ACCE V8.4 | AH117: 8100 | AI117: 72800 | AJ117: hcr
A118: A460 | B118: 1 | D118: Pinch exchanger CAPEX | L118: 2008 | M118: =O118 -> 115488 | O118: 115488 | P118: 2.6353666 | Q118: 304353.2179 | R118: 309801.3203 | S118: 117555.3034 | AF118: ACCE V7.2 | AJ118: heat
A119: Area A460: Hydrocracking ↑ | M119: =SUM(M106:M118) -> 6457288 | O119: =SUM(O106:O118) -> 3716406.067 | P119: =IFERROR(Q119/O119,0) -> 1.912703284 | Q119: =SUM(Q106:Q118) -> 7108382.09 | R119: =SUM(R106:R118) -> 7288867.475 | S119: =SUM(S106:S118) -> 3806737.458
A120: H-568A | B120: 1 | D120: WGS Effluent ACHE | E120: a500.a560.a565.qa-h568 | G120: 5740000 | H120: =IF(ISNUMBER(SEARCH(".W",E120)),VLOOKUP(E120,INDIRECT(LU_WORK),2),IF(ISNUMBER(SEARCH(".Q",E120)),ABS(VLOOKUP(E120,INDIRECT(LU_HEAT),2)),VLOOKUP(E120,INDIRECT(LU_SENS),2))) -> 12073947.2 | I120: =IF(ISNUMBER(SEARCH(".W",E120)),VLOOKUP(E120,INDIRECT(LU_WORK),3),IF(ISNUMBER(SEARCH(".Q",E120)),VLOOKUP(E120,INDIRECT(LU_HEAT),3),VLOOKUP(E120,INDIRECT(LU_SENS),3))) -> BTU/HR | J120: =IFERROR(H120/G120,0) -> 2.103475122 | K120: =AH120 -> 76300 | L120: 2013 | M120: =K120*(B120+C120) -> 76300 | N120: 0.6 | O120: =IF(B120<1,M120,M120*J120^N120) -> 119202.9397 | P120: =AI120/AH120 -> 1.626474443 | Q120: =O120*P120 -> 193880.535 | R120: =Q120*VLOOKUP(COSTYEAR,INDIRECT(IX_CAP),4,FALSE)/VLOOKUP(L120,INDIRECT(IX_CAP),4,FALSE) -> 200168.9218 | S120: =O120*VLOOKUP(COSTYEAR,INDIRECT(IX_CAP),4,FALSE)/VLOOKUP(L120,INDIRECT(IX_CAP),4,FALSE) -> 123069.2082 | V120: HEAT EXCH | W120: AIR COOLED | X120: 150 | Z120: CS | AA120: 1392 | AB120: 24 | AC120: 1 bays x 8' | AD120: 2 fan/bay | AF120: ACCE V8.4 | AH120: 76300 | AI120: 124100 | AJ120: smr
A121: H-568C | B121: 1 | D121: WGS Effluent cooler | E121: a500.a560.a565.qc-h568 | G121: 3159000 | H121: =IF(ISNUMBER(SEARCH(".W",E121)),VLOOKUP(E121,INDIRECT(LU_WORK),2),IF(ISNUMBER(SEARCH(".Q",E121)),ABS(VLOOKUP(E121,INDIRECT(LU_HEAT),2)),VLOOKUP(E121,INDIRECT(LU_SENS),2))) -> 3079697.87 | I121: =IF(ISNUMBER(SEARCH(".W",E121)),VLOOKUP(E121,INDIRECT(LU_WORK),3),IF(ISNUMBER(SEARCH(".Q",E121)),VLOOKUP(E121,INDIRECT(LU_HEAT),3),VLOOKUP(E121,INDIRECT(LU_SENS),3))) -> BTU/HR | J121: =IFERROR(H121/G121,0) -> 0.9748964451 | K121: 32600 | L121: 2013 | M121: =K121*(B121+C121) -> 32600 | N121: 0.7 | O121: =IF(B121<1,M121,M121*J121^N121) -> 32024.95593 | P121: 3.595092025 | Q121: =O121*P121 -> 115132.6637 | R121: =Q121*VLOOKUP(COSTYEAR,INDIRECT(IX_CAP),4,FALSE)/VLOOKUP(L121,INDIRECT(IX_CAP),4,FALSE) -> 118866.9154 | S121: =O121*VLOOKUP(COSTYEAR,INDIRECT(IX_CAP),4,FALSE)/VLOOKUP(L121,INDIRECT(IX_CAP),4,FALSE) -> 33063.66418 | V121: HEAT EXCH | W121: SHELL & TUBE | X121: 60 | Y121: 250 | Z121: CS | AA121: 1281 | AB121: 22 | AC121: 20 | AD121: 245 X 1" tubes | AF121: ACCE V8.4 | AH121: 32600 | AI121: 117200 | AJ121: smr
A122: K-511 | B122: 1 | D122: Pyrolysis offgas compressor to reformer | E122: A500.A510.w-K511 | G122: 3648 | H122: =IF(ISNUMBER(SEARCH(".W",E122)),VLOOKUP(E122,INDIRECT(LU_WORK),2),IF(ISNUMBER(SEARCH(".Q",E122)),ABS(VLOOKUP(E122,INDIRECT(LU_HEAT),2)),VLOOKUP(E122,INDIRECT(LU_SENS),2))) -> 2975.63456 | I122: =IF(ISNUMBER(SEARCH(".W",E122)),VLOOKUP(E122,INDIRECT(LU_WORK),3),IF(ISNUMBER(SEARCH(".Q",E122)),VLOOKUP(E122,INDIRECT(LU_HEAT),3),VLOOKUP(E122,INDIRECT(LU_SENS),3))) -> HP | J122: =IFERROR(H122/G122,0) -> 0.8156892982 | K122: 4700000 | L122: 2014 | M122: =K122*(B122+C122) -> 4700000 | N122: 0.6 | O122: =IF(E122="",M122,M122*J122^N122) -> 4159227.89 | P122: 1.6 | Q122: =O122*P122 -> 6654764.624 | R122: =Q122*VLOOKUP(COSTYEAR,INDIRECT(IX_CAP),4,FALSE)/VLOOKUP(L122,INDIRECT(IX_CAP),4,FALSE) -> 6765658.115 | S122: =O122*VLOOKUP(COSTYEAR,INDIRECT(IX_CAP),4,FALSE)/VLOOKUP(L122,INDIRECT(IX_CAP),4,FALSE) -> 4228536.322 | V122: COMPRESSOR | W122: RECIPROCATING | Z122: SS | AA122: 2-stage reciprocating | AC122: 3648 hp | AF122: K-211 | AJ122: cmp
A123: K-545 | B123: 1 | D123: Reformer combustor air blower | E123: included w/ R-530 | K123: INCLUDED | V123: INCLUDED
A124: K-580 | B124: 1 | D124: PSA Compressor multistage | E124: included w/ R-530 | K124: INCLUDED | V124: INCLUDED
A125: M-575 | B125: 1 | D125: PSA | E125: included w/ R-530 | K125: INCLUDED | V125: INCLUDED
A126: P-576 | B126: 1 | D126: Compressor condensate pump | E126: VOLFLMX.a500.a560.a575.576 | G126: 50 | H126: =IF(ISNUMBER(SEARCH(".W",E126)),VLOOKUP(E126,INDIRECT(LU_WORK),2),IF(ISNUMBER(SEARCH(".Q",E126)),ABS(VLOOKUP(E126,INDIRECT(LU_HEAT),2)),VLOOKUP(E126,INDIRECT(LU_SENS),2)))*7.481/60 -> 33.24112515 | I126: gpm | J126: =IFERROR(H126/G126,0) -> 0.664822503 | K126: =AH126 -> 5800 | L126: 2013 | M126: =K126*(B126+C126) -> 5800 | N126: 0.8 | O126: =IF(E126="",M126,M126*J126^N126) -> 4184.008541 | P126: =AI126/AH126 -> 4.379310345 | Q126: =O126*P126 -> 18323.07189 | R126: =Q126*VLOOKUP(COSTYEAR,INDIRECT(IX_CAP),4,FALSE)/VLOOKUP(L126,INDIRECT(IX_CAP),4,FALSE) -> 18917.3686 | S126: =O126*VLOOKUP(COSTYEAR,INDIRECT(IX_CAP),4,FALSE)/VLOOKUP(L126,INDIRECT(IX_CAP),4,FALSE) -> 4319.714089 | V126: PUMP | W126: CENTRIFUGAL | X126: 125 | Y126: 250 | Z126: 316SS | AA126: 56 | AB126: 30 | AF126: P-318 | AH126: 5800 | AI126: 25400 | AJ126: cmp
A127: R-530 | B127: 1 | D127: Steam reformer package (PNNL) | E127: MOLEFLMX.A500.590 | G127: 49000000 | H127: =IF(ISNUMBER(SEARCH(".W",E127)),VLOOKUP(E127,INDIRECT(LU_WORK),2),IF(ISNUMBER(SEARCH(".Q",E127)),ABS(VLOOKUP(E127,INDIRECT(LU_HEAT),2)),VLOOKUP(E127,INDIRECT(LU_SENS),2)))*379.3*24 -> 29942538.56 | I127: SCFD | J127: =IFERROR(H127/G127,0) -> 0.6110722156 | K127: 66875000 | L127: 2007 | M127: =K127*(B127+C127)/P127 -> 34830729.17 | N127: 0.65 | O127: =IF(E127="",M127,M127*J127^N127) -> 25288479.39 | P127: 1.92 | Q127: =O127*P127 -> 48553880.42 | R127: =Q127*VLOOKUP(COSTYEAR,INDIRECT(IX_CAP),4,FALSE)/VLOOKUP(L127,INDIRECT(IX_CAP),4,FALSE) -> 54126394.68 | S127: =O127*VLOOKUP(COSTYEAR,INDIRECT(IX_CAP),4,FALSE)/VLOOKUP(L127,INDIRECT(IX_CAP),4,FALSE) -> 28190830.56 | V127: MISC | W127: PACKAGE UNIT | AF127: 23053 | AJ127: smr
A128: R-565 | B128: 1 | D128: WGS reactor | E128: included w/ R-530 | K128: INCLUDED | V128: INCLUDED
A129: R-566 | B129: 1 | D129: LTS reactor | E129: STRM.a500.a560.a565.569 | G129: 354424 | H129: =IF(ISNUMBER(SEARCH(".W",E129)),VLOOKUP(E129,INDIRECT(LU_WORK),2),IF(ISNUMBER(SEARCH(".Q",E129)),ABS(VLOOKUP(E129,INDIRECT(LU_HEAT),2)),VLOOKUP(E129,INDIRECT(LU_SENS),2))) -> 103296.27 | I129: =IF(ISNUMBER(SEARCH(".W",E129)),VLOOKUP(E129,INDIRECT(LU_WORK),3),IF(ISNUMBER(SEARCH(".Q",E129)),VLOOKUP(E129,INDIRECT(LU_HEAT),3),VLOOKUP(E129,INDIRECT(LU_SENS),3))) -> LB/HR | J129: =IFERROR(H129/G129,0) -> 0.2914482936 | K129: =AH129 -> 1243000 | L129: 2013 | M129: =K129*(B129+C129) -> 1243000 | N129: 0.6 | O129: =IF(B129<1,M129,M129*J129^N129) -> 593209.4198 | P129: =AI129/AH129 -> 1.416572808 | Q129: =O129*P129 -> 840324.3334 | R129: =Q129*VLOOKUP(COSTYEAR,INDIRECT(IX_CAP),4,FALSE)/VLOOKUP(L129,INDIRECT(IX_CAP),4,FALSE) -> 867579.697 | S129: =O129*VLOOKUP(COSTYEAR,INDIRECT(IX_CAP),4,FALSE)/VLOOKUP(L129,INDIRECT(IX_CAP),4,FALSE) -> 612449.7747 | V129: VESSEL | W129: VERTICAL PRESSURE | X129: 450 | Y129: 1000 | Z129: 316SS | AA129: 12 | AB129: 24 | AC129: +20% internals | AF129: R-365 | AH129: 1243000 | AI129: 1760800 | AJ129: smr
A130: S-575 | B130: 1 | D130: Compressor suction KO drum | E130: included w/ R-530 | K130: INCLUDED | V130: INCLUDED
A131: S-586 | B131: 1 | D131: PSA Compressor discharge KO drum | E131: included w/ R-530 | K131: INCLUDED | V131: INCLUDED
A132: T-576 | B132: 1 | D132: Compressor condensate tank | E132: VOLFLMX.a500.a560.a575.576 | G132: 1000 | H132: =IF(ISNUMBER(SEARCH(".W",E132)),VLOOKUP(E132,INDIRECT(LU_WORK),2),IF(ISNUMBER(SEARCH(".Q",E132)),ABS(VLOOKUP(E132,INDIRECT(LU_HEAT),2)),VLOOKUP(E132,INDIRECT(LU_SENS),2))) -> 266.604399 | I132: =IF(ISNUMBER(SEARCH(".W",E132)),VLOOKUP(E132,INDIRECT(LU_WORK),3),IF(ISNUMBER(SEARCH(".Q",E132)),VLOOKUP(E132,INDIRECT(LU_HEAT),3),VLOOKUP(E132,INDIRECT(LU_SENS),3))) -> CUFT/HR | J132: =IFERROR(H132/G132,0) -> 0.266604399 | K132: =AH132 -> 48000 | L132: 2013 | M132: =K132*(B132+C132) -> 48000 | N132: 0.7 | O132: =IF(B132<1,M132,M132*J132^N132) -> 19026.03779 | P132: =AI132/AH132 -> 3.241666667 | Q132: =O132*P132 -> 61676.07251 | R132: =Q132*VLOOKUP(COSTYEAR,INDIRECT(IX_CAP),4,FALSE)/VLOOKUP(L132,INDIRECT(IX_CAP),4,FALSE) -> 63676.4951 | S132: =O132*VLOOKUP(COSTYEAR,INDIRECT(IX_CAP),4,FALSE)/VLOOKUP(L132,INDIRECT(IX_CAP),4,FALSE) -> 19643.13474 | V132: VESSEL | W132: VERTICAL PRESSURE | X132: 125 | Y132: 250 | Z132: 316SS | AA132: 4.5 | AB132: 13.5 | AF132: T-328 | AH132: 48000 | AI132: 155600 | AJ132: cmp
A133: A500 | D133: Pinch exchanger CAPEX | L133: 2008 | M133: =O133 -> 2868877 | O133: 2868877 | P133: 2.6353666 | Q133: =O133*P133 -> 7560542.625 | R133: =Q133*VLOOKUP(COSTYEAR,INDIRECT(IX_CAP),4,FALSE)/VLOOKUP(L133,INDIRECT(IX_CAP),4,FALSE) -> 7695880.806 | S133: =O133*VLOOKUP(COSTYEAR,INDIRECT(IX_CAP),4,FALSE)/VLOOKUP(L133,INDIRECT(IX_CAP),4,FALSE) -> 2920231.594 | AF133: ACCE V7.2 | AJ133: heat
A134: Area A500: Hydrogen Plant ↑ | M134: =SUM(M120:M133) -> 43805306.17 | O134: =SUM(O120:O133) -> 33084231.64 | P134: =Q134/O134 -> 1.934411687 | Q134: =SUM(Q120:Q133) -> 63998524.35 | R134: =SUM(R120:R133) -> 69857143 | S134: =SUM(S120:S133) -> 36132143.97
A135: H-601 | B135: 1 | D135: Steam turbine condenser | E135: A600.A600ST.QAH601 | G135: 1 | H135: =IF(ISNUMBER(SEARCH(".W",E135)),VLOOKUP(E135,INDIRECT(LU_WORK),2),IF(ISNUMBER(SEARCH(".Q",E135)),ABS(VLOOKUP(E135,INDIRECT(LU_HEAT),2)/58250000),VLOOKUP(E135,INDIRECT(LU_SENS),2))) -> 6.120557923 | I135: =IF(ISNUMBER(SEARCH(".W",E135)),VLOOKUP(E135,INDIRECT(LU_WORK),3),IF(ISNUMBER(SEARCH(".Q",E135)),VLOOKUP(E135,INDIRECT(LU_HEAT),3),VLOOKUP(E135,INDIRECT(LU_SENS),3))) -> BTU/HR | J135: =IFERROR(H135/G135,0) -> 6.120557923 | K135: 1300000 | L135: 2010 | M135: =K135*(B135+C135) -> 1300000 | N135: 1 | O135: =IF(E135="",M135,M135*J135^N135) -> 7956725.3 | P135: 1.4 | Q135: =O135*P135 -> 11139415.42 | R135: =Q135*VLOOKUP(COSTYEAR,INDIRECT(IX_CAP),4,FALSE)/VLOOKUP(L135,INDIRECT(IX_CAP),4,FALSE) -> 11845235.31 | S135: =O135*VLOOKUP(COSTYEAR,INDIRECT(IX_CAP),4,FALSE)/VLOOKUP(L135,INDIRECT(IX_CAP),4,FALSE) -> 8460882.367 | V135: HEAT EXCH | W135: AIR COOLED | AA135: 58.25 MMBtu/h per module | AF135: SPX Cooling | AJ135: pwr
A136: H-603 | B136: 1 | D136: Blowdown cooler | E136: A600.QCH603 | G136: 381670.51 | H136: =IF(ISNUMBER(SEARCH(".W",E136)),VLOOKUP(E136,INDIRECT(LU_WORK),2),IF(ISNUMBER(SEARCH(".Q",E136)),ABS(VLOOKUP(E136,INDIRECT(LU_HEAT),2)),VLOOKUP(E136,INDIRECT(LU_SENS),2))) -> 420447.842 | I136: BTU/HR | J136: 1.101598973 | K136: 16780 | L136: 2007 | M136: 16780 | N136: 0.65 | O136: 17869.28791 | P136: 4.320619785 | Q136: =O136*P136 -> 77206.39888 | R136: 86067.35406 | S136: 19920.1407 | V136: HEAT EXCH | W136: Shell and tube | X136: 50 | Z136: CS | AA136: 0.4 MMBtu/Hr; LMTD = 15 F; U = 100 Btu/hr-ft^2-F; Area = 265 Ft^2; U-Tube | AF136: 51400 Icarus 2006.5 | AJ136: pwr
A137: M-601 | B137: 1 | D137: BFW EDI+polishing | E137: STRM.A600.A600BF.629 | G137: 300000 | H137: 352678.97 | I137: LB/HR | J137: 1.175596567 | K137: 1325000 | L137: 2010 | M137: 1325000 | N137: 0.6 | O137: 1460060.54 | P137: 2 | Q137: =O137*P137 -> 2920121.08 | R137: 3105146.907 | S137: 1552573.453 | V137: MISC | W137: PACKAGE UNIT | AA137: Quote from 51400 (RO+EDI+polish) with RO removed | AF137: 51400 Siemens | AJ137: pwr
A138: M-602A | B138: 1 | D138: Steam turbine generator Stage 1 | E138: WTURB1 | G138: -40418.40578 | H138: -17196.3137 | I138: hp | J138: 0.4254574956 | K138: 7700000 | L138: 2010 | M138: 7700000 | N138: 0.7 | O138: 4233407.265 | P138: 1.8 | Q138: =O138*P138 -> 7620133.076 | R138: 8102962.859 | S138: 4501646.033 | V138: GENERATOR | W138: STEAM-TURBINE | Z138: CS | AA138: Vendor quotation for 30.14 MW system. Excludes steam turbine condenser. | AF138: Shin Nippon | AJ138: pwr
A139: M-602B | B139: 1 | D139: Steam turbine generator Stage 2 | E139: WTURB2 | G139: -40418.40578 | H139: -47442.0573 | I139: hp | J139: 1.173773591 | K139: 7700000 | L139: 2010 | M139: 7700000 | N139: 0.7 | O139: 8613898.678 | P139: 1.8 | Q139: 15505017.62 | R139: 16487452.47 | S139: 9159695.816 | V139: GENERATOR | W139: STEAM-TURBINE | Z139: CS | AA139: Vendor quotation for 30.14 MW system. Excludes steam turbine condenser. | AF139: Shin Nippon | AJ139: pwr
A140: M-603 | B140: 1 | D140: Startup boiler | E140: STRM.A200.201 | G140: 204131 | H140: 204131.481 | I140: LB/HR | J140: 1.000002356 | K140: 275500 | L140: 2013 | M140: 275500 | N140: 0.6 | O140: 275500.3895 | P140: 1.693350272 | Q140: 466518.6596 | R140: 481649.8835 | S140: 284436.0623 | V140: MISC | W140: PACKAGE UNIT | Z140: CS | AA140: 40,000 lb/h (half of A800 steam at 2,000 TPD) | AF140: ACCE V8.4 | AH140: 275500 | AI140: 466518 | AJ140: pwr
A141: P-601 | B141: 1 | C141: 1 | D141: Makeup pump | E141: STRM.A600.A600WTR.618 | G141: 80410.6434 | H141: 7051.04469 | I141: LB/HR | J141: 0.08768795264 | K141: 6528 | L141: 2007 | M141: 13056 | N141: 0.3 | O141: 6290.600722 | P141: 4.718137255 | Q141: 29679.91762 | R141: 33086.27284 | S141: 7012.571075 | V141: PUMP | W141: CENTRIFUGAL | Z141: CS | AA141: 160 | AB141: 35 | AF141: 51400 Icarus 2006.5 | AJ141: pwr
A142: P-602 | B142: 1 | C142: 1 | D142: Condensate pump | E142: STRM.A600.633 | G142: 247009.591 | H142: 352678.97 | I142: LB/HR | J142: 1.42779464 | K142: 9810 | L142: 2007 | M142: 19620 | N142: 0.3 | O142: 21832.26163 | P142: 4.607543323 | Q142: 100593.0913 | R142: 112138.1302 | S142: 24337.94374 | V142: PUMP | W142: CENTRIFUGAL | Z142: CS | AA142: 500 | AB142: 60 | AF142: 51400 Icarus 2006.5 | AJ142: pwr
A143: P-603 | B143: 1 | C143: 1 | D143: EDI pump | E143: STRM.A600.633 | G143: 247009.591 | H143: 352678.97 | I143: LB/HR | J143: 1.42779464 | K143: 9810 | L143: 2007 | M143: 19620 | N143: 0.3 | O143: 21832.26163 | P143: 4.607543323 | Q143: 100593.0913 | R143: 112138.1302 | S143: 24337.94374 | V143: PUMP | W143: CENTRIFUGAL | Z143: CS | AA143: 500 | AB143: 60 | AF143: 51400 Icarus 2006.5 | AJ143: pwr
A144: P-604 | B144: 1 | C144: 1 | D144: Boiler feed water pump | E144: STRM.A600.633 | G144: 494622.066 | H144: 352678.97 | I144: LB/HR | J144: 0.7130271661 | K144: 304578 | L144: 2007 | M144: 609156 | N144: 0.3 | O144: 550377.092 | P144: 1.352691265 | Q144: 744490.2846 | R144: 829935.2107 | S144: 613543.7053 | V144: PUMP | W144: POS-DISPLACEMENT | Z144: CS | AA144: 1050 | AB144: 3340 | AF144: 51400 Icarus 2006.5 | AJ144: pwr
A145: P-605 | B145: 1 | C145: 1 | D145: Condensate collection pump | E145: STRM.A600.633 | G145: 247009.591 | H145: 352678.97 | I145: LB/HR | J145: 1.42779464 | K145: 9810 | L145: 2007 | M145: 19620 | N145: 0.3 | O145: 21832.26163 | P145: 4.607543323 | Q145: 100593.0913 | R145: 112138.1302 | S145: 24337.94374 | V145: PUMP | W145: CENTRIFUGAL | Z145: CS | AA145: 500 | AB145: 60 | AF145: P-603 | AJ145: pwr
A146: S-601 | B146: 1 | D146: Blowdown flash drum | E146: STRM.A600.604 | G146: 9892.42978 | H146: 7053.63112 | I146: LB/HR | J146: 0.7130332261 | K146: 47205 | L146: 2007 | M146: 47205 | N146: 0.65 | O146: 37888.66916 | P146: 3.41489249 | Q146: 129385.7318 | R146: 144235.2933 | S146: 42237.14033 | V146: VESSEL | W146: VERTICAL PRESSURE | X146: 1500 | Z146: CS | AA146: Liquid 30 gpm; 10 Minute Residence Time; Vessel Volume = 900 gal | AF146: 51400 Icarus 2006.5 | AJ146: pwr
A147: T-601 | B147: 1 | D147: Condensate collection tank | E147: STRM.A600.A600BF.627 | G147: 500400 | H147: 352678.97 | I147: LB/HR | J147: 0.7047941047 | K147: 28505 | L147: 2007 | M147: 28505 | N147: 0.65 | O147: 22707.09182 | P147: 6.830380635 | Q147: 155098.0803 | R147: 172898.6403 | S147: 25313.17792 | V147: VESSEL | W147: VERTICAL PRESSURE | Z147: CS | AA147: Liquid 1,000 gpm; 5 minute Residence Time; Liquid Volume = 5,000 gal | AF147: 51400 Icarus 2006.5 | AJ147: pwr
A148: T-602 | B148: 1 | D148: Condensate surge tank | E148: STRM.A600.A600BF.627 | G148: 500400 | H148: 352678.97 | I148: LB/HR | J148: 0.7047941047 | K148: 27704 | L148: 2007 | M148: 27704 | N148: 0.65 | O148: 22069.01497 | P148: 6.511695062 | Q148: 143706.6958 | R148: 160199.8701 | S148: 24601.86918 | V148: TANK | W148: HORIZONTAL-VESSEL | Z148: CS | AA148: Liquid 1,000 gpm; 5 minute Residence Time; Liquid Volume = 5,000 gal | AF148: 51400 Icarus 2006.5 | AJ148: pwr
A149: T-603 | B149: 1 | D149: Deaerator | E149: STRM.A600.633 | G149: 494618.604 | H149: 352678.97 | I149: LB/HR | J149: 0.7130321568 | K149: 53299 | L149: 2007 | M149: 53299 | N149: 0.65 | O149: 42779.92181 | P149: 5.067637292 | Q149: 216793.1271 | R149: 241674.4091 | S149: 47689.76057 | V149: TANK | W149: HORIZONTAL-VESSEL | X149: 50 | Z149: CS | AA149: Liquid 1,050 gpm; 10 Minute Residence Time; Vessel Volume = 21,000 gal | AF149: 51400 Icarus 2006.5 | AJ149: pwr
A150: T-603A | B150: 1 | D150: Deaerator packed column | E150: STRM.A600.633 | G150: 494618.604 | H150: 352678.97 | I150: LB/HR | J150: 0.7130321568 | K150: 18405 | L150: 2007 | M150: 18405 | N150: 0.65 | O150: 14772.5935 | P150: 5.177940777 | Q150: 76491.61427 | R150: 85270.53383 | S150: 16468.03961 | V150: COLUMN | W150: PACKED COLUMN | Z150: CS | AA150: Inside Diameter = 2 ft; Height = 10 ft; Packing Height = 8 ft | AF150: 51400 Icarus 2006.5 | AJ150: pwr
A151: T-605 | B151: 1 | D151: Steam drum | E151: STRM.A600.644 | G151: 494622.066 | H151: 352681.557 | I151: LB/HR | J151: 0.7130323963 | K151: 104100 | L151: 2007 | M151: 104100 | N151: 0.65 | O151: 83554.86657 | P151: 2.277617675 | Q151: 190306.041 | R151: 212147.408 | S151: 93144.43348 | V151: TANK | W151: HORIZONTAL-VESSEL | Z151: CS | AA151: Horizontal Drum; < 100% of Critical Velocity; Diameter = 5' T-T Length = 20' | AF151: 51400 Icarus 2006.5 | AJ151: pwr
A152: T-606 | B152: 1 | D152: Steam turbine condensate tank | E152: STRM.A600.A600BF.627 | G152: 500400 | H152: 352678.97 | I152: LB/HR | J152: 0.7047941047 | K152: 28505 | L152: 2007 | M152: 28505 | N152: 0.65 | O152: 22707.09182 | P152: 6.830380635 | Q152: 155098.0803 | R152: 172898.6403 | S152: 25313.17792 | V152: VESSEL | W152: VERTICAL PRESSURE | Z152: CS | AA152: Liquid 1,000 gpm; 5 minute Residence Time; Liquid Volume = 5,000 gal | AF152: T-601 | AJ152: pwr
A153: A600 | D153: Pinch exchanger CAPEX | L153: 2008 | M153: =O153 -> 3061423.296 | O153: 3061423.296 | P153: 2.6353666 | Q153: 8067972.702 | R153: 8212394.181 | S153: 3116224.582 | AF153: ACCE V7.2 | AJ153: heat
A154: Area A600: Steam System & Power Generation ↑ | M154: =SUM(M135:M153) -> 22367498.3 | O154: =SUM(O135:O153) -> 26487528.48 | P154: =Q154/O154 -> 1.809878707 | Q154: =SUM(Q135:Q153) -> 47939213.8 | R154: =SUM(R135:R153) -> 50709669.64 | S154: =SUM(S135:S153) -> 28063716.16
A155: K-701 | B155: 2 | C155: 1 | D155: Plant air compressor | E155: STRM.A100.101 | G155: 262454.2857 | H155: =IF(ISNUMBER(SEARCH(".W",E155)),VLOOKUP(E155,INDIRECT(LU_WORK),2),IF(ISNUMBER(SEARCH(".Q",E155)),ABS(VLOOKUP(E155,INDIRECT(LU_HEAT),2)),VLOOKUP(E155,INDIRECT(LU_SENS),2))) -> 204131.481 | I155: =IF(ISNUMBER(SEARCH(".W",E155)),VLOOKUP(E155,INDIRECT(LU_WORK),3),IF(ISNUMBER(SEARCH(".Q",E155)),VLOOKUP(E155,INDIRECT(LU_HEAT),3),VLOOKUP(E155,INDIRECT(LU_SENS),3))) -> LB/HR | J155: =IFERROR(H155/G155,0) -> 0.7777791871 | K155: 87922 | L155: 2007 | M155: =K155*(B155+C155) -> 263766 | N155: 0.3 | O155: =IF(E155="",M155,M155*J155^N155) -> 244610.8454 | P155: 1.568435659 | Q155: =O155*P155 -> 383656.3725 | R155: =Q155*VLOOKUP(COSTYEAR,INDIRECT(IX_CAP),4,FALSE)/VLOOKUP(L155,INDIRECT(IX_CAP),4,FALSE) -> 427688.499 | S155: =O155*VLOOKUP(COSTYEAR,INDIRECT(IX_CAP),4,FALSE)/VLOOKUP(L155,INDIRECT(IX_CAP),4,FALSE) -> 272684.7586 | V155: COMPRESSOR | W155: RECIPROCATING | Z155: CS | AA155: Flow Rate = 450 CFM; Outlet Pressure = 125 PSIG | AF155: 51400 Icarus 2006.5
A156: M-701 | B156: 1 | D156: Cooling tower system | E156: STRM.A700.715 | G156: 7506000 | H156: 2593745 | I156: LB/HR | J156: 0.3455562217 | K156: 260852 | L156: 2010 | M156: 260852 | N156: 0.78 | O156: =IF(E156="",M156,M156*J156^N156) -> 113877.7217 | P156: 2.47 | Q156: 281277.9727 | R156: 299100.415 | S156: 121093.2854 | V156: COOLNG TWR | W156: INDUCED-DRAFT | Z156: FIBERGLASS | AA156: 15,000 gpm, 110 °F Cooling Tower Inlet Temperature | AF156: Cooling Tower Depot
A157: M-702 | B157: 1 | D157: Hydraulic truck dump with scale | E157: STRM.A100.101 | G157: 367437 | H157: 204131.481 | I157: LB/HR | J157: 0.5555550503 | K157: 80000 | L157: 1998 | M157: 80000 | N157: 0.6 | O157: =IF(E157="",M157,M157*J157^N157) -> 56224.5835 | P157: 2.47 | Q157: 138874.7212 | R157: 208829.0738 | S157: 84546.18371 | V157: SCALE | W157: TRUCK-SCALE | Z157: CS | AA157: Hydraulic Truck Dumper with Scale | AF157: Vendor Quotation
A158: M-703 | B158: 1 | D158: Flue gas scrubber | E158: STRM.A100.112 | G158: 489600 | H158: 891004.841 | I158: LB/HR | J158: 1.819862829 | K158: 436250 | L158: 2010 | M158: 436250 | N158: 0.65 | O158: =IF(E158="",M158,M158*J158^N158) -> 643814.2209 | P158: 2.47 | Q158: 1590221.126 | R158: 1690981.324 | S158: 684607.8235 | V158: MISC | W158: VERTICAL-VESSEL | Z158: SS304 | AA158: Scrubber costs from TurboSonic. Quotation basis = $160,000/ACFM | AF158: TurboSonic
A159: M-704 | B159: 1 | D159: Flue gas stack | E159: STRM.A100.112 | G159: 939119.015 | H159: 891004.841 | I159: LB/HR | J159: 0.9487666917 | K159: 169187 | L159: 2007 | M159: 169187 | N159: 0.65 | O159: =IF(E159="",M159,M159*J159^N159) -> 163501.0774 | P159: 1.29915419 | Q159: 212413.1098 | R159: 236791.6986 | S159: 182266.0469 | V159: MISC | W159: MISC | Z159: CS | AA159: Base Diameter = 72 inches; Stack Height = 200 ft | AF159: 51400 Icarus 2006.5
A160: M-708 | B160: 1 | D160: Chilled water system | E160: sum of H-316 and H-326 | G160: 28200000 | H160: 23226799.9 | I160: BTU/HR | J160: 0.8236453865 | K160: 637500 | L160: 2011 | M160: 637500 | N160: 0.6 | O160: =IF(B160<1,M160,M160*J160^N160) -> 567445.7547 | P160: 1.8 | Q160: 1021402.358 | R160: 1021402.358 | S160: 567445.7547 | V160: CHILLER | W160: CENTRIFUGAL | Z160: CS | AA160: 2,350 Ton | AF160: Trane
A161: M-710 | B161: 1 | D161: Product loading rack | G161: 1 | H161: 1 | J161: =IF(E161<>"",H161/G161,"") ->  | K161: 25000 | L161: 2011 | M161: 25000 | N161: 1 | O161: =IF(E161="",M161,M161*J161^N161) -> 25000 | P161: 2.47 | Q161: 61750 | R161: 61750 | S161: 25000 | V161: MISC | W161: MISC | AF161: Estimate
A162: P-701 | B162: 1 | C162: 1 | D162: Cooling water pump | E162: STRM.A700.715 | G162: 7001377.25 | H162: 2593745 | I162: LB/HR | J162: =IFERROR(H162/G162,0) -> 0.3704621116 | K162: 239375 | L162: 2007 | M162: 478750 | N162: 0.3 | O162: 355411.8684 | P162: 2.140156658 | Q162: 760637.0766 | R162: 847935.1651 | S162: 396202.3817 | V162: PUMP | W162: CENTRIFUGAL | Z162: CS | AA162: 18620 | AB162: 185 | AF162: 51400 Icarus 2006.5
A163: P-702 | B163: 1 | C163: 1 | D163: Firewater pump | E163: STRM.A100.101 | G163: 262454.2857 | H163: 204131.481 | I163: LB/HR | J163: =IFERROR(H163/G163,0) -> 0.7777791871 | K163: 23043 | L163: 2007 | M163: 46086 | N163: 0.3 | O163: 42739.15296 | P163: 3.69743523 | Q163: 158025.2499 | R163: 176161.7603 | S163: 47644.3127 | V163: PUMP | W163: CENTRIFUGAL | Z163: CS | AA163: 2500 | AB163: 120 | AF163: 51400 Icarus 2006.5
A164: P-703 | B164: 1 | C164: 1 | D164: Diesel pump | E164: STRM.A100.101 | G164: 262454.2857 | H164: 204131.481 | I164: LB/HR | J164: =IFERROR(H164/G164,0) -> 0.7777791871 | K164: 3842 | L164: 2007 | M164: 7684 | N164: 0.3 | O164: 7125.974295 | P164: 5.387818844 | Q164: 38393.45859 | R164: 42799.86429 | S164: 7943.820222 | V164: PUMP | W164: CENTRIFUGAL | Z164: CS | AA164: 5 | AB164: 150 | AF164: 51400 Icarus 2006.5
A165: P-704 | B165: 1 | C165: 1 | D165: Ammonia pump | E165: STRM.A100.101 | G165: 262454.2857 | H165: 204131.481 | I165: LB/HR | J165: =IFERROR(H165/G165,0) -> 0.7777791871 | K165: 3842 | L165: 2007 | M165: 7684 | N165: 0.3 | O165: 7125.974295 | P165: 5.205622072 | Q165: 37095.12908 | R165: 41352.52588 | S165: 7943.820222 | V165: PUMP | W165: CENTRIFUGAL | Z165: CS | AA165: 1 | AB165: 150 | AF165: 51400 Icarus 2006.5
A166: P-705 | B166: 1 | C166: 1 | D166: Caustic pump | G166: 0.5 | H166: 1 | J166: =IF(E166<>"",H166/G166,"") ->  | K166: 4906 | L166: 2007 | M166: 9812 | N166: 0.3 | O166: 9812 | P166: 4.300856095 | Q166: 42200 | R166: 47043.28131 | S166: 10938.12029 | V166: PUMP | W166: CENTRIFUGAL | Z166: CS | AA166: 0.5 | AB166: 10 | AF166: 51400 Icarus 2006.5
A167: P-707 | B167: 1 | C167: 1 | D167: BFW chemical pump | E167: STRM.A100.101 | G167: 262454.2857 | H167: 204131.481 | I167: LB/HR | J167: =IFERROR(H167/G167,0) -> 0.7777791871 | K167: 3842 | L167: 2007 | M167: 7684 | N167: 0.3 | O167: 7125.974295 | P167: 5.205622072 | Q167: 37095.12908 | R167: 41352.52588 | S167: 7943.820222 | V167: PUMP | W167: CENTRIFUGAL | Z167: CS | AA167: 1 | AB167: 150 | AF167: 51400 Icarus 2006.5
A168: P-708 | B168: 1 | C168: 1 | D168: Flue gas scrubber circulation pump | E168: STRM.A100.112 | G168: 489600 | H168: 891004.841 | I168: LB/HR | J168: 1.819862829 | K168: 12510 | L168: 2007 | M168: 25020 | N168: 0.3 | O168: 29943.24761 | P168: 4.116706635 | Q168: 123267.5661 | R168: 137414.9476 | S168: 33379.82514 | V168: PUMP | W168: CENTRIFUGAL | Z168: CS | AA168: 1010 | AB168: 60 | AF168: 51400 Icarus 2006.5
A169: P-790 | B169: 1 | C169: 1 | D169: Gasoline product pump | E169: VOLFLMX.453 | G169: 108 | H169: =IF(ISNUMBER(SEARCH(".W",E169)),VLOOKUP(E169,INDIRECT(LU_WORK),2),IF(ISNUMBER(SEARCH(".Q",E169)),ABS(VLOOKUP(E169,INDIRECT(LU_HEAT),2)),VLOOKUP(E169,INDIRECT(LU_SENS),2)))*7.481/60 -> 80.93036719 | I169: gpm | J169: 0.7493552518 | K169: 7400 | L169: 2013 | M169: 14800 | N169: 0.8 | O169: =IF(B169<1,M169,M169*J169^N169) -> 11749.29802 | P169: 3.959459459 | Q169: 46520.86918 | R169: 48029.74278 | S169: 12130.37872 | V169: PUMP | W169: CENTRIFUGAL | X169: 35 | Y169: 250 | Z169: 316SS | AA169: 108 | AB169: 225 | AF169: P-450 | AH169: 7400 | AI169: 29300
A170: P-792 | B170: 1 | C170: 1 | D170: Diesel product pump | E170: VOLFLMX.456 | G170: 108 | H170: =IF(ISNUMBER(SEARCH(".W",E170)),VLOOKUP(E170,INDIRECT(LU_WORK),2),IF(ISNUMBER(SEARCH(".Q",E170)),ABS(VLOOKUP(E170,INDIRECT(LU_HEAT),2)),VLOOKUP(E170,INDIRECT(LU_SENS),2)))*7.481/60 -> 35.19648287 | I170: gpm | J170: 0.3258933599 | K170: 7400 | L170: 2013 | M170: 14800 | N170: 0.8 | O170: =IF(B170<1,M170,M170*J170^N170) -> 6035.623278 | P170: 3.959459459 | Q170: 23897.80568 | R170: 24672.91519 | S170: 6231.384724 | V170: PUMP | W170: CENTRIFUGAL | X170: 35 | Y170: 250 | Z170: 316SS | AA170: 108 | AB170: 225 | AF170: P-450 | AH170: 7400 | AI170: 29300
A171: S-701 | B171: 1 | C171: 1 | D171: Instrument air dryer | E171: STRM.A100.101 | G171: 262454.2857 | H171: 204131.481 | I171: LB/HR | J171: 0.7777791871 | K171: 8349 | L171: 2002 | M171: 16698 | N171: 0.6 | O171: =IF(E171="",M171,M171*J171^N171) -> 14360.78721 | P171: 2.47 | Q171: 35471.14442 | R171: 52516.30254 | S171: 21261.66095 | V171: DRYER | W171: PACKAGE UNIT | Z171: CS | AA171: 400 SCFM | AB171: Dewpt -40F | AF171: Richardson (51400)
A172: T-701 | B172: 1 | D172: Plant air receiver | E172: STRM.A100.101 | G172: 262454.2857 | H172: 204131.481 | I172: LB/HR | J172: 0.7777791871 | K172: 21005 | L172: 2007 | M172: 21005 | N172: 0.65 | O172: 17839.36093 | P172: 5.441561533 | Q172: 97073.98019 | R172: 108215.1317 | S172: 19886.77902 | V172: TANK | W172: VERTICAL-VESSEL | X172: 200 | Z172: CS | AA172: 1000 gal | AF172: 51400 Icarus 2006.5
A173: T-702 | B173: 1 | D173: Firewater storage tank | E173: STRM.A100.101 | G173: 262454.2857 | H173: 204131.481 | I173: LB/HR | J173: 0.7777791871 | K173: 229900 | L173: 2007 | M173: 229900 | N173: 0.65 | O173: 195252.0389 | P173: 1.461939974 | Q173: 285446.7607 | R173: 318207.3995 | S173: 217661.0567 | V173: TANK | W173: FLAT-BTM-STORAGE | X173: 0.5 | Z173: CS | AA173: 600,000 gal | AB173: flat roof | AF173: 51400 Icarus 2006.5
A174: T-703 | B174: 1 | D174: Purchased diesel storage tank | E174: STRM.A100.101 | G174: 262454.2857 | H174: 204131.481 | I174: LB/HR | J174: 0.7777791871 | K174: 104674 | L174: 2007 | M174: 104674 | N174: 0.65 | O174: 88898.70344 | P174: 1.346084032 | Q174: 119665.1252 | R174: 133399.0556 | S174: 99101.5809 | V174: TANK | W174: FLAT-BTM-STORAGE | X174: 0.5 | Z174: CS | AA174: 12,000 gal | AB174: floating roof | AF174: 51400 Icarus 2006.5
A175: T-704 | B175: 1 | D175: Ammonia storage tank | E175: STRM.A100.101 | G175: 262454.2857 | H175: 204131.481 | I175: LB/HR | J175: 0.7777791871 | K175: 15704 | L175: 2007 | M175: 15704 | N175: 0.65 | O175: 13337.26846 | P175: 5.387162506 | Q175: 71850.03258 | R175: 80096.23922 | S175: 14867.98275 | V175: TANK | W175: HORIZ-STORAGE | X175: 350 | Z175: CS | AA175: 560 gal | AF175: 51400 Icarus 2006.5
A176: T-705 | B176: 1 | D176: Caustic storage tank | E176: STRM.A100.101 | G176: 262454 | H176: 204131.481 | I176: LB/HR | J176: =IF(E176<>"",H176/G176,"") -> 0.7777800338 | K176: 16005 | L176: 2007 | M176: 16005 | N176: 0.65 | O176: 13592.91472 | P176: 3.011558888 | Q176: 40935.86313 | R176: 45634.05984 | S176: 15152.96945 | V176: TANK | W176: FLAT-BTM-STORAGE | X176: 0.5 | Z176: CS | AA176: 5,400 gal | AB176: flat roof | AF176: 51400 Icarus 2006.5
A177: T-708 | B177: 1 | D177: BFW chemical storage tank | E177: STRM.A100.101 | G177: 262454.2857 | H177: 204131.481 | I177: LB/HR | J177: =IFERROR(H177/G177,0) -> 0.7777791871 | K177: 22004 | L177: 2007 | M177: 22004 | N177: 0.65 | O177: 18687.8028 | P177: 6.69878204 | Q177: 125185.5178 | R177: 139553.022 | S177: 20832.59631 | V177: TANK | W177: HORIZ-STORAGE | X177: 10 | Z177: SS316 | AA177: 400 gal | AF177: 51400 Icarus 2006.5
A178: T-790 | B178: 1 | C178: 1 | D178: Gasoline product storage tanks | E178: VOLFLMX.453 | G178: 50 | H178: =IF(ISNUMBER(SEARCH(".W",E178)),VLOOKUP(E178,INDIRECT(LU_WORK),2),IF(ISNUMBER(SEARCH(".Q",E178)),ABS(VLOOKUP(E178,INDIRECT(LU_HEAT),2)),VLOOKUP(E178,INDIRECT(LU_SENS),2)))*7.481/60 -> 80.93036719 | I178: gpm | J178: =IFERROR(H178/G178,0) -> 1.618607344 | K178: 442700 | L178: 2013 | M178: 885400 | N178: 0.7 | O178: =IF(E184="",M178,M178*J178^N178) -> 885400 | P178: 1.75446126 | Q178: 1553400 | R178: 1603783.501 | S178: 914117.3629 | V178: VESSEL | W178: STORAGE | X178: 15 | Y178: 250 | Z178: CS | AA178: 47' Ø | AB178: 40' H | AC178: 500,000 gal | AF178: ACCE V8.4 | AH178: 442700 | AI178: 776700
A179: T-792 | B179: 1 | C179: 1 | D179: Diesel product storage tank | E179: VOLFLMX.456 | G179: 50 | H179: =IF(ISNUMBER(SEARCH(".W",E179)),VLOOKUP(E179,INDIRECT(LU_WORK),2),IF(ISNUMBER(SEARCH(".Q",E179)),ABS(VLOOKUP(E179,INDIRECT(LU_HEAT),2)),VLOOKUP(E179,INDIRECT(LU_SENS),2)))*7.481/60 -> 35.19648287 | I179: gpm | J179: =IFERROR(H179/G179,0) -> 0.7039296574 | K179: 442700 | L179: 2013 | M179: 885400 | N179: 0.7 | O179: =IF(E185="",M179,M179*J179^N179) -> 885400 | P179: 1.75446126 | Q179: 1553400 | R179: 1603783.501 | S179: 914117.3629 | V179: VESSEL | W179: STORAGE | X179: 15 | Y179: 250 | Z179: CS | AA179: 47' Ø | AB179: 40' H | AC179: 500,000 gal | AF179: T-790 | AH179: 442700 | AI179: 776700
A180: Area A700: Cooling Water & Other Utilities ↑ | M180: =SUM(M155:M179) -> 4681665 | O180: =SUM(O155:O179) -> 4424312.193 | P180: =Q180/O180 -> 1.997860002 | Q180: =SUM(Q155:Q179) -> 8839156.368 | R180: =SUM(R155:R179) -> 9438494.309 | S180: =SUM(S155:S179) -> 4705001.069
A181: H-840 | B181: 1 | D181: RTO Feed/Effluent exchanger | K181: INCLUDED | V181: MISC | W181: MISC | AA181: Included with RTO | AJ181: heat
A182: K-831 | B182: 1 | D182: RTO blower | E182: A800.A830.W-K831 | G182: 900 | H182: =IF(ISNUMBER(SEARCH(".W",E182)),VLOOKUP(E182,INDIRECT(LU_WORK),2),IF(ISNUMBER(SEARCH(".Q",E182)),ABS(VLOOKUP(E182,INDIRECT(LU_HEAT),2)),VLOOKUP(E182,INDIRECT(LU_SENS),2))) -> 2220.04761 | I182: =IF(ISNUMBER(SEARCH(".W",E182)),VLOOKUP(E182,INDIRECT(LU_WORK),3),IF(ISNUMBER(SEARCH(".Q",E182)),VLOOKUP(E182,INDIRECT(LU_HEAT),3),VLOOKUP(E182,INDIRECT(LU_SENS),3))) -> HP | J182: =IFERROR(H182/G182,0) -> 2.466719567 | K182: 360420 | L182: 2009 | M182: =K182*(B182+C182) -> 360420 | N182: 0.6 | O182: =IF(E182="",M182,M182*J182^N182) -> 619556.2602 | P182: 1.6 | Q182: =O182*P182 -> 991290.0163 | R182: =Q182*VLOOKUP(COSTYEAR,INDIRECT(IX_CAP),4,FALSE)/VLOOKUP(L182,INDIRECT(IX_CAP),4,FALSE) -> 1112470.9 | S182: =O182*VLOOKUP(COSTYEAR,INDIRECT(IX_CAP),4,FALSE)/VLOOKUP(L182,INDIRECT(IX_CAP),4,FALSE) -> 695294.3123 | V182: FAN | W182: CENTRIFUGAL | AJ182: rto
A183: M-805 | B183: 1 | D183: Clarifier | G183: 220 | H183: 220 | J183: =IF(E183<>"",H183/G183,"") ->  | K183: 96221 | L183: 2007 | M183: 96221 | N183: 0.65 | O183: =IF(E183="",M183,M183*J183^N183) -> 96221 | P183: 2.414233899 | Q183: =O183*P183 -> 232300 | R183: 258961.0011 | S183: 107264.2552 | V183: SEPARATOR | W183: CLARIFIER | AA183: 1.4 Ft / Hr Rise Rate; 40' Diameter x 12' Height | AF183: 51400 M-705 | AJ183: ro
A184: M-806 | B184: 1 | D184: Belt press | G184: 1 | H184: 1 | J184: =IF(E184<>"",H184/G184,"") ->  | K184: 135000 | L184: 2010 | M184: 135000 | N184: 0.65 | O184: =IF(E184="",M184,M184*J184^N184) -> 135000 | P184: 2.47 | Q184: =O184*P184 -> 333450 | R184: 354578.1863 | S184: 143553.9216 | V184: MISC | W184: MISC | AF184: 51400 M-706 | AJ184: ro
A185: M-807 | B185: 1 | D185: Sand filter | G185: 265 | H185: 265 | J185: =IF(E185<>"",H185/G185,"") ->  | K185: 120400 | L185: 2010 | M185: 120400 | N185: 0.65 | O185: =IF(E185="",M185,M185*J185^N185) -> 120400 | P185: 2.47 | Q185: =O185*P185 -> 297388 | R185: 316231.2121 | S185: 128028.8308 | V185: MISC | W185: MISC | AF185: 51400 M-707 | AJ185: ro
A186: M-833 | B186: 1 | D186: Aqueous regenerative thermal oxidizer | E186: MOLEFLMX.A800.A830.836 | G186: 18500 | H186: =IF(ISNUMBER(SEARCH(".W",E186)),VLOOKUP(E186,INDIRECT(LU_WORK),2),IF(ISNUMBER(SEARCH(".Q",E186)),ABS(VLOOKUP(E186,INDIRECT(LU_HEAT),2)),VLOOKUP(E186,INDIRECT(LU_SENS),2)))*379.3/60 -> 38382.96392 | I186: SCFM | J186: =IFERROR(H186/G186,0) -> 2.074754806 | K186: 1850000 | L186: 2002 | M186: 1850000 | N186: 0.6 | O186: =IF(E186="",M186,M186*J186^N186) -> 2866499.009 | P186: 2.4 | Q186: 6879597.622 | R186: 10185491.22 | S186: 4243954.676 | V186: MISC | W186: MISC | Z186: Refractory | AA186: 100 | AF186: EPA Guideline | AJ186: rto
A187: M-861 | B187: 1 | D187: Reverse osmosis unit | E187: from operating summary | G187: 197000 | H187: 70809.9345 | I187: lb/h | J187: =IFERROR(H187/G187,0) -> 0.3594412919 | K187: 350000 | L187: 2012 | M187: 350000 | N187: 0.7 | O187: =IF(H187="",M187,M187*J187^N187) -> 171004.5322 | P187: 1.15 | Q187: =O187*P187 -> 196655.2121 | R187: 197025.2441 | S187: 171326.2992 | V187: MISC | W187: MISC | AA187: 15 gal/ft2/day | AF187: HGI 9/21/14 | AJ187: ro
A188: P-801 | B188: 1 | C188: 1 | D188: Clarifier overflow pump | E188: VOLFLMX.A800.880 | G188: 50 | H188: =IF(ISNUMBER(SEARCH(".W",E188)),VLOOKUP(E188,INDIRECT(LU_WORK),2),IF(ISNUMBER(SEARCH(".Q",E188)),ABS(VLOOKUP(E188,INDIRECT(LU_HEAT),2)),VLOOKUP(E188,INDIRECT(LU_SENS),2)))*7.481/60 -> 52.78292951 | I188: gpm | J188: =IFERROR(H188/G188,0) -> 1.05565859 | K188: =AH188 -> 4500 | L188: 2013 | M188: 9000 | N188: 0.8 | O188: =IF(E188="",M188,M188*J188^N188) -> 9398.559567 | P188: =AI188/AH188 -> 4.377777778 | Q188: =O188*P188 -> 41144.80522 | R188: 42479.30974 | S188: 9703.395625 | V188: PUMP | W188: CENTRIFUGAL | X188: 35 | Y188: 250 | Z188: CS | AA188: 50 gpm | AB188: 40' head | AF188: ACCE V8.4 | AH188: 4500 | AI188: 19700 | AJ188: ro
A189: P-809 | B189: 1 | C189: 1 | D189: Slurry pump | G189: 1 | H189: 1 | K189: 3242 | L189: 2007 | M189: 6484 | N189: 0.8 | O189: 6484 | P189: 3.1 | Q189: 20100.4 | R189: 22407.31686 | S189: 7228.16673 | V189: PUMP | W189: CENTRIFUGAL | X189: 45 | Z189: CS | AA189: 2 gpm | AB189: 10' head | AF189: 51400 Icarus 2006.5 | AJ189: ro
A190: P-810 | B190: 1 | C190: 1 | D190: Boiler charge pump | E190: VOLFLMX.A800.A810.810 | G190: 200 | H190: =IF(ISNUMBER(SEARCH(".W",E190)),VLOOKUP(E190,INDIRECT(LU_WORK),2),IF(ISNUMBER(SEARCH(".Q",E190)),ABS(VLOOKUP(E190,INDIRECT(LU_HEAT),2)),VLOOKUP(E190,INDIRECT(LU_SENS),2)))*7.481/60 -> 179.2274303 | I190: gpm | J190: =IFERROR(H190/G190,0) -> 0.8961371513 | K190: =AH190 -> 6500 | L190: 2013 | M190: 13000 | N190: 0.8 | O190: 11908.11275 | P190: =AI190/AH190 -> 4.138461538 | Q190: 49281.26663 | R190: 50879.67189 | S190: 12294.34451 | V190: PUMP | W190: CENTRIFUGAL | X190: 170 | Y190: 250 | Z190: CS | AA190: 200 gpm | AB190: 160' head | AF190: ACCE V8.4 | AH190: 6500 | AI190: 26900 | AJ190: blr
A191: P-812 | B191: 1 | C191: 1 | D191: Condensate Pump | E191: VOLFLMX.A800.A810.A812.814A | G191: 140 | H191: 126.7252062 | I191: gpm | J191: 0.9051800443 | K191: 5100 | L191: 2013 | M191: 10200 | N191: 0.8 | O191: 9418.638935 | P191: 4.588235294 | Q191: 43214.93158 | R191: 44616.57929 | S191: 9724.126255 | V191: PUMP | W191: CENTRIFUGAL | X191: 155 | Y191: 400 | Z191: CS | AA191: 140 gpm | AB191: 20' head | AF191: ACCE V8.4 | AH191: 5100 | AI191: 23400 | AJ191: blr
A192: P-814 | B192: 1 | C192: 1 | D192: Boiler charge pump | E192: VOLFLMX.A800.A810.822A | G192: 145 | H192: 127.4745381 | I192: gpm | J192: 0.8791347453 | K192: 5100 | L192: 2013 | M192: 10200 | N192: 0.8 | O192: 9201.201202 | P192: 4.588235294 | Q192: 42217.2761 | R192: 43586.56551 | S192: 9499.636073 | V192: PUMP | W192: CENTRIFUGAL | X192: 160 | Y192: 400 | Z192: CS | AA192: 145 gpm | AB192: 5' head | AF192: ACCE V8.4 | AH192: 5100 | AI192: 23400 | AJ192: blr
A193: P-815 | B193: 1 | C193: 1 | D193: Boiler makeup pump | E193: VOLFLMX.A800.815 | G193: 5 | H193: 4.214156086e-07 | I193: gpm | J193: 8.428312172e-08 | K193: 14700 | L193: 2013 | M193: 29400 | N193: 0.8 | O193: 0.06440800105 | P193: 1.843537415 | Q193: 0.1187385598 | R193: 0.1225897663 | S193: 0.06649703193 | V193: PUMP | W193: CENTRIFUGAL | X193: 170 | Y193: 70 | Z193: CS | AA193: 5 gpm | AB193: 400' head | AF193: ACCE V8.4 | AH193: 14700 | AI193: 27100 | AJ193: blr
A194: P-822 | B194: 1 | C194: 1 | D194: Concentrated waste water pump | E194: VOLFLMX.A800.A810.A822.824A | G194: 7 | H194: 14.49515031 | I194: gpm | J194: 2.070735759 | K194: 4900 | L194: 2013 | M194: 9800 | N194: 0.8 | O194: 17543.88704 | P194: 4.306122449 | Q194: 75546.12582 | R194: 77996.41441 | S194: 18112.9114 | V194: PUMP | W194: CENTRIFUGAL | X194: 150 | Y194: 400 | Z194: 304SS | AA194: 7 gpm | AB194: 20' head | AF194: ACCE V8.4 | AH194: 4900 | AI194: 21100 | AJ194: blr
A195: P-860 | B195: 1 | C195: 1 | D195: RO Feed pump | E195: VOLFLMX.A800.A860.860 | G195: 185 | H195: 160.2116808 | I195: gpm | J195: 0.8660090856 | K195: 6400 | L195: 2013 | M195: 12800 | N195: 0.8 | O195: 11408.48376 | P195: 3.84375 | Q195: 43851.35944 | R195: 45273.64925 | S195: 11778.51038 | V195: PUMP | W195: CENTRIFUGAL | X195: 85 | Y195: 250 | Z195: CS | AA195: 185 gpm | AB195: 170' head | AF195: ACCE V8.4 | AH195: 6400 | AI195: 24600 | AJ195: ro
A196: P-866 | B196: 1 | C196: 1 | D196: Clean water pump | E196: VOLFLMX.A800.866 | G196: 140 | H196: 120.1727038 | I196: gpm | J196: 0.8583764556 | K196: 5200 | L196: 2013 | M196: 10400 | N196: 0.8 | O196: =IF(E204="",M196,M196*J196^N196) -> 9203.978103 | P196: 4.346153846 | Q196: 40001.90483 | R196: 41299.34014 | S196: 9502.503041 | V196: PUMP | W196: CENTRIFUGAL | X196: 40 | Y196: 250 | Z196: CS | AA196: 140 gpm | AB196: 50' head | AF196: ACCE V8.4 | AH196: 5200 | AI196: 22600 | AJ196: ro
A197: T-801 | B197: 1 | D197: Clarifier overflow tank | G197: 1 | H197: 1 | J197: 1 | K197: 85800 | L197: 2013 | M197: 85800 | N197: 0.65 | O197: =IF(E197="",M197,M197*J197^N197) -> 85800 | P197: 2.272727273 | Q197: 195000 | R197: 201324.6959 | S197: 88582.86621 | V197: VESSEL | W197: STORAGE | X197: 15 | Y197: 250 | Z197: CS | AA197: 17' Ø | AB197: 32' H | AC197: 50,000 gal | AF197: ACCE V8.4 | AH197: 85800 | AI197: 195000 | AJ197: ro
A198: T-809 | B198: 1 | D198: Slurry tank | G198: 1 | H198: 1 | J198: 1 | K198: 85800 | L198: 2013 | M198: 85800 | N198: 0.65 | O198: =IF(E198="",M198,M198*J198^N198) -> 85800 | P198: 2.272727273 | Q198: 195000 | R198: 201324.6959 | S198: 88582.86621 | V198: VESSEL | W198: STORAGE | X198: 15 | Y198: 250 | Z198: CS | AA198: 17' Ø | AB198: 32' H | AC198: 50,000 gal | AF198: T-801 | AH198: 85800 | AI198: 195000 | AJ198: ro
A199: T-810 | B199: 1 | D199: Boiler Feed Tank | E199: VOLFLMX.A800.A810.810 | G199: 200 | H199: =IF(ISNUMBER(SEARCH(".W",E199)),VLOOKUP(E199,INDIRECT(LU_WORK),2),IF(ISNUMBER(SEARCH(".Q",E199)),ABS(VLOOKUP(E199,INDIRECT(LU_HEAT),2)),VLOOKUP(E199,INDIRECT(LU_SENS),2)))*7.481/60 -> 179.2274303 | I199: gpm | J199: =IFERROR(H199/G199,0) -> 0.8961371513 | K199: 24600 | L199: 2013 | M199: 24600 | N199: 0.7 | O199: =IF(E199="",M199,M199*J199^N199) -> 22782.28313 | P199: 4.491869919 | Q199: 102335.0523 | R199: 105654.2219 | S199: 23521.2114 | V199: VESSEL | W199: VERTICAL PRESSURE | X199: 110 | Y199: 250 | Z199: CS | AA199: 5' Ø | AB199: 15' T-T | AF199: ACCE V8.4 | AH199: 24600 | AI199: 110500 | AJ199: blr
A200: T-812 | B200: 1 | D200: Steam drum | E200: VOLFLMX.a800.a810.813 | G200: 100800 | H200: =IF(ISNUMBER(SEARCH(".W",E200)),VLOOKUP(E200,INDIRECT(LU_WORK),2),IF(ISNUMBER(SEARCH(".Q",E200)),ABS(VLOOKUP(E200,INDIRECT(LU_HEAT),2)),VLOOKUP(E200,INDIRECT(LU_SENS),2))) -> 96830.1773 | I200: =IF(ISNUMBER(SEARCH(".W",E200)),VLOOKUP(E200,INDIRECT(LU_WORK),3),IF(ISNUMBER(SEARCH(".Q",E200)),VLOOKUP(E200,INDIRECT(LU_HEAT),3),VLOOKUP(E200,INDIRECT(LU_SENS),3))) -> CUFT/HR | J200: 0.9606168383 | K200: 24400 | L200: 2013 | M200: 24400 | N200: 0.7 | O200: =IF(B200<1,M200,M200*J200^N200) -> 23723.29246 | P200: 4.463114754 | Q200: =O200*P200 -> 105879.7766 | R200: 109313.9171 | S200: 24492.74175 | V200: VESSEL | W200: VERTICAL PRESSURE | X200: 160 | Y200: 410 | Z200: CS | AA200: 4.5 | AB200: 13.5 | AF200: ACCE V8.4 | AH200: 24400 | AI200: 108900 | AJ200: blr
... 11 more rows

Sheet OPEX
D1: © 2016-2019 Alliance for Sustainable Energy, LLC | H1: This program is free software: you can redistribute it and/or modify it under the terms of the GNU General Public License as published by the Free Software Foundation, either version 3 of the License, or (at your option) any later version.
H2: This program is distributed in the hope that it will be useful, but WITHOUT ANY WARRANTY; without even the implied warranty of MERCHANTABILITY or FITNESS FOR A PARTICULAR PURPOSE. See the GNU General Public License for more details. You should have received a copy of the GNU General Public License along with this program. If not, see <https://www.gnu.org/licenses/>.
B3: Operating Cost Summary | L3: In Situ
B5: Raw Material | C5: Stream Number | D5: Scaling Flow | F5: Quoted Price | H5: Year of Price Quote | I5: =COSTYEAR &" Cost" -> 2011 Cost | J5: =COSTYEAR &" Cost ($/h)" -> 2011 Cost ($/h) | K5: =COSTYEAR&" Cost (MM$/yr)" -> 2011 Cost (MM$/yr) | L5: =COSTYEAR&" Cost (¢/GGE)" -> 2011 Cost (¢/GGE) | M5: Area
B6: Variable Operating Costs | O6: Cost on a dry basis | P6: 80 | Q6: /dry us ton
B7: Feedstock, Catalyst & Chemicals | O7: % feed moisture | P7: =VLOOKUP("CMIX.WATER.A100.100",INDIRECT(LU_SENS),2,FALSE)/(D8*2000) -> 0.1
B8: Feedstock - Wood Chips | C8: STRM.A100.100 | D8: =VLOOKUP(C8,INDIRECT(LU_SENS),2,FALSE)/2000 -> 102.0657405 | E8: US ton/h | F8: 72 | G8: /US ton | H8: 2011 | I8: =F8*VLOOKUP(COSTYEAR,INDIRECT(IX_CHEM),4,FALSE)/VLOOKUP(H8,INDIRECT(IX_CHEM),4,FALSE) -> 72 | J8: =D8*I8 -> 7348.733316 | K8: =($J8*OPHOURS/1000000) -> 57.93741346 | L8: =(K8*100)/ANNUALGGE -> 106.9355859 | M8: 100 | O8: Cost on wet basis | P8: =P6*(1-P7) -> 72 | Q8: /bulk us ton
B9: Sand Makeup | C9: STRM.A200.A211.217P | D9: =VLOOKUP(C9,INDIRECT(LU_SENS),2,FALSE) -> 0 | E9: lb/h | F9: 0.2073015873 | G9: /lb | H9: 2011 | I9: 0.2073015873 | J9: =D9*I9 -> 0 | K9: 0 | L9: 0 | M9: 200 | P9: =D8*(1-P7)*OPHOURS -> 724217.6683 | Q9: Dry Tons/yr
B10: VPU Zeolite Catalyst | C10: STRM.A200.A261.277 | D10: =VLOOKUP(C10,INDIRECT(LU_SENS),2,FALSE) -> 0 | E10: lb/h | F10: 9.75 | G10: /lb | H10: 2011 | I10: 9.75 | J10: =D10*I10 -> 0 | K10: 0 | L10: 0 | M10: 200 | O10: Operating Hours | P10: 7884 | Q10: hrs/year
B11: CFP Zeolite Catalyst | C11: STRM.A200.A201.217 | D11: =VLOOKUP(C11,INDIRECT(LU_SENS),2,FALSE)+192 -> 344.2986 | E11: lb/h | F11: 9.75 | G11: /lb | H11: 2011 | I11: 9.75 | J11: 3356.91135 | K11: 26.46588908 | L11: 48.84832076 | M11: 200
B12: Natural Gas to SMR | C12: STRM.502 | D12: 39.9546303 | E12: lb/h | F12: 0.119426364 | G12: /lb | H12: 2011 | I12: 0.119426364 | J12: 4.771636223 | K12: 0.03761957998 | L12: 0.06943478468 | M12: 500 | P12: Plant Electricity Demand
B13: 50 wt% Caustic | C13: CMIX.SO2.A100.112 | D13: =VLOOKUP(C13,INDIRECT(LU_SENS),2,FALSE)/64*2*40/0.5*1.1 -> 291.0793407 | E13: lb/h | F13: 0.075 | G13: /lb | H13: 2010 | I13: 0.08090500642 | J13: 23.54977593 | K13: 0.1856664334 | L13: 0.3426861446 | M13: 200
B14: Boiler Chemicals | C14: STRM.A600.600 | D14: 7053.63112 | E14: lb/h blowdn | F14: 75 | G14: /MM lb | H14: 2014 | I14: 70.2358841 | J14: =D14*I14/1000000 -> 0.4954180178 | K14: 0.003905875653 | L14: 0.007209108529 | M14: 600 | O14: A900.WPLANT | P14: =VLOOKUP(O14,INDIRECT(LU_WORK),2,FALSE) -> 57576.0886 | Q14: HP
B15: Cooling Tower Chemicals | C15: A700.QCTOTAL | D15: =VLOOKUP(C15,INDIRECT(LU_HEAT),2,FALSE)/1000000*83.3 -> 4649.831765 | E15: ton cool | F15: 33.84 | G15: /ton cool/yr | H15: 2014 | I15: 31.69043091 | J15: =K15*1000000/OPHOURS -> 18.69040744 | K15: =D15*I15/1000000 -> 0.1473551723 | L15: 0.271974718 | M15: 700 | N15: Based on 0.5 LbMol / Hr SO2 in total flue gas.
B16: Regeneration Gas: FP | C16: STRM.A200.A211.CHAR-COM.220p | D16: =VLOOKUP(C16,INDIRECT(LU_SENS),2,FALSE) -> 0 | E16: lb/h | F16: 0.119426364 | G16: /lb | H16: 2011 | I16: 0.119426364 | J16: =D16*I16/100/2000 -> 0 | K16: =($J16*OPHOURS/1000000) -> 0 | L16: 0 | M16: 200 | N16: NaOH (lb/hr) = 0.5 * 2 * (22.99+15.99+1.0079)
B17: Regeneration Gas: CFP | C17: STRM.A200.A201.CHAR-COM.220 | D17: =VLOOKUP(C17,INDIRECT(LU_SENS),2,FALSE) -> 1.604276e-05 | E17: lb/h | F17: 0.119426364 | G17: /lb | H17: 2011 | I17: 0.119426364 | J17: =D17*I17/100/2000 -> 9.57964248e-12 | K17: =($J17*OPHOURS/1000000) -> 7.552590131e-14 | L17: 1.393988103e-13 | M17: 200
B18: Regeneration Gas: VPU | C18: STRM.A200.A261.CATREGEN.280 | D18: =VLOOKUP(C18,INDIRECT(LU_SENS),2,FALSE) -> 0 | E18: lb/h | F18: 0.119426364 | G18: /lb | H18: 2011 | I18: 0.119426364 | J18: =D18*I18/100/2000 -> 0 | K18: =($J18*OPHOURS/1000000) -> 0 | L18: 0 | M18: 200
B19: Net Water Makeup | D19: 41495.15691 | E19: lb/h | F19: 19.95826907 | G19: lb/h | H19: 2001 | I19: 31.76439163 | J19: =D19*I19/100/2000 -> 6.590342073 | K19: =($J19*OPHOURS/1000000) -> 0.05195825691 | L19: 0.09589980489 | M19: 700
B20: Diesel Fuel | C20: Assumed rate of 10 gal / hr | D20: =10*8.34*0.85 -> 70.89 | E20: lb/h | F20: 0.4029432443 | G20: /lb | H20: 2011 | I20: 0.4029432443 | J20: =D20*I20 -> 28.56464659 | K20: =($J20*OPHOURS/1000000) -> 0.2252036737 | L20: 0.4156603715 | M20: 100
B21: Subtotal | J21: =SUM(J8:J20) -> 10788.30689 | K21: =SUM(K8:K20) -> 85.05501154 | L21: =SUM(L8:L20) -> 156.9867716
B22: Waste Streams | L22: =(K22*100)/ANNUALGGE -> 0 | N22: Assumed 10 gal/hr consumption rate and specific gravity of 0.85.
B23: FP Purge | C23: STRM.A200.A211.CHAR-COM.235P | D23: =VLOOKUP(C23,INDIRECT(LU_SENS),2,FALSE) -> 0 | E23: lb/h | F23: 0.01632949288 | G23: /lb | H23: 1998 | I23: =F23*VLOOKUP(COSTYEAR,INDIRECT(IX_CHEM),4,FALSE)/VLOOKUP(H23,INDIRECT(IX_CHEM),4,FALSE) -> 0.02768436553 | J23: =D23*I23 -> 0 | K23: =($J23*OPHOURS/1000000)*VLOOKUP(COSTYEAR,INDIRECT(IX_CHEM),4,FALSE)/VLOOKUP(COSTYEAR,INDIRECT(IX_CHEM),4,FALSE) -> 0 | L23: 0 | M23: 200
B24: CFP Purge | C24: STRM.A200.A201.CHAR-COM.235 | D24: =VLOOKUP(C24,INDIRECT(LU_SENS),2,FALSE)+480 -> 2511.65301 | E24: lb/h | F24: 0.01632949288 | G24: /lb | H24: 1998 | I24: =F24*VLOOKUP(COSTYEAR,INDIRECT(IX_CHEM),4,FALSE)/VLOOKUP(H24,INDIRECT(IX_CHEM),4,FALSE) -> 0.02768436553 | J24: =D24*I24 -> 69.53352002 | K24: =($J24*OPHOURS/1000000)*VLOOKUP(COSTYEAR,INDIRECT(IX_CHEM),4,FALSE)/VLOOKUP(COSTYEAR,INDIRECT(IX_CHEM),4,FALSE) -> 0.5482022718 | L24: 1.011821682 | M24: 200
B25: VPU Purge | C25: STRM.A200.A261.CATREGEN.295 | D25: =VLOOKUP(C25,INDIRECT(LU_SENS),2,FALSE) -> 0 | E25: lb/h | F25: 0.01632949288 | G25: /lb | H25: 1998 | I25: =F25*VLOOKUP(COSTYEAR,INDIRECT(IX_CHEM),4,FALSE)/VLOOKUP(H25,INDIRECT(IX_CHEM),4,FALSE) -> 0.02768436553 | J25: 0 | K25: =($J25*OPHOURS/1000000)*VLOOKUP(COSTYEAR,INDIRECT(IX_CHEM),4,FALSE)/VLOOKUP(COSTYEAR,INDIRECT(IX_CHEM),4,FALSE) -> 0 | L25: 0 | M25: 200
B26: Quench Filter Solids | C26: STRM.A300.335 | D26: =VLOOKUP(C26,INDIRECT(LU_SENS),2,FALSE) -> 42.539674 | E26: lb/h | F26: 0.01632949288 | G26: /lb | H26: 1998 | I26: =F26*VLOOKUP(COSTYEAR,INDIRECT(IX_CHEM),4,FALSE)/VLOOKUP(H26,INDIRECT(IX_CHEM),4,FALSE) -> 0.02768436553 | J26: 1.177683885 | K26: =($J26*OPHOURS/1000000)*VLOOKUP(COSTYEAR,INDIRECT(IX_CHEM),4,FALSE)/VLOOKUP(COSTYEAR,INDIRECT(IX_CHEM),4,FALSE) -> 0.009284859747 | L26: 0.01713714607 | M26: 300
B27: WWT Cost | D27: 20707.93383 | E27: lb/h | F27: 0.00264 | G27: /lb | H27: 2011 | I27: =F27*VLOOKUP(COSTYEAR,INDIRECT(IX_CHEM),4,FALSE)/VLOOKUP(H27,INDIRECT(IX_CHEM),4,FALSE) -> 0.00264 | J27: 54.66894531 | K27: =($J27*OPHOURS/1000000)*VLOOKUP(COSTYEAR,INDIRECT(IX_CHEM),4,FALSE)/VLOOKUP(COSTYEAR,INDIRECT(IX_CHEM),4,FALSE) -> 0.4310099649 | L27: 0.795518826 | M27: 800
B28: Subtotal | J28: =SUM(J23:J27) -> 125.3801492 | K28: =SUM(K23:K27) -> 0.9884970964 | L28: =SUM(L23:L27) -> 1.824477654
B29: Coproduct Credits
B30: Electricity | C30: WNET | D30: =ABS(VLOOKUP(C30,INDIRECT(LU_WORK),2,FALSE)*0.7457) -> 5266.344001 | E30: kW | F30: 5.85196448 | G30: /kWh | H30: 2011 | I30: =F30*VLOOKUP(COSTYEAR,INDIRECT(IX_CHEM),4,FALSE)/VLOOKUP(H30,INDIRECT(IX_CHEM),4,FALSE) -> 5.85196448 | J30: =-D30*F30/100 -> -308.1845803 | K30: =($J30*OPHOURS/1000000)*VLOOKUP(COSTYEAR,INDIRECT(IX_CHEM),4,FALSE)/VLOOKUP($H$30,INDIRECT(IX_CHEM),4,FALSE) -> -2.429727231 | L30: =(K30*100)/ANNUALGGE -> -4.4845686
B31: Subtotal | J31: =SUM(J30) -> -308.1845803 | K31: =SUM(K30) -> -2.429727231 | L31: =SUM(L30) -> -4.4845686
B33: Total Variable Operating Costs | J33: =J28+J21+J31 -> 10605.50246 | K33: =K28+K21+K31 -> 83.6137814 | L33: =L28+L21+L31 -> 154.3266807 | P33: Diesel | Q33: Gasoline | R33: Total
O34: Production (lb/hr) | P34: =VLOOKUP("strm.a400.456",INDIRECT(LU_SENS),2,FALSE) -> 12768.7556 | Q34: =VLOOKUP("strm.a400.453",INDIRECT(LU_SENS),2,FALSE) -> 30956.6306
B35: Fixed Operating Costs | O35: Production (MMlb/yr) | P35: =P34*OPHOURS/1000000 -> 100.6688692 | Q35: =Q34*OPHOURS/1000000 -> 244.0620757
D36: 2007 Salary | E36: # Positions | F36: 2011 Cost | H36: 2011 Hourly Wage | O36: LHV (Btu/gal) | P36: =VLOOKUP("A400.A450.HV-DIESL.QNET",INDIRECT(LU_HEAT),2,FALSE)/P34*6.982 -> 128815.2361 | Q36: =VLOOKUP("A400.A450.HV-GASOL.QNET",INDIRECT(LU_HEAT),2,FALSE)/Q34*6.215 -> 112870.9068
B37: Plant Manager | D37: 147000 | E37: 1 | F37: =E37*D37/VLOOKUP(2007,INDIRECT(IX_LABOR),4,FALSE)*VLOOKUP(2011,INDIRECT(IX_LABOR),4,FALSE) -> 161361.6368 | H37: =D37/2080 -> 70.67307692 | O37: MMGGE/yr | P37: =P36/116090*(P35/6.982) -> 15.99881322 | Q37: =Q36/116090*(Q35/6.215) -> 38.1809184 | R37: =Q37+P37 -> 54.17973161
B38: Plant Engineer | D38: 70000 | E38: 1 | F38: 76838.87468 | H38: =D38/2080 -> 33.65384615
B39: Maintenance Supr | D39: 57000 | E39: 1 | F39: 62568.79795 | H39: 27.40384615
B40: Lab Manager | D40: 56000 | E40: 1 | F40: 61471.09974 | H40: 26.92307692
B41: Shift Supervisor | D41: 48000 | E41: 5 | F41: 263447.5703 | H41: 23.07692308
B42: Lab Technician | D42: 40000 | E42: 2 | F42: 87815.85678 | H42: 19.23076923
B43: Maintenance Tech | D43: 40000 | E43: 16 | F43: 702526.8542 | H43: 19.23076923
B44: Shift Operators | D44: 48000 | E44: 20 | F44: 1053790.281 | H44: 23.07692308
B45: Yard Employees | D45: 28000 | E45: 12 | F45: 368826.5985 | H45: 13.46153846
B46: Clerks & Secretaries | D46: 36000 | E46: 3 | F46: 118551.4066 | H46: 17.30769231
B47: Total Salaries | E47: =SUM(E37:E46) -> 62 | F47: =SUM(F37:F46) -> 2957198.977 | K47: =(F47/1000000)*VLOOKUP(COSTYEAR,INDIRECT(IX_LABOR),4,FALSE)/VLOOKUP(2007,INDIRECT(IX_LABOR),4,FALSE) -> 3.246112023 | L47: =K47*100/ANNUALGGE -> 5.991377082
I48: Avg Salary (w/ Benefits)
B49: Overhead and Benefits | D49: % of Labor & Supervison = | E49: 0.9 | F49: =E49*K47*1000000 -> 2921500.821 | H49: =H50/2080 -> 45.58545128 | I49: per Hour | K49: =F49/1000000 -> 2.921500821 | L49: =(K49*100)/ANNUALGGE -> 5.392239373
B50: Maintenance | D50: % of FCI = | E50: 0.03 | F50: =FCI*E50 -> 15650704.47 | H50: =(F49+F47)/E47 -> 94817.73867 | I50: per Year | K50: =F50/1000000 -> 15.65070447 | L50: =(K50*100)/ANNUALGGE -> 28.88664082
B51: Insurance & Taxes | D51: % of FCI = | E51: 0.007 | F51: =FCI*E51 -> 3651831.042 | K51: =F51/1000000 -> 3.651831042 | L51: =(K51*100)/ANNUALGGE -> 6.740216191
B53: Total Fixed Operating Costs | K53: =SUM(K37:K51) -> 25.47014835 | L53: =SUM(L37:L51) -> 47.01047346
B55: Total Operating Costs | K55: =K53+K33 -> 109.0839298 | L55: =L53+L33 -> 201.3371541
B57: Annual Capital Charge | K57: =0.176*FCI/1000000 -> 91.81746621 | L57: =K57*100/ANNUALGGE -> 169.4682928
